Council Name,Date,TransNo,Amount � (Excl VAT),Supplier name,Supplier Category,Expense Area,Expense Type,Expense Code
London Borough of Sutton,03/02/2021,20000479,953,Abbott Toxicology Plc,CHILDREN'S SERVICE - OTHER,Peoples Services,Client Related Assessments,A56017
London Borough of Sutton,12/04/2021,20000158,"5,589.89",Absolute Care Services Ltd,SOCIAL SERVICES DAY CARE,Peoples Services,Homecare Core Services,A56020
London Borough of Sutton,12/04/2021,20000159,"5,348.23",Absolute Care Services Ltd,SOCIAL SERVICES DAY CARE,Peoples Services,Homecare Core Services,A56020
London Borough of Sutton,05/04/2021,20000244,"5,589.89",Absolute Care Services Ltd,SOCIAL SERVICES DAY CARE,Peoples Services,Homecare Core Services,A56020
London Borough of Sutton,05/04/2021,20000245,"5,348.23",Absolute Care Services Ltd,SOCIAL SERVICES DAY CARE,Peoples Services,Homecare Core Services,A56020
London Borough of Sutton,19/04/2021,20000716,"5,589.89",Absolute Care Services Ltd,SOCIAL SERVICES DAY CARE,Peoples Services,Homecare Core Services,A56020
London Borough of Sutton,19/04/2021,20000718,"5,348.23",Absolute Care Services Ltd,SOCIAL SERVICES DAY CARE,Peoples Services,Homecare Core Services,A56020
London Borough of Sutton,26/04/2021,20001089,"5,348.23",Absolute Care Services Ltd,SOCIAL SERVICES DAY CARE,Peoples Services,Homecare Core Services,A56020
London Borough of Sutton,26/04/2021,20001090,"5,589.89",Absolute Care Services Ltd,SOCIAL SERVICES DAY CARE,Peoples Services,Homecare Core Services,A56020
London Borough of Sutton,26/04/2021,20001091,"6,357.91",Absolute Care Services Ltd,SOCIAL SERVICES DAY CARE,Peoples Services,Homecare Core Services,A56020
London Borough of Sutton,14/03/2021,50005750,726.15,Absolute Care Services Ltd,SOCIAL SERVICES DAY CARE,Peoples Services,Home Care Services,A56019
London Borough of Sutton,14/03/2021,50005750,25.93,Absolute Care Services Ltd,SOCIAL SERVICES DAY CARE,Peoples Services,Home Care Services,A56019
London Borough of Sutton,07/03/2021,50005765,734.58,Absolute Care Services Ltd,SOCIAL SERVICES DAY CARE,Peoples Services,Home Care Services,A56019
London Borough of Sutton,07/02/2021,50005766,690.86,Absolute Care Services Ltd,SOCIAL SERVICES DAY CARE,Peoples Services,Home Care Services,A56019
London Borough of Sutton,21/02/2021,50005767,734.58,Absolute Care Services Ltd,SOCIAL SERVICES DAY CARE,Peoples Services,Home Care Services,A56019
London Borough of Sutton,28/02/2021,50005768,734.58,Absolute Care Services Ltd,SOCIAL SERVICES DAY CARE,Peoples Services,Home Care Services,A56019
London Borough of Sutton,14/03/2021,50005769,734.58,Absolute Care Services Ltd,SOCIAL SERVICES DAY CARE,Peoples Services,Home Care Services,A56019
London Borough of Sutton,28/02/2021,50005787,664.62,Absolute Care Services Ltd,SOCIAL SERVICES DAY CARE,Peoples Services,Home Care Services,A56019
London Borough of Sutton,07/03/2021,50005788,664.62,Absolute Care Services Ltd,SOCIAL SERVICES DAY CARE,Peoples Services,Home Care Services,A56019
London Borough of Sutton,07/02/2021,50005789,664.62,Absolute Care Services Ltd,SOCIAL SERVICES DAY CARE,Peoples Services,Home Care Services,A56019
London Borough of Sutton,21/02/2021,50005790,664.62,Absolute Care Services Ltd,SOCIAL SERVICES DAY CARE,Peoples Services,Home Care Services,A56019
London Borough of Sutton,14/03/2021,50005791,664.62,Absolute Care Services Ltd,SOCIAL SERVICES DAY CARE,Peoples Services,Home Care Services,A56019
London Borough of Sutton,21/02/2021,50006080,29.51,Absolute Care Services Ltd,SOCIAL SERVICES DAY CARE,Peoples Services,Home Care Services,A56019
London Borough of Sutton,21/02/2021,50006080,516.63,Absolute Care Services Ltd,SOCIAL SERVICES DAY CARE,Peoples Services,Home Care Services,A56019
London Borough of Sutton,21/02/2021,50006120,58.94,Absolute Care Services Ltd,SOCIAL SERVICES DAY CARE,Peoples Services,Home Care Services,A56019
London Borough of Sutton,21/02/2021,50006120,464.43,Absolute Care Services Ltd,SOCIAL SERVICES DAY CARE,Peoples Services,Home Care Services,A56019
London Borough of Sutton,21/02/2021,50006137,31.23,Absolute Care Services Ltd,SOCIAL SERVICES DAY CARE,Peoples Services,Home Care Services,A56019
London Borough of Sutton,21/02/2021,50006137,492.14,Absolute Care Services Ltd,SOCIAL SERVICES DAY CARE,Peoples Services,Home Care Services,A56019
London Borough of Sutton,14/03/2021,50006139,31.23,Absolute Care Services Ltd,SOCIAL SERVICES DAY CARE,Peoples Services,Home Care Services,A56019
London Borough of Sutton,14/03/2021,50006139,492.14,Absolute Care Services Ltd,SOCIAL SERVICES DAY CARE,Peoples Services,Home Care Services,A56019
London Borough of Sutton,07/03/2021,50006234,22.6,Absolute Care Services Ltd,SOCIAL SERVICES DAY CARE,Peoples Services,Home Care Services,A56019
London Borough of Sutton,07/03/2021,50006234,93.45,Absolute Care Services Ltd,SOCIAL SERVICES DAY CARE,Peoples Services,Home Care Services,A56019
London Borough of Sutton,07/03/2021,50006234,395.65,Absolute Care Services Ltd,SOCIAL SERVICES DAY CARE,Peoples Services,Home Care Services,A56019
London Borough of Sutton,14/03/2021,50006235,23.8,Absolute Care Services Ltd,SOCIAL SERVICES DAY CARE,Peoples Services,Home Care Services,A56019
London Borough of Sutton,14/03/2021,50006235,98.37,Absolute Care Services Ltd,SOCIAL SERVICES DAY CARE,Peoples Services,Home Care Services,A56019
London Borough of Sutton,14/03/2021,50006235,404.58,Absolute Care Services Ltd,SOCIAL SERVICES DAY CARE,Peoples Services,Home Care Services,A56019
London Borough of Sutton,28/02/2021,50006237,23.31,Absolute Care Services Ltd,SOCIAL SERVICES DAY CARE,Peoples Services,Home Care Services,A56019
London Borough of Sutton,28/02/2021,50006237,96.33,Absolute Care Services Ltd,SOCIAL SERVICES DAY CARE,Peoples Services,Home Care Services,A56019
London Borough of Sutton,28/02/2021,50006237,384.54,Absolute Care Services Ltd,SOCIAL SERVICES DAY CARE,Peoples Services,Home Care Services,A56019
London Borough of Sutton,31/03/2021,20000199,516,Access Independent Ltd,MANAGEMENT & TRAINING SERVICES,Health and Wellbeing,Mobility Scheme for the Disabled,A61015
London Borough of Sutton,11/03/2021,20001256,"1,935.78",Accurate Data Services Ltd,OFFICE SERVICES,Resources,Registration & Licence Fees Payable,A44267
London Borough of Sutton,07/04/2021,50002504,"12,500.00",Acorn Homes UK Ltd,CHILDREN'S SERVICES - FOSTERING & ADOPTION SERVICES,Peoples Services,Independent School Fees,A56002
London Borough of Sutton,29/04/2021,50007917,900,Acorn Homes UK Ltd,CHILDREN'S SERVICES - FOSTERING & ADOPTION SERVICES,Peoples Services,Payments to Schools,A51013
London Borough of Sutton,16/04/2021,50003239,"1,036.86",Acorn Lodge,SOCIAL SERVICES RESIDENTIAL,Peoples Services,Residential Care - Ext Provider,A56114
London Borough of Sutton,16/04/2021,50003239,"1,866.34",Acorn Lodge,SOCIAL SERVICES RESIDENTIAL,Peoples Services,Residential Care - Ext Provider,A56114
London Borough of Sutton,16/04/2021,50003339,"2,002.73",Acorn Residential Home,SOCIAL SERVICES RESIDENTIAL,Peoples Services,Residential Care - Ext Provider,A56114
London Borough of Sutton,16/04/2021,50003339,"1,112.63",Acorn Residential Home,SOCIAL SERVICES RESIDENTIAL,Peoples Services,Residential Care - Ext Provider,A56114
London Borough of Sutton,07/04/2021,20000246,"116,927.63",ADAM HTT LTD,TAXI AND COACH HIRE,Peoples Services,Childrens Social Care Transport,A32009
London Borough of Sutton,14/04/2021,20000547,"10,961.82",ADAM HTT LTD,TAXI AND COACH HIRE,Peoples Services,Childrens Social Care Transport,A32009
London Borough of Sutton,21/04/2021,20000907,"2,077.00",ADAM HTT LTD,TAXI AND COACH HIRE,Peoples Services,Childrens Social Care Transport,A32009
London Borough of Sutton,28/04/2021,20001244,"161,044.20",ADAM HTT LTD,TAXI AND COACH HIRE,Peoples Services,Contract Cleaning,A27010
London Borough of Sutton,25/04/2021,20001054,"7,700.00",Adaptive Solutions Limited,TEMP STAFF & CONSULTANCY,Environment Housing and Neighbourhoods,Purchases and Repairs Fixtures & Fittings,A25005
London Borough of Sutton,01/04/2021,50001011,504.51,Adelfi Homecare Ltd,SOCIAL SERVICES RESIDENTIAL,Peoples Services,Home Care Services,A56019
London Borough of Sutton,01/04/2021,20000954,"1,192.56",AdEPT Education,BUSINESS & COMPUTER SYSTEMS,Health and Wellbeing,Telephones,A45020
London Borough of Sutton,31/03/2021,20000379,"2,221.68",Advanced Demand Side Management Ltd,CONFERENCES,Resources,Water Services,A24005
London Borough of Sutton,29/03/2021,20000380,950,Advanced Demand Side Management Ltd,CONFERENCES,Environment Housing and Neighbourhoods,Purchases and Repairs Fixtures & Fittings,A25005
London Borough of Sutton,31/08/2020,20001043,789.5,Advanced Health & Care,CONFERENCES,Peoples Services,Telephones,A45020
London Borough of Sutton,16/11/2020,20001044,436.31,Advanced Health & Care,CONFERENCES,Peoples Services,Equipment And Materials Purchase,A40000
London Borough of Sutton,30/06/2020,20001046,809.85,Advanced Health & Care,CONFERENCES,Peoples Services,Telephones,A45020
London Borough of Sutton,16/10/2020,20001047,759.07,Advanced Health & Care,CONFERENCES,Peoples Services,Telephones,A45020
London Borough of Sutton,30/09/2020,20001048,745.26,Advanced Health & Care,CONFERENCES,Peoples Services,Telephones,A45020
London Borough of Sutton,31/07/2020,20001049,799.4,Advanced Health & Care,CONFERENCES,Peoples Services,Telephones,A45020
London Borough of Sutton,31/03/2021,20000446,"2,916.66",Advocacy For All,LEGAL & PROFESSIONAL SERVICES,Peoples Services,Provider Contract Payments,A44290
London Borough of Sutton,29/03/2021,20000132,"41,729.40",AECOM Ltd,LEGAL & PROFESSIONAL SERVICES,Development Growth and Regeneration,Buildings - Project Management,C14003
London Borough of Sutton,02/02/2021,20000188,"33,870.00",AECOM Ltd,LEGAL & PROFESSIONAL SERVICES,Development Growth and Regeneration,Professional Fees,A44066
London Borough of Sutton,15/04/2021,20000667,"1,106.00",Affinity Workforce Solutions,TEMP STAFF & CONSULTANCY,Peoples Services,LAC - Education,A44280
London Borough of Sutton,15/04/2021,20000816,"1,120.00",Affinity Workforce Solutions,TEMP STAFF & CONSULTANCY,Peoples Services,LAC - Education,A44280
London Borough of Sutton,15/04/2021,20000817,480,Affinity Workforce Solutions,TEMP STAFF & CONSULTANCY,Peoples Services,LAC - Education,A44280
London Borough of Sutton,15/04/2021,20000818,"1,200.00",Affinity Workforce Solutions,TEMP STAFF & CONSULTANCY,Peoples Services,LAC - Education,A44280
London Borough of Sutton,15/04/2021,20000819,"2,400.00",Affinity Workforce Solutions,TEMP STAFF & CONSULTANCY,Peoples Services,LAC - Education,A44280
London Borough of Sutton,15/04/2021,20000587,"23,000.00",Age UK Sutton,SOCIAL SERVICES - OTHER,Resources,Provider Contract Payments,A44290
London Borough of Sutton,16/04/2021,50003340,"4,828.50",Aims Care Partnership (Leighton House Ltd),SOCIAL SERVICES RESIDENTIAL,Peoples Services,Residential Care - Ext Provider,A56114
London Borough of Sutton,16/04/2021,50003340,"2,682.50",Aims Care Partnership (Leighton House Ltd),SOCIAL SERVICES RESIDENTIAL,Peoples Services,Residential Care - Ext Provider,A56114
London Borough of Sutton,16/04/2021,50003068,"5,400.10",Aitch Care Homes,SOCIAL SERVICES RESIDENTIAL,Peoples Services,Residential Care - Ext Provider,A56114
London Borough of Sutton,16/04/2021,50003068,"3,000.06",Aitch Care Homes,SOCIAL SERVICES RESIDENTIAL,Peoples Services,Residential Care - Ext Provider,A56114
London Borough of Sutton,14/04/2021,50003456,"1,369.31",REDACTED - PERSONAL DATA,UASC SUBS PAYMENTS,Peoples Services,Set Up Costs - Children Leaving Care,A61021
London Borough of Sutton,13/04/2021,20000758,997.1,REDACTED - PERSONAL DATA,GRANTS & EX GRATIA PAYMENTS,Environment Housing and Neighbourhoods,Temporary Protection - Homeless Persons,A62028
London Borough of Sutton,16/04/2021,50003277,"2,863.39",Allied Care (Mhs) Ltd,SOCIAL SERVICES - OTHER,Peoples Services,Residential Care - Ext Provider,A56114
London Borough of Sutton,16/04/2021,50003277,"1,590.77",Allied Care (Mhs) Ltd,SOCIAL SERVICES - OTHER,Peoples Services,Residential Care - Ext Provider,A56114
London Borough of Sutton,30/03/2021,20000457,751.37,Allied Publicity Services (Manchester) Ltd,REPROGRAPHICS & PHOTOGRAPHY,Health and Wellbeing,Mobility Scheme for the Disabled,A61015
London Borough of Sutton,27/04/2021,20001221,544.97,Allied Publicity Services (Manchester) Ltd,REPROGRAPHICS & PHOTOGRAPHY,Health and Wellbeing,Mobility Scheme for the Disabled,A61015
London Borough of Sutton,01/04/2021,20000280,"1,182.08",Allstar Business Solutions,FUEL AND VEHICLE SUPPLIES,Environment Housing and Neighbourhoods,Vehicles -  Fuel,A30015
London Borough of Sutton,16/04/2021,50003279,"1,609.14",Allswell Care Services Ltd,SOCIAL SERVICES RESIDENTIAL,Peoples Services,Residential Care - Ext Provider,A56114
London Borough of Sutton,16/04/2021,50003279,"2,896.46",Allswell Care Services Ltd,SOCIAL SERVICES RESIDENTIAL,Peoples Services,Residential Care - Ext Provider,A56114
London Borough of Sutton,16/04/2021,50003360,"4,095.00",Allswell Care Services Ltd,SOCIAL SERVICES RESIDENTIAL,Peoples Services,Residential Care - Ext Provider,A56114
London Borough of Sutton,16/04/2021,50003360,"2,275.00",Allswell Care Services Ltd,SOCIAL SERVICES RESIDENTIAL,Peoples Services,Residential Care - Ext Provider,A56114
London Borough of Sutton,16/04/2021,50003384,"1,272.69",Allswell Care Services Ltd,SOCIAL SERVICES RESIDENTIAL,Peoples Services,Residential Care - Ext Provider,A56114
London Borough of Sutton,16/04/2021,50003384,"2,290.83",Allswell Care Services Ltd,SOCIAL SERVICES RESIDENTIAL,Peoples Services,Residential Care - Ext Provider,A56114
London Borough of Sutton,31/12/2020,20000185,"8,250.00",Alzheimers Society Sutton Branch,GRANTS & EX GRATIA PAYMENTS,Peoples Services,Provider Contract Payments,A44290
London Borough of Sutton,31/03/2021,20000196,"22,754.40",Ambient Support Limited,SOCIAL SERVICES RESIDENTIAL,Peoples Services,Provider Contract Payments,A44290
London Borough of Sutton,31/03/2021,50005565,836,Ambient Support Limited,SOCIAL SERVICES RESIDENTIAL,Peoples Services,Supported Living,A56088
London Borough of Sutton,16/04/2021,50003115,"1,711.54",Anchor Trust,SOCIAL SERVICES RESIDENTIAL,Peoples Services,Residential Care - Ext Provider,A56114
London Borough of Sutton,16/04/2021,50003115,950.86,Anchor Trust,SOCIAL SERVICES RESIDENTIAL,Peoples Services,Residential Care - Ext Provider,A56114
London Borough of Sutton,23/04/2021,20001042,938.34,REDACTED - PERSONAL DATA,PLS LANDLORDS,Environment Housing and Neighbourhoods,Temporary Protection - Homeless Persons,A62028
London Borough of Sutton,28/02/2021,20001239,"14,184.80",Apex Housing Solutions Ltd,SOCIAL SERVICES DAY CARE,Environment Housing and Neighbourhoods,Bed & Breakfast,A56000
London Borough of Sutton,24/03/2021,20000167,754.2,Arthur Rai Medical Services Ltd,TEMP STAFF & CONSULTANCY,Health and Wellbeing,Agency Staff - Other,A10505
London Borough of Sutton,24/03/2021,20000168,"1,257.00",Arthur Rai Medical Services Ltd,TEMP STAFF & CONSULTANCY,Health and Wellbeing,Agency Staff - Other,A10505
London Borough of Sutton,24/03/2021,20000169,"1,257.00",Arthur Rai Medical Services Ltd,TEMP STAFF & CONSULTANCY,Health and Wellbeing,Agency Staff - Other,A10505
London Borough of Sutton,24/03/2021,20000170,754.2,Arthur Rai Medical Services Ltd,TEMP STAFF & CONSULTANCY,Health and Wellbeing,Agency Staff - Other,A10505
London Borough of Sutton,09/04/2021,20000976,"1,005.60",Arthur Rai Medical Services Ltd,TEMP STAFF & CONSULTANCY,Health and Wellbeing,Agency Staff - Other,A10505
London Borough of Sutton,31/03/2021,20000977,"1,273.76",Arthur Rai Medical Services Ltd,TEMP STAFF & CONSULTANCY,Health and Wellbeing,Agency Staff - Other,A10505
London Borough of Sutton,31/03/2021,20000978,"1,257.00",Arthur Rai Medical Services Ltd,TEMP STAFF & CONSULTANCY,Health and Wellbeing,Agency Staff - Other,A10505
London Borough of Sutton,07/04/2021,20000979,"1,030.74",Arthur Rai Medical Services Ltd,TEMP STAFF & CONSULTANCY,Health and Wellbeing,Agency Staff - Other,A10505
London Borough of Sutton,31/03/2021,20000980,"1,257.00",Arthur Rai Medical Services Ltd,TEMP STAFF & CONSULTANCY,Health and Wellbeing,Agency Staff - Other,A10505
London Borough of Sutton,31/03/2021,20000981,"1,257.00",Arthur Rai Medical Services Ltd,TEMP STAFF & CONSULTANCY,Health and Wellbeing,Agency Staff - Other,A10505
London Borough of Sutton,01/03/2021,20001020,"1,257.00",Arthur Rai Medical Services Ltd,TEMP STAFF & CONSULTANCY,Health and Wellbeing,Agency Staff - Other,A10505
London Borough of Sutton,21/04/2021,20001021,"1,273.76",Arthur Rai Medical Services Ltd,TEMP STAFF & CONSULTANCY,Health and Wellbeing,Agency Staff - Other,A10505
London Borough of Sutton,14/04/2021,20001022,"1,005.60",Arthur Rai Medical Services Ltd,TEMP STAFF & CONSULTANCY,Health and Wellbeing,Agency Staff - Other,A10505
London Borough of Sutton,21/04/2021,20001023,"1,005.60",Arthur Rai Medical Services Ltd,TEMP STAFF & CONSULTANCY,Health and Wellbeing,Agency Staff - Other,A10505
London Borough of Sutton,16/04/2021,50003255,"1,400.00",Aspen Place,SOCIAL SERVICES DAY CARE,Peoples Services,Nursing Care - Ext Provider,A56025
London Borough of Sutton,16/04/2021,50003255,"2,520.00",Aspen Place,SOCIAL SERVICES DAY CARE,Peoples Services,Nursing Care - Ext Provider,A56025
London Borough of Sutton,16/04/2021,50003368,"1,961.60",Aspens Charities,SOCIAL SERVICES RESIDENTIAL,Peoples Services,Residential Care - Ext Provider,A56114
London Borough of Sutton,16/04/2021,50003368,"3,530.88",Aspens Charities,SOCIAL SERVICES RESIDENTIAL,Peoples Services,Residential Care - Ext Provider,A56114
London Borough of Sutton,31/03/2021,50001025,"7,356.30",Aspirations Care Ltd,SOCIAL SERVICES DAY CARE,Peoples Services,Home Care Services,A56019
London Borough of Sutton,31/03/2021,50001025,"2,480.00",Aspirations Care Ltd,SOCIAL SERVICES DAY CARE,Peoples Services,Home Care Services,A56019
London Borough of Sutton,12/02/2021,20000889,"69,556.98",Atalian Servest Limited,PREMISES - CLEANING & LAUNDRY,Resources,Contract Cleaning,A27010
London Borough of Sutton,23/04/2021,20001014,796.62,Atalian Servest Limited,PREMISES - CLEANING & LAUNDRY,Environment Housing and Neighbourhoods,Purchases and Repairs Fixtures & Fittings,A25005
London Borough of Sutton,09/04/2021,20000176,"1,380.00",Athona Ltd,TEMP STAFF & CONSULTANCY,Peoples Services,Agency Staff - Other,A10505
London Borough of Sutton,09/04/2021,20000177,"1,380.00",Athona Ltd,TEMP STAFF & CONSULTANCY,Peoples Services,Agency Staff - Other,A10505
London Borough of Sutton,30/03/2021,20000267,"1,380.00",Athona Ltd,TEMP STAFF & CONSULTANCY,Peoples Services,Agency Staff - Other,A10505
London Borough of Sutton,17/02/2021,20000995,"1,380.00",Athona Ltd,TEMP STAFF & CONSULTANCY,Peoples Services,Agency Staff - Other,A10505
London Borough of Sutton,23/04/2021,20001061,"1,035.00",Athona Ltd,TEMP STAFF & CONSULTANCY,Peoples Services,Agency Staff - Other,A10505
London Borough of Sutton,28/04/2021,20001352,"-1,035.00",Athona Ltd,TEMP STAFF & CONSULTANCY,Peoples Services,Agency Staff - Other,A10505
London Borough of Sutton,01/03/2021,50001639,"4,793.93",Audax Supported Living CIC,CHILDREN'S SERVICES - RESIDENTIAL,Peoples Services,Approved Lodgings,A61000
London Borough of Sutton,16/04/2021,50002997,"2,944.75",Autism & Aspergers Care Services,SOCIAL SERVICES RESIDENTIAL,Peoples Services,Residential Care - Ext Provider,A56114
London Borough of Sutton,16/04/2021,50002997,"1,635.97",Autism & Aspergers Care Services,SOCIAL SERVICES RESIDENTIAL,Peoples Services,Residential Care - Ext Provider,A56114
London Borough of Sutton,12/04/2021,20000504,"1,800.00",Avis Appleton & Associates Ltd,SUNDRY SUPPLIER - ENV SERVICES,Environment Housing and Neighbourhoods,Fees-General-OS Scope,A92129
London Borough of Sutton,24/03/2021,20000403,"1,166.00",Axcis Education Recruitment,TEMP STAFF & CONSULTANCY,Peoples Services,One to One Care,A56108
London Borough of Sutton,07/04/2021,20000651,"1,320.00",Axcis Education Recruitment,TEMP STAFF & CONSULTANCY,Peoples Services,One to One Care,A56108
London Borough of Sutton,27/04/2021,50006846,"16,609.00",Ayai Care Limited,SOCIAL SERVICES DAY CARE,Peoples Services,Supported Living,A56088
London Borough of Sutton,16/04/2021,50003153,"1,594.40",Barchester Healthcare Homes Ltd,SOCIAL SERVICES RESIDENTIAL,Peoples Services,Nursing Care - Ext Provider,A56025
London Borough of Sutton,16/04/2021,50003153,"2,869.92",Barchester Healthcare Homes Ltd,SOCIAL SERVICES RESIDENTIAL,Peoples Services,Nursing Care - Ext Provider,A56025
London Borough of Sutton,12/04/2021,20000498,"14,122.51",Barnardo's,CHILDREN'S SERVICES - RESIDENTIAL,Peoples Services,Approved Lodgings,A61000
London Borough of Sutton,12/04/2021,50003836,661.5,Barnardo's,CHILDREN'S SERVICES - RESIDENTIAL,Peoples Services,Provider Contract Payments,A44290
London Borough of Sutton,12/04/2021,50003838,784,Barnardo's,CHILDREN'S SERVICES - RESIDENTIAL,Peoples Services,Provider Contract Payments,A44290
London Borough of Sutton,12/04/2021,50003840,661.5,Barnardo's,CHILDREN'S SERVICES - RESIDENTIAL,Peoples Services,Provider Contract Payments,A44290
London Borough of Sutton,31/03/2021,20000346,"99,934.25",Beddington Bid Ltd,SOCIAL SERVICES - DIRECT PAYMENTS,Development Growth and Regeneration,Other Supplies & Services,A44291
London Borough of Sutton,20/04/2021,20000847,"3,060.00",Beeches Tree Care,AGRICULTURAL & ESTATE SERVICES,Environment Housing and Neighbourhoods,Maintenance of trees,A28003
London Borough of Sutton,29/04/2021,20001303,918.47,Beeches Tree Care,AGRICULTURAL & ESTATE SERVICES,Environment Housing and Neighbourhoods,Tree Works,A56042
London Borough of Sutton,29/04/2021,20001364,"1,320.00",Beeches Tree Care,AGRICULTURAL & ESTATE SERVICES,Environment Housing and Neighbourhoods,Purchases and Repairs Fixtures & Fittings,A25005
London Borough of Sutton,29/04/2021,20001366,"1,560.00",Beeches Tree Care,AGRICULTURAL & ESTATE SERVICES,Environment Housing and Neighbourhoods,Purchases and Repairs Fixtures & Fittings,A25005
London Borough of Sutton,29/04/2021,20001368,"2,040.00",Beeches Tree Care,AGRICULTURAL & ESTATE SERVICES,Environment Housing and Neighbourhoods,Purchases and Repairs Fixtures & Fittings,A25005
London Borough of Sutton,29/04/2021,20001370,"3,120.00",Beeches Tree Care,AGRICULTURAL & ESTATE SERVICES,Environment Housing and Neighbourhoods,Purchases and Repairs Fixtures & Fittings,A25005
London Borough of Sutton,29/04/2021,20001371,"2,160.00",Beeches Tree Care,AGRICULTURAL & ESTATE SERVICES,Environment Housing and Neighbourhoods,Purchases and Repairs Fixtures & Fittings,A25005
London Borough of Sutton,15/04/2021,20000562,"1,024.83",Bellville-Homes Ltd,ACCOMMODATION BED & BREAKFAST,Environment Housing and Neighbourhoods,Temporary Protection - Homeless Persons,A62028
London Borough of Sutton,09/11/2020,20000237,"2,000.00",Bevan Brittan LLP,LEGAL & PROFESSIONAL SERVICES,Development Growth and Regeneration,Legal Services,A44025
London Borough of Sutton,25/03/2021,20000540,"5,983.50",Bevan Brittan LLP,LEGAL & PROFESSIONAL SERVICES,Development Growth and Regeneration,External Legal Fees,C20008
London Borough of Sutton,31/03/2021,20001150,"2,961.00",Bevan Brittan LLP,LEGAL & PROFESSIONAL SERVICES,Resources,Professional Fees,A44066
London Borough of Sutton,26/03/2021,50000470,"21,347.66",Beyond Autism,CHILDREN'S SERVICES - RESIDENTIAL,Peoples Services,Independent School Fees,A56002
London Borough of Sutton,26/03/2021,50000472,"21,347.66",Beyond Autism,CHILDREN'S SERVICES - RESIDENTIAL,Peoples Services,Independent School Fees,A56002
London Borough of Sutton,26/03/2021,50000474,"18,698.40",Beyond Autism,CHILDREN'S SERVICES - RESIDENTIAL,Peoples Services,Independent School Fees,A56002
London Borough of Sutton,26/03/2021,50000476,"21,347.66",Beyond Autism,CHILDREN'S SERVICES - RESIDENTIAL,Peoples Services,Independent School Fees,A56002
London Borough of Sutton,26/03/2021,50000478,"29,930.99",Beyond Autism,CHILDREN'S SERVICES - RESIDENTIAL,Peoples Services,Independent School Fees,A56002
London Borough of Sutton,26/03/2021,50000480,"21,347.66",Beyond Autism,CHILDREN'S SERVICES - RESIDENTIAL,Peoples Services,Independent School Fees,A56002
London Borough of Sutton,01/04/2021,20000287,627.31,BFS Group T/A Bidfood,FOOD & DRINK,Health and Wellbeing,Catering,A41000
London Borough of Sutton,23/04/2021,20001038,"8,384.05",Bibliotheca Ltd,BUSINESS & COMPUTER SYSTEMS,Health and Wellbeing,Equipment And Materials Repairs & Maintenance,A40051
London Borough of Sutton,08/04/2021,20000231,"5,000.00",Bloom Procurement Services Ltd,TEMP STAFF & CONSULTANCY,Resources,Consultancy Services,A56007
London Borough of Sutton,13/04/2021,20000508,"10,000.00",Bloom Procurement Services Ltd,TEMP STAFF & CONSULTANCY,Resources,Consultancy Services,A56007
London Borough of Sutton,14/04/2021,20000525,"9,000.00",Bloom Procurement Services Ltd,TEMP STAFF & CONSULTANCY,Resources,Consultancy Services,A56007
London Borough of Sutton,01/04/2021,50001080,"15,250.00",Blossom House Lower School,GRANTS & EX GRATIA PAYMENTS,Peoples Services,Independent School Fees,A56002
London Borough of Sutton,01/04/2021,50001081,"15,950.00",Blossom House Lower School,GRANTS & EX GRATIA PAYMENTS,Peoples Services,Independent School Fees,A56002
London Borough of Sutton,01/04/2021,50001082,"11,008.80",Blossom House Lower School,GRANTS & EX GRATIA PAYMENTS,Peoples Services,Independent School Fees,A56002
London Borough of Sutton,01/04/2021,50001083,"9,416.66",Blossom House Lower School,GRANTS & EX GRATIA PAYMENTS,Peoples Services,Independent School Fees,A56002
London Borough of Sutton,01/04/2021,50001084,"14,850.00",Blossom House Lower School,GRANTS & EX GRATIA PAYMENTS,Peoples Services,Independent School Fees,A56002
London Borough of Sutton,01/04/2021,50001085,"11,008.80",Blossom House Lower School,GRANTS & EX GRATIA PAYMENTS,Peoples Services,Independent School Fees,A56002
London Borough of Sutton,01/04/2021,50001086,"19,516.67",Blossom House Lower School,GRANTS & EX GRATIA PAYMENTS,Peoples Services,Independent School Fees,A56002
London Borough of Sutton,01/04/2021,50001087,"14,850.00",Blossom House Lower School,GRANTS & EX GRATIA PAYMENTS,Peoples Services,Independent School Fees,A56002
London Borough of Sutton,01/04/2021,50001088,"15,250.00",Blossom House Lower School,GRANTS & EX GRATIA PAYMENTS,Peoples Services,Independent School Fees,A56002
London Borough of Sutton,01/04/2021,50001089,"15,250.00",Blossom House Lower School,GRANTS & EX GRATIA PAYMENTS,Peoples Services,Independent School Fees,A56002
London Borough of Sutton,01/04/2021,50001090,"13,150.00",Blossom House Lower School,GRANTS & EX GRATIA PAYMENTS,Peoples Services,Independent School Fees,A56002
London Borough of Sutton,01/04/2021,50001091,"13,950.00",Blossom House Lower School,GRANTS & EX GRATIA PAYMENTS,Peoples Services,Independent School Fees,A56002
London Borough of Sutton,01/04/2021,50001092,"13,150.00",Blossom House Lower School,GRANTS & EX GRATIA PAYMENTS,Peoples Services,Independent School Fees,A56002
London Borough of Sutton,01/04/2021,50001093,"15,950.00",Blossom House Lower School,GRANTS & EX GRATIA PAYMENTS,Peoples Services,Independent School Fees,A56002
London Borough of Sutton,01/04/2021,50001094,"12,750.00",Blossom House Lower School,GRANTS & EX GRATIA PAYMENTS,Peoples Services,Independent School Fees,A56002
London Borough of Sutton,01/04/2021,50001095,"22,450.00",Blossom House Lower School,GRANTS & EX GRATIA PAYMENTS,Peoples Services,Independent School Fees,A56002
London Borough of Sutton,01/04/2021,50001096,"15,250.00",Blossom House Lower School,GRANTS & EX GRATIA PAYMENTS,Peoples Services,Independent School Fees,A56002
London Borough of Sutton,17/02/2020,20000275,"4,500.00",Bow Arts Trading Limited,TEMP STAFF & CONSULTANCY,Development Growth and Regeneration,Professional Fees,A44066
London Borough of Sutton,15/04/2021,20000692,125,Brandex Publishing Limited,IT EQUIPMENT MAINTENANCE,Health and Wellbeing,Subscriptions,A47010
London Borough of Sutton,15/04/2021,20000692,720,Brandex Publishing Limited,IT EQUIPMENT MAINTENANCE,Health and Wellbeing,Subscriptions,A47010
London Borough of Sutton,15/04/2021,20000692,496.25,Brandex Publishing Limited,IT EQUIPMENT MAINTENANCE,Health and Wellbeing,Subscriptions,A47010
London Borough of Sutton,26/03/2021,20000620,"156,555.35",Breyer Group Plc,CONSTRUCTION INDUSTRY,Development Growth and Regeneration,Payments to Contractors,C14000
London Borough of Sutton,24/03/2021,20000621,"27,791.29",Breyer Group Plc,CONSTRUCTION INDUSTRY,Development Growth and Regeneration,Payments to Contractors,C14000
London Borough of Sutton,16/04/2021,50003018,-425.73,Bridge House Care Centre,SOCIAL SERVICES RESIDENTIAL,Peoples Services,Nursing Care - 3rd party top up payment,A56023
London Borough of Sutton,16/04/2021,50003018,-236.51,Bridge House Care Centre,SOCIAL SERVICES RESIDENTIAL,Peoples Services,Nursing Care - 3rd party top up payment,A56023
London Borough of Sutton,16/04/2021,50003079,"2,322.00",Bridge House Care Centre,SOCIAL SERVICES RESIDENTIAL,Peoples Services,Nursing Care - Ext Provider,A56025
London Borough of Sutton,16/04/2021,50003079,"1,290.00",Bridge House Care Centre,SOCIAL SERVICES RESIDENTIAL,Peoples Services,Nursing Care - Ext Provider,A56025
London Borough of Sutton,16/04/2021,50003079,-472.94,Bridge House Care Centre,SOCIAL SERVICES RESIDENTIAL,Peoples Services,Nursing Care - 3rd party top up payment,A56023
London Borough of Sutton,16/04/2021,50003079,-262.74,Bridge House Care Centre,SOCIAL SERVICES RESIDENTIAL,Peoples Services,Nursing Care - 3rd party top up payment,A56023
London Borough of Sutton,16/04/2021,50003093,"1,269.76",Bridge House Care Centre,SOCIAL SERVICES RESIDENTIAL,Peoples Services,Nursing Care - Ext Provider,A56025
London Borough of Sutton,16/04/2021,50003093,"2,285.56",Bridge House Care Centre,SOCIAL SERVICES RESIDENTIAL,Peoples Services,Nursing Care - Ext Provider,A56025
London Borough of Sutton,16/04/2021,50003093,-225.94,Bridge House Care Centre,SOCIAL SERVICES RESIDENTIAL,Peoples Services,Nursing Care - 3rd party top up payment,A56023
London Borough of Sutton,16/04/2021,50003093,-406.7,Bridge House Care Centre,SOCIAL SERVICES RESIDENTIAL,Peoples Services,Nursing Care - 3rd party top up payment,A56023
London Borough of Sutton,16/04/2021,50003182,"2,232.41",Bridge House Care Centre,SOCIAL SERVICES RESIDENTIAL,Peoples Services,Nursing Care - Ext Provider,A56025
London Borough of Sutton,16/04/2021,50003182,"1,240.23",Bridge House Care Centre,SOCIAL SERVICES RESIDENTIAL,Peoples Services,Nursing Care - Ext Provider,A56025
London Borough of Sutton,16/04/2021,50003182,-406.7,Bridge House Care Centre,SOCIAL SERVICES RESIDENTIAL,Peoples Services,Nursing Care - 3rd party top up payment,A56023
London Borough of Sutton,16/04/2021,50003182,-225.94,Bridge House Care Centre,SOCIAL SERVICES RESIDENTIAL,Peoples Services,Nursing Care - 3rd party top up payment,A56023
London Borough of Sutton,16/04/2021,50003250,"1,333.98",Bridge House Care Centre,SOCIAL SERVICES RESIDENTIAL,Peoples Services,Nursing Care - Ext Provider,A56025
London Borough of Sutton,16/04/2021,50003250,741.1,Bridge House Care Centre,SOCIAL SERVICES RESIDENTIAL,Peoples Services,Nursing Care - Ext Provider,A56025
London Borough of Sutton,16/04/2021,50003309,"2,305.47",Bridge House Care Centre,SOCIAL SERVICES RESIDENTIAL,Peoples Services,Nursing Care - Ext Provider,A56025
London Borough of Sutton,16/04/2021,50003309,"1,280.81",Bridge House Care Centre,SOCIAL SERVICES RESIDENTIAL,Peoples Services,Nursing Care - Ext Provider,A56025
London Borough of Sutton,16/04/2021,50003309,-425.73,Bridge House Care Centre,SOCIAL SERVICES RESIDENTIAL,Peoples Services,Nursing Care - 3rd party top up payment,A56023
London Borough of Sutton,16/04/2021,50003309,-236.51,Bridge House Care Centre,SOCIAL SERVICES RESIDENTIAL,Peoples Services,Nursing Care - 3rd party top up payment,A56023
London Borough of Sutton,16/04/2021,50003326,"2,322.00",Bridge House Care Centre,SOCIAL SERVICES RESIDENTIAL,Peoples Services,Nursing Care - Ext Provider,A56025
London Borough of Sutton,16/04/2021,50003326,"1,290.00",Bridge House Care Centre,SOCIAL SERVICES RESIDENTIAL,Peoples Services,Nursing Care - Ext Provider,A56025
London Borough of Sutton,16/04/2021,50003326,-472.94,Bridge House Care Centre,SOCIAL SERVICES RESIDENTIAL,Peoples Services,Nursing Care - 3rd party top up payment,A56023
London Borough of Sutton,16/04/2021,50003326,-262.74,Bridge House Care Centre,SOCIAL SERVICES RESIDENTIAL,Peoples Services,Nursing Care - 3rd party top up payment,A56023
London Borough of Sutton,16/04/2021,50003327,"1,289.89",Bridge House Care Centre,SOCIAL SERVICES RESIDENTIAL,Peoples Services,Nursing Care - Ext Provider,A56025
London Borough of Sutton,16/04/2021,50003327,"2,321.79",Bridge House Care Centre,SOCIAL SERVICES RESIDENTIAL,Peoples Services,Nursing Care - Ext Provider,A56025
London Borough of Sutton,16/04/2021,50003327,-472.94,Bridge House Care Centre,SOCIAL SERVICES RESIDENTIAL,Peoples Services,Nursing Care - 3rd party top up payment,A56023
London Borough of Sutton,16/04/2021,50003327,-262.74,Bridge House Care Centre,SOCIAL SERVICES RESIDENTIAL,Peoples Services,Nursing Care - 3rd party top up payment,A56023
London Borough of Sutton,16/04/2021,50003328,"2,251.44",Bridge House Care Centre,SOCIAL SERVICES RESIDENTIAL,Peoples Services,Nursing Care - Ext Provider,A56025
London Borough of Sutton,16/04/2021,50003328,"1,250.80",Bridge House Care Centre,SOCIAL SERVICES RESIDENTIAL,Peoples Services,Nursing Care - Ext Provider,A56025
London Borough of Sutton,16/04/2021,50003328,-425.73,Bridge House Care Centre,SOCIAL SERVICES RESIDENTIAL,Peoples Services,Nursing Care - 3rd party top up payment,A56023
London Borough of Sutton,16/04/2021,50003328,-236.51,Bridge House Care Centre,SOCIAL SERVICES RESIDENTIAL,Peoples Services,Nursing Care - 3rd party top up payment,A56023
London Borough of Sutton,16/04/2021,50003348,-472.94,Bridge House Care Centre,SOCIAL SERVICES RESIDENTIAL,Peoples Services,Nursing Care - 3rd party top up payment,A56023
London Borough of Sutton,16/04/2021,50003348,-262.74,Bridge House Care Centre,SOCIAL SERVICES RESIDENTIAL,Peoples Services,Nursing Care - 3rd party top up payment,A56023
London Borough of Sutton,16/04/2021,50003348,"1,289.89",Bridge House Care Centre,SOCIAL SERVICES RESIDENTIAL,Peoples Services,Nursing Care - Ext Provider,A56025
London Borough of Sutton,16/04/2021,50003348,"2,321.79",Bridge House Care Centre,SOCIAL SERVICES RESIDENTIAL,Peoples Services,Nursing Care - Ext Provider,A56025
London Borough of Sutton,16/04/2021,50003349,"2,322.00",Bridge House Care Centre,SOCIAL SERVICES RESIDENTIAL,Peoples Services,Nursing Care - Ext Provider,A56025
London Borough of Sutton,16/04/2021,50003349,"1,290.00",Bridge House Care Centre,SOCIAL SERVICES RESIDENTIAL,Peoples Services,Nursing Care - Ext Provider,A56025
London Borough of Sutton,16/04/2021,50003349,-472.94,Bridge House Care Centre,SOCIAL SERVICES RESIDENTIAL,Peoples Services,Nursing Care - 3rd party top up payment,A56023
London Borough of Sutton,16/04/2021,50003349,-262.74,Bridge House Care Centre,SOCIAL SERVICES RESIDENTIAL,Peoples Services,Nursing Care - 3rd party top up payment,A56023
London Borough of Sutton,16/04/2021,50003383,"1,038.63",Bridge House Care Centre,SOCIAL SERVICES RESIDENTIAL,Peoples Services,Nursing Care - Ext Provider,A56025
London Borough of Sutton,16/04/2021,50003383,"1,869.53",Bridge House Care Centre,SOCIAL SERVICES RESIDENTIAL,Peoples Services,Nursing Care - Ext Provider,A56025
London Borough of Sutton,29/04/2021,50007924,782,Brindishe Manor School,GRANTS & EX GRATIA PAYMENTS,Peoples Services,Payments to Schools,A51013
London Borough of Sutton,19/02/2021,20000702,584.95,British Gas,UTILITIES,Health and Wellbeing,Gas,A21003
London Borough of Sutton,06/04/2021,20000820,966.31,British Gas,UTILITIES,Health and Wellbeing,Electricity,A21000
London Borough of Sutton,08/02/2021,20001015,"-1,508.52",British Gas,UTILITIES,Health and Wellbeing,Electricity,A21000
London Borough of Sutton,16/03/2021,20001018,-934.41,British Gas,UTILITIES,Health and Wellbeing,Electricity,A21000
London Borough of Sutton,16/03/2021,20001170,916.63,British Gas,UTILITIES,Health and Wellbeing,Electricity,A21000
London Borough of Sutton,16/04/2021,50003030,-479.57,British Home & Hospital For Incurables,SOCIAL SERVICES RESIDENTIAL,Peoples Services,Nursing Care - Client Cont ( Net paymt ),A56024
London Borough of Sutton,16/04/2021,50003030,"1,605.78",British Home & Hospital For Incurables,SOCIAL SERVICES RESIDENTIAL,Peoples Services,Nursing Care - Ext Provider,A56025
London Borough of Sutton,16/04/2021,50003030,892.1,British Home & Hospital For Incurables,SOCIAL SERVICES RESIDENTIAL,Peoples Services,Nursing Care - Ext Provider,A56025
London Borough of Sutton,16/04/2021,50003030,-266.43,British Home & Hospital For Incurables,SOCIAL SERVICES RESIDENTIAL,Peoples Services,Nursing Care - Client Cont ( Net paymt ),A56024
London Borough of Sutton,16/04/2021,50003257,-262.74,British Home & Hospital For Incurables,SOCIAL SERVICES RESIDENTIAL,Peoples Services,Nursing Care - 3rd party top up payment,A56023
London Borough of Sutton,16/04/2021,50003257,-472.94,British Home & Hospital For Incurables,SOCIAL SERVICES RESIDENTIAL,Peoples Services,Nursing Care - 3rd party top up payment,A56023
London Borough of Sutton,16/04/2021,50003257,"2,257.15",British Home & Hospital For Incurables,SOCIAL SERVICES RESIDENTIAL,Peoples Services,Nursing Care - Ext Provider,A56025
London Borough of Sutton,16/04/2021,50003257,"1,253.97",British Home & Hospital For Incurables,SOCIAL SERVICES RESIDENTIAL,Peoples Services,Nursing Care - Ext Provider,A56025
London Borough of Sutton,16/04/2021,50003022,"2,412.41",Broadlands Nursing Home,SOCIAL SERVICES RESIDENTIAL,Peoples Services,Nursing Care - Ext Provider,A56025
London Borough of Sutton,16/04/2021,50003022,"1,340.23",Broadlands Nursing Home,SOCIAL SERVICES RESIDENTIAL,Peoples Services,Nursing Care - Ext Provider,A56025
London Borough of Sutton,16/04/2021,50003022,-406.7,Broadlands Nursing Home,SOCIAL SERVICES RESIDENTIAL,Peoples Services,Nursing Care - 3rd party top up payment,A56023
London Borough of Sutton,16/04/2021,50003022,-225.94,Broadlands Nursing Home,SOCIAL SERVICES RESIDENTIAL,Peoples Services,Nursing Care - 3rd party top up payment,A56023
London Borough of Sutton,16/04/2021,50003185,"2,305.47",Broadlands Nursing Home,SOCIAL SERVICES RESIDENTIAL,Peoples Services,Nursing Care - Ext Provider,A56025
London Borough of Sutton,16/04/2021,50003185,"1,280.81",Broadlands Nursing Home,SOCIAL SERVICES RESIDENTIAL,Peoples Services,Nursing Care - Ext Provider,A56025
London Borough of Sutton,16/04/2021,50003185,-425.73,Broadlands Nursing Home,SOCIAL SERVICES RESIDENTIAL,Peoples Services,Nursing Care - 3rd party top up payment,A56023
London Borough of Sutton,16/04/2021,50003185,-236.51,Broadlands Nursing Home,SOCIAL SERVICES RESIDENTIAL,Peoples Services,Nursing Care - 3rd party top up payment,A56023
London Borough of Sutton,16/04/2021,50003244,"2,277.67",Broadlands Nursing Home,SOCIAL SERVICES RESIDENTIAL,Peoples Services,Nursing Care - Ext Provider,A56025
London Borough of Sutton,16/04/2021,50003244,"1,265.37",Broadlands Nursing Home,SOCIAL SERVICES RESIDENTIAL,Peoples Services,Nursing Care - Ext Provider,A56025
London Borough of Sutton,16/04/2021,50003244,-406.7,Broadlands Nursing Home,SOCIAL SERVICES RESIDENTIAL,Peoples Services,Nursing Care - 3rd party top up payment,A56023
London Borough of Sutton,16/04/2021,50003244,-225.94,Broadlands Nursing Home,SOCIAL SERVICES RESIDENTIAL,Peoples Services,Nursing Care - 3rd party top up payment,A56023
London Borough of Sutton,16/04/2021,50003310,"3,870.00",Broadlands Nursing Home,SOCIAL SERVICES RESIDENTIAL,Peoples Services,Respite Care,A56116
London Borough of Sutton,16/04/2021,50003310,-788.23,Broadlands Nursing Home,SOCIAL SERVICES RESIDENTIAL,Peoples Services,Nursing Care - 3rd party top up payment,A56023
London Borough of Sutton,16/04/2021,50003285,"1,290.00",BUPA Care Services,SOCIAL SERVICES RESIDENTIAL,Peoples Services,Nursing Care - Ext Provider,A56025
London Borough of Sutton,16/04/2021,50003285,"2,322.00",BUPA Care Services,SOCIAL SERVICES RESIDENTIAL,Peoples Services,Nursing Care - Ext Provider,A56025
London Borough of Sutton,16/04/2021,50003285,-472.94,BUPA Care Services,SOCIAL SERVICES RESIDENTIAL,Peoples Services,Nursing Care - 3rd party top up payment,A56023
London Borough of Sutton,16/04/2021,50003285,-262.74,BUPA Care Services,SOCIAL SERVICES RESIDENTIAL,Peoples Services,Nursing Care - 3rd party top up payment,A56023
London Borough of Sutton,16/04/2021,50003036,"2,794.39",Butterfly's Care Homes Ltd,SOCIAL SERVICES RESIDENTIAL,Peoples Services,Residential Care - Ext Provider,A56114
London Borough of Sutton,16/04/2021,50003036,"5,029.89",Butterfly's Care Homes Ltd,SOCIAL SERVICES RESIDENTIAL,Peoples Services,Residential Care - Ext Provider,A56114
London Borough of Sutton,01/04/2021,20000432,"86,993.48",Buxton Building Contractors Ltd,CONSTRUCTION INDUSTRY,Development Growth and Regeneration,Payments to Contractors,C14000
London Borough of Sutton,09/03/2021,50000416,"22,898.03",Cambian Asperger Syndrome Services Ltd,CHILDREN'S SERVICES - RESIDENTIAL,Peoples Services,Independent School Fees,A56002
London Borough of Sutton,09/03/2021,50000417,"6,500.00",Cambian Asperger Syndrome Services Ltd,CHILDREN'S SERVICES - RESIDENTIAL,Peoples Services,Independent School Fees,A56002
London Borough of Sutton,09/03/2021,50000418,"17,586.77",Cambian Asperger Syndrome Services Ltd,CHILDREN'S SERVICES - RESIDENTIAL,Peoples Services,Independent School Fees,A56002
London Borough of Sutton,16/04/2021,50003003,"2,288.04",Cambian Asperger Syndrome Services Ltd,CHILDREN'S SERVICES - RESIDENTIAL,Peoples Services,Interim Placements - Ext Provider,A56102
London Borough of Sutton,23/03/2021,50000425,"4,430.90",Canbury School LTD,GRANTS & EX GRATIA PAYMENTS,Peoples Services,Independent School Fees,A56002
London Borough of Sutton,16/04/2021,50003039,131.61,Canterbury Oast Trust,SOCIAL SERVICES RESIDENTIAL,Peoples Services,One to One Care,A56108
London Borough of Sutton,16/04/2021,50003039,"1,397.70",Canterbury Oast Trust,SOCIAL SERVICES RESIDENTIAL,Peoples Services,Residential Care - Ext Provider,A56114
London Borough of Sutton,16/04/2021,50003039,"2,515.86",Canterbury Oast Trust,SOCIAL SERVICES RESIDENTIAL,Peoples Services,Residential Care - Ext Provider,A56114
London Borough of Sutton,16/04/2021,50003039,73.11,Canterbury Oast Trust,SOCIAL SERVICES RESIDENTIAL,Peoples Services,One to One Care,A56108
London Borough of Sutton,16/04/2021,50003039,-329.4,Canterbury Oast Trust,SOCIAL SERVICES RESIDENTIAL,Peoples Services,Residential Care - Client Cont ( Net Paymt ),A56113
London Borough of Sutton,16/04/2021,50003039,-592.92,Canterbury Oast Trust,SOCIAL SERVICES RESIDENTIAL,Peoples Services,Residential Care - Client Cont ( Net Paymt ),A56113
London Borough of Sutton,05/03/2021,20000713,"12,700.75",Capita Business Services Ltd,BUSINESS & COMPUTER SYSTEMS,Health and Wellbeing,Equipment And Materials Purchase,A40000
London Borough of Sutton,29/03/2021,50001064,"10,185.71",Care Advocates Ltd,MANAGEMENT & TRAINING SERVICES,Peoples Services,Supported Living,A56088
London Borough of Sutton,16/04/2021,50003119,"1,142.86",Care Concern Group,SOCIAL SERVICES RESIDENTIAL,Peoples Services,Residential Care - Ext Provider,A56114
London Borough of Sutton,16/04/2021,50003119,"2,057.14",Care Concern Group,SOCIAL SERVICES RESIDENTIAL,Peoples Services,Residential Care - Ext Provider,A56114
London Borough of Sutton,16/04/2021,50003295,"2,334.73",Care Direct Uk Ltd,SOCIAL SERVICES RESIDENTIAL,Peoples Services,Residential Care - Ext Provider,A56114
London Borough of Sutton,16/04/2021,50003295,"1,297.07",Care Direct Uk Ltd,SOCIAL SERVICES RESIDENTIAL,Peoples Services,Residential Care - Ext Provider,A56114
London Borough of Sutton,01/03/2021,50001014,"4,732.00",Care Unlimited Domcare Ltd,SOCIAL SERVICES DAY CARE,Peoples Services,Supported Living,A56088
London Borough of Sutton,16/04/2021,50003223,"2,322.00",Care Unlimited Group Ltd,SOCIAL SERVICES DAY CARE,Peoples Services,Nursing Care - Ext Provider,A56025
London Borough of Sutton,16/04/2021,50003223,"1,290.00",Care Unlimited Group Ltd,SOCIAL SERVICES DAY CARE,Peoples Services,Nursing Care - Ext Provider,A56025
London Borough of Sutton,16/04/2021,50003223,-472.94,Care Unlimited Group Ltd,SOCIAL SERVICES DAY CARE,Peoples Services,Nursing Care - 3rd party top up payment,A56023
London Borough of Sutton,16/04/2021,50003223,-262.74,Care Unlimited Group Ltd,SOCIAL SERVICES DAY CARE,Peoples Services,Nursing Care - 3rd party top up payment,A56023
London Borough of Sutton,07/04/2021,20000506,924,Caremark (Sutton),SOCIAL SERVICES DAY CARE,Peoples Services,Home Care Services,A56019
London Borough of Sutton,07/04/2021,20000507,954,Caremark (Sutton),SOCIAL SERVICES DAY CARE,Peoples Services,Home Care Services,A56019
London Borough of Sutton,07/04/2021,20000574,504,Caremark (Sutton),SOCIAL SERVICES DAY CARE,Peoples Services,Home Care Services,A56019
London Borough of Sutton,20/04/2021,20000906,909,Caremark (Sutton),SOCIAL SERVICES DAY CARE,Peoples Services,Home Care Services,A56019
London Borough of Sutton,20/04/2021,20000925,504,Caremark (Sutton),SOCIAL SERVICES DAY CARE,Peoples Services,Home Care Services,A56019
London Borough of Sutton,07/03/2021,50005919,767.03,Caremark (Sutton),SOCIAL SERVICES DAY CARE,Peoples Services,Home Care Services,A56019
London Borough of Sutton,07/03/2021,50005919,61.5,Caremark (Sutton),SOCIAL SERVICES DAY CARE,Peoples Services,Home Care Services,A56019
London Borough of Sutton,14/03/2021,50005920,767.03,Caremark (Sutton),SOCIAL SERVICES DAY CARE,Peoples Services,Home Care Services,A56019
London Borough of Sutton,14/03/2021,50005920,61.5,Caremark (Sutton),SOCIAL SERVICES DAY CARE,Peoples Services,Home Care Services,A56019
London Borough of Sutton,28/02/2021,50005921,761.9,Caremark (Sutton),SOCIAL SERVICES DAY CARE,Peoples Services,Home Care Services,A56019
London Borough of Sutton,28/02/2021,50005921,61.5,Caremark (Sutton),SOCIAL SERVICES DAY CARE,Peoples Services,Home Care Services,A56019
London Borough of Sutton,28/02/2021,50005932,767.03,Caremark (Sutton),SOCIAL SERVICES DAY CARE,Peoples Services,Home Care Services,A56019
London Borough of Sutton,28/02/2021,50005932,30.75,Caremark (Sutton),SOCIAL SERVICES DAY CARE,Peoples Services,Home Care Services,A56019
London Borough of Sutton,07/03/2021,50005933,767.03,Caremark (Sutton),SOCIAL SERVICES DAY CARE,Peoples Services,Home Care Services,A56019
London Borough of Sutton,07/03/2021,50005933,30.75,Caremark (Sutton),SOCIAL SERVICES DAY CARE,Peoples Services,Home Care Services,A56019
London Borough of Sutton,14/03/2021,50005934,767.03,Caremark (Sutton),SOCIAL SERVICES DAY CARE,Peoples Services,Home Care Services,A56019
London Borough of Sutton,14/03/2021,50005934,30.75,Caremark (Sutton),SOCIAL SERVICES DAY CARE,Peoples Services,Home Care Services,A56019
London Borough of Sutton,21/03/2021,50005935,767.03,Caremark (Sutton),SOCIAL SERVICES DAY CARE,Peoples Services,Home Care Services,A56019
London Borough of Sutton,21/03/2021,50005935,30.75,Caremark (Sutton),SOCIAL SERVICES DAY CARE,Peoples Services,Home Care Services,A56019
London Borough of Sutton,28/03/2021,50005936,767.03,Caremark (Sutton),SOCIAL SERVICES DAY CARE,Peoples Services,Home Care Services,A56019
London Borough of Sutton,28/03/2021,50005936,30.75,Caremark (Sutton),SOCIAL SERVICES DAY CARE,Peoples Services,Home Care Services,A56019
London Borough of Sutton,04/04/2021,50005937,460.59,Caremark (Sutton),SOCIAL SERVICES DAY CARE,Peoples Services,Home Care Services,A56019
London Borough of Sutton,04/04/2021,50005937,319.83,Caremark (Sutton),SOCIAL SERVICES DAY CARE,Peoples Services,Home Care Services,A56019
London Borough of Sutton,04/04/2021,50005937,30.75,Caremark (Sutton),SOCIAL SERVICES DAY CARE,Peoples Services,Home Care Services,A56019
London Borough of Sutton,18/04/2021,50005938,767.03,Caremark (Sutton),SOCIAL SERVICES DAY CARE,Peoples Services,Home Care Services,A56019
London Borough of Sutton,18/04/2021,50005938,30.75,Caremark (Sutton),SOCIAL SERVICES DAY CARE,Peoples Services,Home Care Services,A56019
London Borough of Sutton,21/03/2021,50005939,767.03,Caremark (Sutton),SOCIAL SERVICES DAY CARE,Peoples Services,Home Care Services,A56019
London Borough of Sutton,21/03/2021,50005939,61.5,Caremark (Sutton),SOCIAL SERVICES DAY CARE,Peoples Services,Home Care Services,A56019
London Borough of Sutton,28/03/2021,50005940,767.03,Caremark (Sutton),SOCIAL SERVICES DAY CARE,Peoples Services,Home Care Services,A56019
London Borough of Sutton,28/03/2021,50005940,61.5,Caremark (Sutton),SOCIAL SERVICES DAY CARE,Peoples Services,Home Care Services,A56019
London Borough of Sutton,04/04/2021,50005941,457.59,Caremark (Sutton),SOCIAL SERVICES DAY CARE,Peoples Services,Home Care Services,A56019
London Borough of Sutton,04/04/2021,50005941,319.83,Caremark (Sutton),SOCIAL SERVICES DAY CARE,Peoples Services,Home Care Services,A56019
London Borough of Sutton,04/04/2021,50005941,61.5,Caremark (Sutton),SOCIAL SERVICES DAY CARE,Peoples Services,Home Care Services,A56019
London Borough of Sutton,18/04/2021,50005942,767.03,Caremark (Sutton),SOCIAL SERVICES DAY CARE,Peoples Services,Home Care Services,A56019
London Borough of Sutton,18/04/2021,50005942,61.5,Caremark (Sutton),SOCIAL SERVICES DAY CARE,Peoples Services,Home Care Services,A56019
London Borough of Sutton,14/03/2021,50005957,"1,833.50",Caremark (Sutton),SOCIAL SERVICES DAY CARE,Peoples Services,Home Care Services,A56019
London Borough of Sutton,21/03/2021,50005958,"1,833.50",Caremark (Sutton),SOCIAL SERVICES DAY CARE,Peoples Services,Home Care Services,A56019
London Borough of Sutton,28/02/2021,50005959,"1,833.50",Caremark (Sutton),SOCIAL SERVICES DAY CARE,Peoples Services,Home Care Services,A56019
London Borough of Sutton,07/03/2021,50005960,"1,811.00",Caremark (Sutton),SOCIAL SERVICES DAY CARE,Peoples Services,Home Care Services,A56019
London Borough of Sutton,28/03/2021,50005961,"1,833.50",Caremark (Sutton),SOCIAL SERVICES DAY CARE,Peoples Services,Home Care Services,A56019
London Borough of Sutton,04/04/2021,50005962,738,Caremark (Sutton),SOCIAL SERVICES DAY CARE,Peoples Services,Home Care Services,A56019
London Borough of Sutton,04/04/2021,50005962,"1,121.50",Caremark (Sutton),SOCIAL SERVICES DAY CARE,Peoples Services,Home Care Services,A56019
London Borough of Sutton,18/04/2021,50005963,"1,360.25",Caremark (Sutton),SOCIAL SERVICES DAY CARE,Peoples Services,Home Care Services,A56019
London Borough of Sutton,14/03/2021,50005975,949.99,Caremark (Sutton),SOCIAL SERVICES DAY CARE,Peoples Services,Home Care Services,A56019
London Borough of Sutton,14/03/2021,50005975,140.03,Caremark (Sutton),SOCIAL SERVICES DAY CARE,Peoples Services,Home Care Services,A56019
London Borough of Sutton,21/03/2021,50005976,949.99,Caremark (Sutton),SOCIAL SERVICES DAY CARE,Peoples Services,Home Care Services,A56019
London Borough of Sutton,21/03/2021,50005976,140.03,Caremark (Sutton),SOCIAL SERVICES DAY CARE,Peoples Services,Home Care Services,A56019
London Borough of Sutton,28/02/2021,50005977,949.99,Caremark (Sutton),SOCIAL SERVICES DAY CARE,Peoples Services,Home Care Services,A56019
London Borough of Sutton,28/02/2021,50005977,140.03,Caremark (Sutton),SOCIAL SERVICES DAY CARE,Peoples Services,Home Care Services,A56019
London Borough of Sutton,07/03/2021,50005978,949.99,Caremark (Sutton),SOCIAL SERVICES DAY CARE,Peoples Services,Home Care Services,A56019
London Borough of Sutton,07/03/2021,50005978,140.03,Caremark (Sutton),SOCIAL SERVICES DAY CARE,Peoples Services,Home Care Services,A56019
London Borough of Sutton,28/03/2021,50005979,949.99,Caremark (Sutton),SOCIAL SERVICES DAY CARE,Peoples Services,Home Care Services,A56019
London Borough of Sutton,28/03/2021,50005979,140.03,Caremark (Sutton),SOCIAL SERVICES DAY CARE,Peoples Services,Home Care Services,A56019
London Borough of Sutton,04/04/2021,50005980,566.83,Caremark (Sutton),SOCIAL SERVICES DAY CARE,Peoples Services,Home Care Services,A56019
London Borough of Sutton,04/04/2021,50005980,396.14,Caremark (Sutton),SOCIAL SERVICES DAY CARE,Peoples Services,Home Care Services,A56019
London Borough of Sutton,04/04/2021,50005980,120.04,Caremark (Sutton),SOCIAL SERVICES DAY CARE,Peoples Services,Home Care Services,A56019
London Borough of Sutton,04/04/2021,50005980,20.01,Caremark (Sutton),SOCIAL SERVICES DAY CARE,Peoples Services,Home Care Services,A56019
London Borough of Sutton,18/04/2021,50005981,949.99,Caremark (Sutton),SOCIAL SERVICES DAY CARE,Peoples Services,Home Care Services,A56019
London Borough of Sutton,18/04/2021,50005981,140.03,Caremark (Sutton),SOCIAL SERVICES DAY CARE,Peoples Services,Home Care Services,A56019
London Borough of Sutton,14/04/2021,50002993,"7,472.14",Caremore Group Ltd,CHILDREN'S SERVICES - FOSTERING & ADOPTION SERVICES,Peoples Services,Approved Lodgings,A61000
London Borough of Sutton,09/04/2021,20000597,"4,856.00",Careoline Carers Services Ltd,CHILDREN'S SERVICES - DAY CARE,Peoples Services,Home Care Services,A56019
London Borough of Sutton,19/03/2021,20000956,"2,303.88",Careoline Carers Services Ltd,CHILDREN'S SERVICES - DAY CARE,Peoples Services,C.C.A Travel & Subsistance,A61010
London Borough of Sutton,01/03/2021,50000995,"2,092.50",Caretech Community Services Ltd,SOCIAL SERVICES RESIDENTIAL,Peoples Services,One to One Care,A56108
London Borough of Sutton,01/04/2021,50001889,591.3,Caretech Community Services Ltd,SOCIAL SERVICES RESIDENTIAL,Peoples Services,One to One Care,A56108
London Borough of Sutton,16/04/2021,50003170,"2,027.20",Caretech Community Services Ltd,SOCIAL SERVICES RESIDENTIAL,Peoples Services,Residential Care - Ext Provider,A56114
London Borough of Sutton,16/04/2021,50003170,"3,648.96",Caretech Community Services Ltd,SOCIAL SERVICES RESIDENTIAL,Peoples Services,Residential Care - Ext Provider,A56114
London Borough of Sutton,16/04/2021,50003170,-382.76,Caretech Community Services Ltd,SOCIAL SERVICES RESIDENTIAL,Peoples Services,Residential Care - Client Cont ( Net Paymt ),A56113
London Borough of Sutton,16/04/2021,50003170,-212.64,Caretech Community Services Ltd,SOCIAL SERVICES RESIDENTIAL,Peoples Services,Residential Care - Client Cont ( Net Paymt ),A56113
London Borough of Sutton,16/04/2021,50003258,"3,556.03",Caretech Community Services Ltd,SOCIAL SERVICES RESIDENTIAL,Peoples Services,Residential Care - Ext Provider,A56114
London Borough of Sutton,16/04/2021,50003258,"1,975.57",Caretech Community Services Ltd,SOCIAL SERVICES RESIDENTIAL,Peoples Services,Residential Care - Ext Provider,A56114
London Borough of Sutton,16/04/2021,50003282,"3,557.57",Caretech Community Services Ltd,SOCIAL SERVICES RESIDENTIAL,Peoples Services,Residential Care - Ext Provider,A56114
London Borough of Sutton,16/04/2021,50003282,"1,976.43",Caretech Community Services Ltd,SOCIAL SERVICES RESIDENTIAL,Peoples Services,Residential Care - Ext Provider,A56114
London Borough of Sutton,16/04/2021,50003282,-317.96,Caretech Community Services Ltd,SOCIAL SERVICES RESIDENTIAL,Peoples Services,Residential Care - Client Cont ( Net Paymt ),A56113
London Borough of Sutton,16/04/2021,50003282,-176.64,Caretech Community Services Ltd,SOCIAL SERVICES RESIDENTIAL,Peoples Services,Residential Care - Client Cont ( Net Paymt ),A56113
London Borough of Sutton,16/04/2021,50003283,"3,557.57",Caretech Community Services Ltd,SOCIAL SERVICES RESIDENTIAL,Peoples Services,Residential Care - Ext Provider,A56114
London Borough of Sutton,16/04/2021,50003283,"1,976.43",Caretech Community Services Ltd,SOCIAL SERVICES RESIDENTIAL,Peoples Services,Residential Care - Ext Provider,A56114
London Borough of Sutton,16/04/2021,50003283,-151.07,Caretech Community Services Ltd,SOCIAL SERVICES RESIDENTIAL,Peoples Services,Residential Care - Client Cont ( Net Paymt ),A56113
London Borough of Sutton,16/04/2021,50003283,-271.93,Caretech Community Services Ltd,SOCIAL SERVICES RESIDENTIAL,Peoples Services,Residential Care - Client Cont ( Net Paymt ),A56113
London Borough of Sutton,31/03/2021,50002987,701.79,Caridon Young Living Ltd,CHILDREN'S SERVICES - RESIDENTIAL,Peoples Services,Approved Lodgings,A61000
London Borough of Sutton,31/03/2021,50002987,"4,470.70",Caridon Young Living Ltd,CHILDREN'S SERVICES - RESIDENTIAL,Peoples Services,Approved Lodgings,A61000
London Borough of Sutton,31/03/2021,50002996,"5,458.17",Caridon Young Living Ltd,CHILDREN'S SERVICES - RESIDENTIAL,Peoples Services,Approved Lodgings,A61000
London Borough of Sutton,31/03/2021,50000996,"1,107.01",Carlene House,SOCIAL SERVICES RESIDENTIAL,Peoples Services,Day Care Services,A56021
London Borough of Sutton,31/03/2021,50000997,"1,107.01",Carlene House,SOCIAL SERVICES RESIDENTIAL,Peoples Services,Day Care Services,A56021
London Borough of Sutton,31/03/2021,50001002,"1,107.01",Carlene House,SOCIAL SERVICES RESIDENTIAL,Peoples Services,Day Care Services,A56021
London Borough of Sutton,31/03/2021,50001003,"1,107.01",Carlene House,SOCIAL SERVICES RESIDENTIAL,Peoples Services,Day Care Services,A56021
London Borough of Sutton,31/03/2021,50001009,"1,287.44",Carlene House,SOCIAL SERVICES RESIDENTIAL,Peoples Services,Supported Living,A56088
London Borough of Sutton,31/03/2021,50001018,992,Carlene House,SOCIAL SERVICES RESIDENTIAL,Peoples Services,Supported Living,A56088
London Borough of Sutton,31/03/2021,50001020,"1,107.01",Carlene House,SOCIAL SERVICES RESIDENTIAL,Peoples Services,Day Care Services,A56021
London Borough of Sutton,31/03/2021,50001021,"1,107.01",Carlene House,SOCIAL SERVICES RESIDENTIAL,Peoples Services,Day Care Services,A56021
London Borough of Sutton,31/03/2021,50001023,682,Carlene House,SOCIAL SERVICES RESIDENTIAL,Peoples Services,Supported Living,A56088
London Borough of Sutton,31/03/2021,50001036,"2,528.56",Carlene House,SOCIAL SERVICES RESIDENTIAL,Peoples Services,Supported Living,A56088
London Borough of Sutton,31/03/2021,50001038,"1,219.68",Carlene House,SOCIAL SERVICES RESIDENTIAL,Peoples Services,Supported Living,A56088
London Borough of Sutton,31/03/2021,50001065,"3,465.56",Carlene House,SOCIAL SERVICES RESIDENTIAL,Peoples Services,Supported Living,A56088
London Borough of Sutton,31/03/2021,50001066,"2,397.56",Carlene House,SOCIAL SERVICES RESIDENTIAL,Peoples Services,Supported Living,A56088
London Borough of Sutton,31/03/2021,50001067,"3,369.76",Carlene House,SOCIAL SERVICES RESIDENTIAL,Peoples Services,Supported Living,A56088
London Borough of Sutton,16/04/2021,50003060,"2,878.79",Carlene House,SOCIAL SERVICES RESIDENTIAL,Peoples Services,Residential Care - Ext Provider,A56114
London Borough of Sutton,16/04/2021,50003060,"1,599.33",Carlene House,SOCIAL SERVICES RESIDENTIAL,Peoples Services,Residential Care - Ext Provider,A56114
London Borough of Sutton,16/04/2021,50003061,"2,878.79",Carlene House,SOCIAL SERVICES RESIDENTIAL,Peoples Services,Residential Care - Ext Provider,A56114
London Borough of Sutton,16/04/2021,50003061,"1,599.33",Carlene House,SOCIAL SERVICES RESIDENTIAL,Peoples Services,Residential Care - Ext Provider,A56114
London Borough of Sutton,16/04/2021,50003062,"1,599.31",Carlene House,SOCIAL SERVICES RESIDENTIAL,Peoples Services,Residential Care - Ext Provider,A56114
London Borough of Sutton,16/04/2021,50003062,"2,878.77",Carlene House,SOCIAL SERVICES RESIDENTIAL,Peoples Services,Residential Care - Ext Provider,A56114
London Borough of Sutton,16/04/2021,50003063,"2,878.77",Carlene House,SOCIAL SERVICES RESIDENTIAL,Peoples Services,Residential Care - Ext Provider,A56114
London Borough of Sutton,16/04/2021,50003063,"1,599.31",Carlene House,SOCIAL SERVICES RESIDENTIAL,Peoples Services,Residential Care - Ext Provider,A56114
London Borough of Sutton,16/04/2021,50003164,"2,878.77",Carlene House,SOCIAL SERVICES RESIDENTIAL,Peoples Services,Residential Care - Ext Provider,A56114
London Borough of Sutton,16/04/2021,50003164,"1,599.31",Carlene House,SOCIAL SERVICES RESIDENTIAL,Peoples Services,Residential Care - Ext Provider,A56114
London Borough of Sutton,16/04/2021,50003298,"2,878.77",Carlene House,SOCIAL SERVICES RESIDENTIAL,Peoples Services,Residential Care - Ext Provider,A56114
London Borough of Sutton,16/04/2021,50003298,"1,599.31",Carlene House,SOCIAL SERVICES RESIDENTIAL,Peoples Services,Residential Care - Ext Provider,A56114
London Borough of Sutton,16/04/2021,50003355,"2,878.79",Carlene House,SOCIAL SERVICES RESIDENTIAL,Peoples Services,Residential Care - Ext Provider,A56114
London Borough of Sutton,16/04/2021,50003355,"1,599.33",Carlene House,SOCIAL SERVICES RESIDENTIAL,Peoples Services,Residential Care - Ext Provider,A56114
London Borough of Sutton,08/03/2021,20000539,799,Caroline Barkus,TEMP STAFF & CONSULTANCY,Health and Wellbeing,Professional Fees,A44066
London Borough of Sutton,16/04/2021,20000958,995,Golden Toad,TEMP STAFF & CONSULTANCY,Health and Wellbeing,Arts Programme,A44286
London Borough of Sutton,12/04/2021,20000865,926.23,Caysh Enterprise Cic,CHILDREN'S SERVICES - RESIDENTIAL,Peoples Services,Approved Lodgings,A61000
London Borough of Sutton,29/03/2021,20000466,"1,230.39",Caysh Housing Project,SOCIAL SERVICES RESIDENTIAL,Peoples Services,Approved Lodgings,A61000
London Borough of Sutton,29/03/2021,20000483,"30,833.33",Caysh Housing Project,SOCIAL SERVICES RESIDENTIAL,Peoples Services,Approved Lodgings,A61000
London Borough of Sutton,29/03/2021,20000485,"1,329.59",Caysh Housing Project,SOCIAL SERVICES RESIDENTIAL,Peoples Services,Approved Lodgings,A61000
London Borough of Sutton,29/03/2021,20000486,"1,326.49",Caysh Housing Project,SOCIAL SERVICES RESIDENTIAL,Peoples Services,Approved Lodgings,A61000
London Borough of Sutton,29/03/2021,20000487,"1,452.35",Caysh Housing Project,SOCIAL SERVICES RESIDENTIAL,Peoples Services,Approved Lodgings,A61000
London Borough of Sutton,29/03/2021,20000623,"22,339.27",Charles Taylor Services Ltd,FINANCIAL / INSURANCE INSTNS,Resources,General Insurance (Excl Premises & Transport),A44260
London Borough of Sutton,28/04/2021,50008382,"1,800.00",REDACTED - PERSONAL DATA,UASC SUBS PAYMENTS,Peoples Services,Education Allowance,A60008
London Borough of Sutton,16/04/2021,50003152,"2,305.47",Charlton Park Care Home,SOCIAL SERVICES RESIDENTIAL,Peoples Services,Nursing Care - Ext Provider,A56025
London Borough of Sutton,16/04/2021,50003152,-236.51,Charlton Park Care Home,SOCIAL SERVICES RESIDENTIAL,Peoples Services,Nursing Care - 3rd party top up payment,A56023
London Borough of Sutton,16/04/2021,50003152,-425.73,Charlton Park Care Home,SOCIAL SERVICES RESIDENTIAL,Peoples Services,Nursing Care - 3rd party top up payment,A56023
London Borough of Sutton,16/04/2021,50003152,"1,280.81",Charlton Park Care Home,SOCIAL SERVICES RESIDENTIAL,Peoples Services,Nursing Care - Ext Provider,A56025
London Borough of Sutton,12/04/2021,20000499,808.01,Cheam Park Farm Primary School ,GRANTS & EX GRATIA PAYMENTS,Health and Wellbeing,Professional Fees,A44066
London Borough of Sutton,16/04/2021,50003026,"2,322.00",Chegworth Nursing Home Bayswift Ltd,SOCIAL SERVICES RESIDENTIAL,Peoples Services,Nursing Care - Ext Provider,A56025
London Borough of Sutton,16/04/2021,50003026,"1,290.00",Chegworth Nursing Home Bayswift Ltd,SOCIAL SERVICES RESIDENTIAL,Peoples Services,Nursing Care - Ext Provider,A56025
London Borough of Sutton,16/04/2021,50003026,-472.94,Chegworth Nursing Home Bayswift Ltd,SOCIAL SERVICES RESIDENTIAL,Peoples Services,Nursing Care - 3rd party top up payment,A56023
London Borough of Sutton,16/04/2021,50003026,-262.74,Chegworth Nursing Home Bayswift Ltd,SOCIAL SERVICES RESIDENTIAL,Peoples Services,Nursing Care - 3rd party top up payment,A56023
London Borough of Sutton,16/04/2021,50003083,-406.7,Chegworth Nursing Home Bayswift Ltd,SOCIAL SERVICES RESIDENTIAL,Peoples Services,Nursing Care - 3rd party top up payment,A56023
London Borough of Sutton,16/04/2021,50003083,-225.94,Chegworth Nursing Home Bayswift Ltd,SOCIAL SERVICES RESIDENTIAL,Peoples Services,Nursing Care - 3rd party top up payment,A56023
London Borough of Sutton,16/04/2021,50003083,"1,357.14",Chegworth Nursing Home Bayswift Ltd,SOCIAL SERVICES RESIDENTIAL,Peoples Services,Nursing Care - Ext Provider,A56025
London Borough of Sutton,16/04/2021,50003083,"2,442.86",Chegworth Nursing Home Bayswift Ltd,SOCIAL SERVICES RESIDENTIAL,Peoples Services,Nursing Care - Ext Provider,A56025
London Borough of Sutton,16/04/2021,50003124,"1,000.00",Chegworth Nursing Home Bayswift Ltd,SOCIAL SERVICES RESIDENTIAL,Peoples Services,Nursing Care Short Term,A56026
London Borough of Sutton,16/04/2021,50003124,"1,800.00",Chegworth Nursing Home Bayswift Ltd,SOCIAL SERVICES RESIDENTIAL,Peoples Services,Nursing Care Short Term,A56026
London Borough of Sutton,16/04/2021,50003130,"2,285.56",Chegworth Nursing Home Bayswift Ltd,SOCIAL SERVICES RESIDENTIAL,Peoples Services,Nursing Care - Ext Provider,A56025
London Borough of Sutton,16/04/2021,50003130,"1,269.76",Chegworth Nursing Home Bayswift Ltd,SOCIAL SERVICES RESIDENTIAL,Peoples Services,Nursing Care - Ext Provider,A56025
London Borough of Sutton,16/04/2021,50003130,-406.7,Chegworth Nursing Home Bayswift Ltd,SOCIAL SERVICES RESIDENTIAL,Peoples Services,Nursing Care - 3rd party top up payment,A56023
London Borough of Sutton,16/04/2021,50003130,-225.94,Chegworth Nursing Home Bayswift Ltd,SOCIAL SERVICES RESIDENTIAL,Peoples Services,Nursing Care - 3rd party top up payment,A56023
London Borough of Sutton,16/04/2021,50003172,"10,836.00",Chegworth Nursing Home Bayswift Ltd,SOCIAL SERVICES RESIDENTIAL,Peoples Services,Nursing Care Short Term,A56026
London Borough of Sutton,16/04/2021,50003172,"-2,207.04",Chegworth Nursing Home Bayswift Ltd,SOCIAL SERVICES RESIDENTIAL,Peoples Services,Nursing Care - 3rd party top up payment,A56023
London Borough of Sutton,16/04/2021,50003187,"2,285.56",Chegworth Nursing Home Bayswift Ltd,SOCIAL SERVICES RESIDENTIAL,Peoples Services,Nursing Care - Ext Provider,A56025
London Borough of Sutton,16/04/2021,50003187,"1,269.76",Chegworth Nursing Home Bayswift Ltd,SOCIAL SERVICES RESIDENTIAL,Peoples Services,Nursing Care - Ext Provider,A56025
London Borough of Sutton,16/04/2021,50003187,-406.7,Chegworth Nursing Home Bayswift Ltd,SOCIAL SERVICES RESIDENTIAL,Peoples Services,Nursing Care - 3rd party top up payment,A56023
London Borough of Sutton,16/04/2021,50003187,-225.94,Chegworth Nursing Home Bayswift Ltd,SOCIAL SERVICES RESIDENTIAL,Peoples Services,Nursing Care - 3rd party top up payment,A56023
London Borough of Sutton,16/04/2021,50003266,"2,285.56",Chegworth Nursing Home Bayswift Ltd,SOCIAL SERVICES RESIDENTIAL,Peoples Services,Nursing Care - Ext Provider,A56025
London Borough of Sutton,16/04/2021,50003266,"1,269.76",Chegworth Nursing Home Bayswift Ltd,SOCIAL SERVICES RESIDENTIAL,Peoples Services,Nursing Care - Ext Provider,A56025
London Borough of Sutton,16/04/2021,50003266,-406.7,Chegworth Nursing Home Bayswift Ltd,SOCIAL SERVICES RESIDENTIAL,Peoples Services,Nursing Care - 3rd party top up payment,A56023
London Borough of Sutton,16/04/2021,50003266,-225.94,Chegworth Nursing Home Bayswift Ltd,SOCIAL SERVICES RESIDENTIAL,Peoples Services,Nursing Care - 3rd party top up payment,A56023
London Borough of Sutton,16/04/2021,50003267,-472.94,Chegworth Nursing Home Bayswift Ltd,SOCIAL SERVICES RESIDENTIAL,Peoples Services,Nursing Care - 3rd party top up payment,A56023
London Borough of Sutton,16/04/2021,50003267,-262.74,Chegworth Nursing Home Bayswift Ltd,SOCIAL SERVICES RESIDENTIAL,Peoples Services,Nursing Care - 3rd party top up payment,A56023
London Borough of Sutton,16/04/2021,50003267,"1,290.00",Chegworth Nursing Home Bayswift Ltd,SOCIAL SERVICES RESIDENTIAL,Peoples Services,Nursing Care - Ext Provider,A56025
London Borough of Sutton,16/04/2021,50003267,"2,322.00",Chegworth Nursing Home Bayswift Ltd,SOCIAL SERVICES RESIDENTIAL,Peoples Services,Nursing Care - Ext Provider,A56025
London Borough of Sutton,16/04/2021,50003275,"1,428.57",Chegworth Nursing Home Bayswift Ltd,SOCIAL SERVICES RESIDENTIAL,Peoples Services,Nursing Care - Ext Provider,A56025
London Borough of Sutton,16/04/2021,50003275,"2,571.43",Chegworth Nursing Home Bayswift Ltd,SOCIAL SERVICES RESIDENTIAL,Peoples Services,Nursing Care - Ext Provider,A56025
London Borough of Sutton,16/04/2021,50003312,-262.74,Chegworth Nursing Home Bayswift Ltd,SOCIAL SERVICES RESIDENTIAL,Peoples Services,Nursing Care - 3rd party top up payment,A56023
London Borough of Sutton,16/04/2021,50003312,"2,298.65",Chegworth Nursing Home Bayswift Ltd,SOCIAL SERVICES RESIDENTIAL,Peoples Services,Nursing Care - Ext Provider,A56025
London Borough of Sutton,16/04/2021,50003312,-472.94,Chegworth Nursing Home Bayswift Ltd,SOCIAL SERVICES RESIDENTIAL,Peoples Services,Nursing Care - 3rd party top up payment,A56023
London Borough of Sutton,16/04/2021,50003312,"1,277.03",Chegworth Nursing Home Bayswift Ltd,SOCIAL SERVICES RESIDENTIAL,Peoples Services,Nursing Care - Ext Provider,A56025
London Borough of Sutton,16/04/2021,50003319,-425.73,Chegworth Nursing Home Bayswift Ltd,SOCIAL SERVICES RESIDENTIAL,Peoples Services,Nursing Care - 3rd party top up payment,A56023
London Borough of Sutton,16/04/2021,50003319,"1,714.29",Chegworth Nursing Home Bayswift Ltd,SOCIAL SERVICES RESIDENTIAL,Peoples Services,Nursing Care Short Term,A56026
London Borough of Sutton,16/04/2021,50003319,-236.51,Chegworth Nursing Home Bayswift Ltd,SOCIAL SERVICES RESIDENTIAL,Peoples Services,Nursing Care - 3rd party top up payment,A56023
London Borough of Sutton,16/04/2021,50003319,"3,085.71",Chegworth Nursing Home Bayswift Ltd,SOCIAL SERVICES RESIDENTIAL,Peoples Services,Nursing Care Short Term,A56026
London Borough of Sutton,16/04/2021,50003350,"2,342.47",Chegworth Nursing Home Bayswift Ltd,SOCIAL SERVICES RESIDENTIAL,Peoples Services,Nursing Care - Ext Provider,A56025
London Borough of Sutton,16/04/2021,50003350,"1,301.37",Chegworth Nursing Home Bayswift Ltd,SOCIAL SERVICES RESIDENTIAL,Peoples Services,Nursing Care - Ext Provider,A56025
London Borough of Sutton,16/04/2021,50003350,-472.94,Chegworth Nursing Home Bayswift Ltd,SOCIAL SERVICES RESIDENTIAL,Peoples Services,Nursing Care - 3rd party top up payment,A56023
London Borough of Sutton,16/04/2021,50003350,-262.74,Chegworth Nursing Home Bayswift Ltd,SOCIAL SERVICES RESIDENTIAL,Peoples Services,Nursing Care - 3rd party top up payment,A56023
London Borough of Sutton,14/04/2021,20000557,"13,725.00",Chelsea Studios Ltd,ACCOMMODATION BED & BREAKFAST,Environment Housing and Neighbourhoods,Temporary Protection - Homeless Persons,A62028
London Borough of Sutton,16/04/2021,50003271,"1,793.83",Cherry Lodge,SOCIAL SERVICES RESIDENTIAL,Peoples Services,Residential Care - Ext Provider,A56114
London Borough of Sutton,16/04/2021,50003271,996.57,Cherry Lodge,SOCIAL SERVICES RESIDENTIAL,Peoples Services,Residential Care - Ext Provider,A56114
London Borough of Sutton,16/04/2021,50003271,-155.79,Cherry Lodge,SOCIAL SERVICES RESIDENTIAL,Peoples Services,Residential Care - Client Cont ( Net Paymt ),A56113
London Borough of Sutton,16/04/2021,50003271,-280.41,Cherry Lodge,SOCIAL SERVICES RESIDENTIAL,Peoples Services,Residential Care - Client Cont ( Net Paymt ),A56113
London Borough of Sutton,16/04/2021,50003341,"1,200.00",Cherry Lodge,SOCIAL SERVICES RESIDENTIAL,Peoples Services,Residential Care - Ext Provider,A56114
London Borough of Sutton,16/04/2021,50003341,"2,160.00",Cherry Lodge,SOCIAL SERVICES RESIDENTIAL,Peoples Services,Residential Care - Ext Provider,A56114
London Borough of Sutton,16/04/2021,50003143,-472.94,CHHG Ltd,SOCIAL SERVICES RESIDENTIAL,Peoples Services,Nursing Care - 3rd party top up payment,A56023
London Borough of Sutton,16/04/2021,50003143,-262.74,CHHG Ltd,SOCIAL SERVICES RESIDENTIAL,Peoples Services,Nursing Care - 3rd party top up payment,A56023
London Borough of Sutton,16/04/2021,50003143,"1,361.43",CHHG Ltd,SOCIAL SERVICES RESIDENTIAL,Peoples Services,Nursing Care - Ext Provider,A56025
London Borough of Sutton,16/04/2021,50003143,"2,450.57",CHHG Ltd,SOCIAL SERVICES RESIDENTIAL,Peoples Services,Nursing Care - Ext Provider,A56025
London Borough of Sutton,16/04/2021,50003202,"3,085.71",CHHG Ltd,SOCIAL SERVICES RESIDENTIAL,Peoples Services,Nursing Care - Ext Provider,A56025
London Borough of Sutton,16/04/2021,50003202,-225.94,CHHG Ltd,SOCIAL SERVICES RESIDENTIAL,Peoples Services,Nursing Care - 3rd party top up payment,A56023
London Borough of Sutton,16/04/2021,50003202,-406.7,CHHG Ltd,SOCIAL SERVICES RESIDENTIAL,Peoples Services,Nursing Care - 3rd party top up payment,A56023
London Borough of Sutton,16/04/2021,50003202,"1,714.29",CHHG Ltd,SOCIAL SERVICES RESIDENTIAL,Peoples Services,Nursing Care - Ext Provider,A56025
London Borough of Sutton,16/04/2021,50003292,"1,313.11",CHHG Ltd,SOCIAL SERVICES RESIDENTIAL,Peoples Services,Residential Care - Ext Provider,A56114
London Borough of Sutton,16/04/2021,50003292,"2,363.61",CHHG Ltd,SOCIAL SERVICES RESIDENTIAL,Peoples Services,Residential Care - Ext Provider,A56114
London Borough of Sutton,16/04/2021,50003117,-236.51,CHHG Ltd,SOCIAL SERVICES RESIDENTIAL,Peoples Services,Nursing Care - 3rd party top up payment,A56023
London Borough of Sutton,16/04/2021,50003117,-425.73,CHHG Ltd,SOCIAL SERVICES RESIDENTIAL,Peoples Services,Nursing Care - 3rd party top up payment,A56023
London Borough of Sutton,16/04/2021,50003117,"4,086.00",CHHG Ltd,SOCIAL SERVICES RESIDENTIAL,Peoples Services,Nursing Care - Ext Provider,A56025
London Borough of Sutton,16/04/2021,50003117,"2,270.00",CHHG Ltd,SOCIAL SERVICES RESIDENTIAL,Peoples Services,Nursing Care - Ext Provider,A56025
London Borough of Sutton,28/03/2021,20000497,"1,374.00",Children's Trust,CHILDREN'S SERVICES - DAY CARE,Peoples Services,Respite Care,A56116
London Borough of Sutton,08/04/2021,50002506,"15,707.50",Children's Trust,CHILDREN'S SERVICES - DAY CARE,Peoples Services,Independent School Fees,A56002
London Borough of Sutton,08/04/2021,50004213,"13,180.67",Children's Trust,CHILDREN'S SERVICES - DAY CARE,Peoples Services,Independent School Fees,A56002
London Borough of Sutton,29/04/2021,50007923,514,Children's Trust,CHILDREN'S SERVICES - DAY CARE,Peoples Services,Payments to Schools,A51013
London Borough of Sutton,16/04/2021,50003096,"4,828.50",Choice Care Group (Surrey) Ltd,SOCIAL SERVICES RESIDENTIAL,Peoples Services,Residential Care - Ext Provider,A56114
London Borough of Sutton,16/04/2021,50003096,"2,682.50",Choice Care Group (Surrey) Ltd,SOCIAL SERVICES RESIDENTIAL,Peoples Services,Residential Care - Ext Provider,A56114
London Borough of Sutton,16/04/2021,50003096,-126.64,Choice Care Group (Surrey) Ltd,SOCIAL SERVICES RESIDENTIAL,Peoples Services,Residential Care - Client Cont ( Net Paymt ),A56113
London Borough of Sutton,16/04/2021,50003096,-227.96,Choice Care Group (Surrey) Ltd,SOCIAL SERVICES RESIDENTIAL,Peoples Services,Residential Care - Client Cont ( Net Paymt ),A56113
London Borough of Sutton,16/04/2021,50003121,"4,838.35",Choice Care Group (Surrey) Ltd,SOCIAL SERVICES RESIDENTIAL,Peoples Services,Residential Care - Ext Provider,A56114
London Borough of Sutton,16/04/2021,50003121,"2,687.97",Choice Care Group (Surrey) Ltd,SOCIAL SERVICES RESIDENTIAL,Peoples Services,Residential Care - Ext Provider,A56114
London Borough of Sutton,16/04/2021,50003206,"4,654.29",Choice Care Group (Surrey) Ltd,SOCIAL SERVICES RESIDENTIAL,Peoples Services,Residential Care - Ext Provider,A56114
London Borough of Sutton,16/04/2021,50003206,"2,585.71",Choice Care Group (Surrey) Ltd,SOCIAL SERVICES RESIDENTIAL,Peoples Services,Residential Care - Ext Provider,A56114
London Borough of Sutton,16/04/2021,50003240,"5,064.61",Choice Care Group (Surrey) Ltd,SOCIAL SERVICES RESIDENTIAL,Peoples Services,Residential Care - Ext Provider,A56114
London Borough of Sutton,16/04/2021,50003240,"2,813.67",Choice Care Group (Surrey) Ltd,SOCIAL SERVICES RESIDENTIAL,Peoples Services,Residential Care - Ext Provider,A56114
London Borough of Sutton,16/04/2021,50003123,"3,541.50",Choice Support,GRANTS & EX GRATIA PAYMENTS,Peoples Services,Residential Care - Ext Provider,A56114
London Borough of Sutton,16/04/2021,50003123,"1,967.50",Choice Support,GRANTS & EX GRATIA PAYMENTS,Peoples Services,Residential Care - Ext Provider,A56114
London Borough of Sutton,22/04/2021,50006793,"1,634.05",Choice Support,GRANTS & EX GRATIA PAYMENTS,Peoples Services,Supported Living,A56088
London Borough of Sutton,22/04/2021,50006793,"3,937.37",Choice Support,GRANTS & EX GRATIA PAYMENTS,Peoples Services,Supported Living,A56088
London Borough of Sutton,22/04/2021,50006794,844.33,Choice Support,GRANTS & EX GRATIA PAYMENTS,Peoples Services,Supported Living,A56088
London Borough of Sutton,22/04/2021,50006794,"3,937.37",Choice Support,GRANTS & EX GRATIA PAYMENTS,Peoples Services,Supported Living,A56088
London Borough of Sutton,22/04/2021,50006795,"1,643.05",Choice Support,GRANTS & EX GRATIA PAYMENTS,Peoples Services,Supported Living,A56088
London Borough of Sutton,22/04/2021,50006795,"3,054.85",Choice Support,GRANTS & EX GRATIA PAYMENTS,Peoples Services,Supported Living,A56088
London Borough of Sutton,22/04/2021,50006796,"1,634.05",Choice Support,GRANTS & EX GRATIA PAYMENTS,Peoples Services,Supported Living,A56088
London Borough of Sutton,22/04/2021,50006796,"3,292.45",Choice Support,GRANTS & EX GRATIA PAYMENTS,Peoples Services,Supported Living,A56088
London Borough of Sutton,22/04/2021,50006803,"1,634.05",Choice Support,GRANTS & EX GRATIA PAYMENTS,Peoples Services,Supported Living,A56088
London Borough of Sutton,22/04/2021,50006803,"2,856.22",Choice Support,GRANTS & EX GRATIA PAYMENTS,Peoples Services,Supported Living,A56088
London Borough of Sutton,22/04/2021,50006804,468.9,Choice Support,GRANTS & EX GRATIA PAYMENTS,Peoples Services,Supported Living,A56088
London Borough of Sutton,22/04/2021,50006804,114.08,Choice Support,GRANTS & EX GRATIA PAYMENTS,Peoples Services,Supported Living,A56088
London Borough of Sutton,22/04/2021,50006804,"2,323.03",Choice Support,GRANTS & EX GRATIA PAYMENTS,Peoples Services,Supported Living,A56088
London Borough of Sutton,22/04/2021,50006804,"1,357.72",Choice Support,GRANTS & EX GRATIA PAYMENTS,Peoples Services,Supported Living,A56088
London Borough of Sutton,22/04/2021,50006805,844.33,Choice Support,GRANTS & EX GRATIA PAYMENTS,Peoples Services,Supported Living,A56088
London Borough of Sutton,22/04/2021,50006805,"1,384.88",Choice Support,GRANTS & EX GRATIA PAYMENTS,Peoples Services,Supported Living,A56088
London Borough of Sutton,22/04/2021,50006805,"2,701.85",Choice Support,GRANTS & EX GRATIA PAYMENTS,Peoples Services,Supported Living,A56088
London Borough of Sutton,22/04/2021,50006806,468.9,Choice Support,GRANTS & EX GRATIA PAYMENTS,Peoples Services,Supported Living,A56088
London Borough of Sutton,22/04/2021,50006806,114.08,Choice Support,GRANTS & EX GRATIA PAYMENTS,Peoples Services,Supported Living,A56088
London Borough of Sutton,22/04/2021,50006806,"1,820.75",Choice Support,GRANTS & EX GRATIA PAYMENTS,Peoples Services,Supported Living,A56088
London Borough of Sutton,22/04/2021,50006806,"2,044.28",Choice Support,GRANTS & EX GRATIA PAYMENTS,Peoples Services,Supported Living,A56088
London Borough of Sutton,22/04/2021,50006807,"1,643.05",Choice Support,GRANTS & EX GRATIA PAYMENTS,Peoples Services,Supported Living,A56088
London Borough of Sutton,22/04/2021,50006807,"2,579.65",Choice Support,GRANTS & EX GRATIA PAYMENTS,Peoples Services,Supported Living,A56088
London Borough of Sutton,22/04/2021,50006812,468.9,Choice Support,GRANTS & EX GRATIA PAYMENTS,Peoples Services,Supported Living,A56088
London Borough of Sutton,22/04/2021,50006812,124.25,Choice Support,GRANTS & EX GRATIA PAYMENTS,Peoples Services,Supported Living,A56088
London Borough of Sutton,22/04/2021,50006812,"1,573.58",Choice Support,GRANTS & EX GRATIA PAYMENTS,Peoples Services,Supported Living,A56088
London Borough of Sutton,22/04/2021,50006812,"2,240.23",Choice Support,GRANTS & EX GRATIA PAYMENTS,Peoples Services,Supported Living,A56088
London Borough of Sutton,22/04/2021,50006813,"1,643.05",Choice Support,GRANTS & EX GRATIA PAYMENTS,Peoples Services,Supported Living,A56088
London Borough of Sutton,22/04/2021,50006813,"3,054.85",Choice Support,GRANTS & EX GRATIA PAYMENTS,Peoples Services,Supported Living,A56088
London Borough of Sutton,22/04/2021,50006814,468.9,Choice Support,GRANTS & EX GRATIA PAYMENTS,Peoples Services,Supported Living,A56088
London Borough of Sutton,22/04/2021,50006814,124.25,Choice Support,GRANTS & EX GRATIA PAYMENTS,Peoples Services,Supported Living,A56088
London Borough of Sutton,22/04/2021,50006814,"1,547.78",Choice Support,GRANTS & EX GRATIA PAYMENTS,Peoples Services,Supported Living,A56088
London Borough of Sutton,22/04/2021,50006814,"2,002.63",Choice Support,GRANTS & EX GRATIA PAYMENTS,Peoples Services,Supported Living,A56088
London Borough of Sutton,22/04/2021,50006819,"10,530.21",Choice Support,GRANTS & EX GRATIA PAYMENTS,Peoples Services,Supported Living,A56088
London Borough of Sutton,22/04/2021,50006819,"-7,705.03",Choice Support,GRANTS & EX GRATIA PAYMENTS,Peoples Services,Supported Living,A56088
London Borough of Sutton,22/04/2021,50006819,"3,326.40",Choice Support,GRANTS & EX GRATIA PAYMENTS,Peoples Services,Supported Living,A56088
London Borough of Sutton,22/04/2021,50006821,"1,634.05",Choice Support,GRANTS & EX GRATIA PAYMENTS,Peoples Services,Supported Living,A56088
London Borough of Sutton,22/04/2021,50006821,"2,342.05",Choice Support,GRANTS & EX GRATIA PAYMENTS,Peoples Services,Supported Living,A56088
London Borough of Sutton,22/04/2021,50006824,"1,154.05",Choice Support,GRANTS & EX GRATIA PAYMENTS,Peoples Services,Supported Living,A56088
London Borough of Sutton,22/04/2021,50006824,"2,851.20",Choice Support,GRANTS & EX GRATIA PAYMENTS,Peoples Services,Supported Living,A56088
London Borough of Sutton,22/04/2021,50006825,"1,643.05",Choice Support,GRANTS & EX GRATIA PAYMENTS,Peoples Services,Supported Living,A56088
London Borough of Sutton,22/04/2021,50006825,"2,579.65",Choice Support,GRANTS & EX GRATIA PAYMENTS,Peoples Services,Supported Living,A56088
London Borough of Sutton,22/04/2021,50006826,"1,643.05",Choice Support,GRANTS & EX GRATIA PAYMENTS,Peoples Services,Supported Living,A56088
London Borough of Sutton,22/04/2021,50006826,"2,409.95",Choice Support,GRANTS & EX GRATIA PAYMENTS,Peoples Services,Supported Living,A56088
London Borough of Sutton,22/04/2021,50006828,"1,643.05",Choice Support,GRANTS & EX GRATIA PAYMENTS,Peoples Services,Supported Living,A56088
London Borough of Sutton,22/04/2021,50006828,"5,023.55",Choice Support,GRANTS & EX GRATIA PAYMENTS,Peoples Services,Supported Living,A56088
London Borough of Sutton,22/04/2021,50006829,556.33,Choice Support,GRANTS & EX GRATIA PAYMENTS,Peoples Services,Supported Living,A56088
London Borough of Sutton,22/04/2021,50006829,"3,556.55",Choice Support,GRANTS & EX GRATIA PAYMENTS,Peoples Services,Supported Living,A56088
London Borough of Sutton,22/04/2021,50006833,"1,643.05",Choice Support,GRANTS & EX GRATIA PAYMENTS,Peoples Services,Supported Living,A56088
London Borough of Sutton,22/04/2021,50006833,"2,409.95",Choice Support,GRANTS & EX GRATIA PAYMENTS,Peoples Services,Supported Living,A56088
London Borough of Sutton,22/04/2021,50006836,"1,643.05",Choice Support,GRANTS & EX GRATIA PAYMENTS,Peoples Services,Supported Living,A56088
London Borough of Sutton,22/04/2021,50006836,"2,647.55",Choice Support,GRANTS & EX GRATIA PAYMENTS,Peoples Services,Supported Living,A56088
London Borough of Sutton,22/04/2021,50006837,468.9,Choice Support,GRANTS & EX GRATIA PAYMENTS,Peoples Services,Supported Living,A56088
London Borough of Sutton,22/04/2021,50006837,124.25,Choice Support,GRANTS & EX GRATIA PAYMENTS,Peoples Services,Supported Living,A56088
London Borough of Sutton,22/04/2021,50006837,"1,598.70",Choice Support,GRANTS & EX GRATIA PAYMENTS,Peoples Services,Supported Living,A56088
London Borough of Sutton,22/04/2021,50006837,"2,274.17",Choice Support,GRANTS & EX GRATIA PAYMENTS,Peoples Services,Supported Living,A56088
London Borough of Sutton,22/04/2021,50006838,919.28,Choice Support,GRANTS & EX GRATIA PAYMENTS,Peoples Services,Supported Living,A56088
London Borough of Sutton,22/04/2021,50006838,"6,079.12",Choice Support,GRANTS & EX GRATIA PAYMENTS,Peoples Services,Supported Living,A56088
London Borough of Sutton,22/04/2021,50006839,468.9,Choice Support,GRANTS & EX GRATIA PAYMENTS,Peoples Services,Supported Living,A56088
London Borough of Sutton,22/04/2021,50006839,124.25,Choice Support,GRANTS & EX GRATIA PAYMENTS,Peoples Services,Supported Living,A56088
London Borough of Sutton,22/04/2021,50006839,"1,564.75",Choice Support,GRANTS & EX GRATIA PAYMENTS,Peoples Services,Supported Living,A56088
London Borough of Sutton,22/04/2021,50006839,"2,211.73",Choice Support,GRANTS & EX GRATIA PAYMENTS,Peoples Services,Supported Living,A56088
London Borough of Sutton,22/04/2021,50006840,431.75,Choice Support,GRANTS & EX GRATIA PAYMENTS,Peoples Services,Supported Living,A56088
London Borough of Sutton,22/04/2021,50006840,"4,998.43",Choice Support,GRANTS & EX GRATIA PAYMENTS,Peoples Services,Supported Living,A56088
London Borough of Sutton,08/04/2021,20000198,997.1,REDACTED - PERSONAL DATA,GRANTS & EX GRATIA PAYMENTS,Environment Housing and Neighbourhoods,Temporary Protection - Homeless Persons,A62028
London Borough of Sutton,30/03/2021,20000422,"51,306.37",CIPFA Business Limited,CONFERENCES,Resources,Subscriptions,A47010
London Borough of Sutton,30/03/2021,20000456,"2,700.00",Cirrus Primary Academy Trust ,GRANTS & EX GRATIA PAYMENTS,Resources,Provider Contract Payments,A44290
London Borough of Sutton,22/04/2021,20001027,663.79,City & Guilds,SUBSCRIPTIONS & PUBLICATIONS,Health and Wellbeing,Examination Fees,A44200
London Borough of Sutton,19/03/2021,20000298,"22,640.89",City of London Corporation,CENTRAL & LOCAL GOVERNMENT,Health and Wellbeing,Provider Contract Payments,A44290
London Borough of Sutton,26/03/2021,20000814,"23,200.00",City of London Corporation,CENTRAL & LOCAL GOVERNMENT,Health and Wellbeing,Equipment And Materials Purchase,A40000
London Borough of Sutton,26/03/2021,20000815,"34,921.00",City of London Corporation,CENTRAL & LOCAL GOVERNMENT,Health and Wellbeing,Equipment And Materials Purchase,A40000
London Borough of Sutton,31/03/2021,20000684,"1,378.96",City Sprint UK (Excel) Ltd,DELIVERY AND COURIER SERVICES,Health and Wellbeing,Hire of Transport - Non Staff,A32000
London Borough of Sutton,31/03/2021,20000754,"3,750.00",Civica UK Ltd,BUSINESS & COMPUTER SYSTEMS,Resources,Registration & Licence Fees Payable,A44267
London Borough of Sutton,16/04/2021,50003081,-626.14,Claremont Care Svs Ltd,SOCIAL SERVICES RESIDENTIAL,Peoples Services,Nursing Care - 3rd party top up payment,A56023
London Borough of Sutton,16/04/2021,50003081,-347.86,Claremont Care Svs Ltd,SOCIAL SERVICES RESIDENTIAL,Peoples Services,Nursing Care - 3rd party top up payment,A56023
London Borough of Sutton,16/04/2021,50003081,"2,811.86",Claremont Care Svs Ltd,SOCIAL SERVICES RESIDENTIAL,Peoples Services,Nursing Care - Ext Provider,A56025
London Borough of Sutton,16/04/2021,50003081,"1,562.14",Claremont Care Svs Ltd,SOCIAL SERVICES RESIDENTIAL,Peoples Services,Nursing Care - Ext Provider,A56025
London Borough of Sutton,16/04/2021,50003081,-406.7,Claremont Care Svs Ltd,SOCIAL SERVICES RESIDENTIAL,Peoples Services,Nursing Care - 3rd party top up payment,A56023
London Borough of Sutton,16/04/2021,50003081,-225.94,Claremont Care Svs Ltd,SOCIAL SERVICES RESIDENTIAL,Peoples Services,Nursing Care - 3rd party top up payment,A56023
London Borough of Sutton,16/04/2021,50003210,-472.94,Claremont Care Svs Ltd,SOCIAL SERVICES RESIDENTIAL,Peoples Services,Nursing Care - 3rd party top up payment,A56023
London Borough of Sutton,16/04/2021,50003210,-262.74,Claremont Care Svs Ltd,SOCIAL SERVICES RESIDENTIAL,Peoples Services,Nursing Care - 3rd party top up payment,A56023
London Borough of Sutton,16/04/2021,50003210,"1,857.14",Claremont Care Svs Ltd,SOCIAL SERVICES RESIDENTIAL,Peoples Services,Nursing Care - Ext Provider,A56025
London Borough of Sutton,16/04/2021,50003210,"3,342.86",Claremont Care Svs Ltd,SOCIAL SERVICES RESIDENTIAL,Peoples Services,Nursing Care - Ext Provider,A56025
London Borough of Sutton,16/04/2021,50003265,"2,259.67",Claremont Care Svs Ltd,SOCIAL SERVICES RESIDENTIAL,Peoples Services,Nursing Care - Ext Provider,A56025
London Borough of Sutton,16/04/2021,50003265,"1,255.37",Claremont Care Svs Ltd,SOCIAL SERVICES RESIDENTIAL,Peoples Services,Nursing Care - Ext Provider,A56025
London Borough of Sutton,16/04/2021,50003265,-406.7,Claremont Care Svs Ltd,SOCIAL SERVICES RESIDENTIAL,Peoples Services,Nursing Care - 3rd party top up payment,A56023
London Borough of Sutton,16/04/2021,50003265,-225.94,Claremont Care Svs Ltd,SOCIAL SERVICES RESIDENTIAL,Peoples Services,Nursing Care - 3rd party top up payment,A56023
London Borough of Sutton,07/04/2021,50004191,750,Classroom Teachers Ltd,ACADEMIC INSTNS - OTHER,Peoples Services,Independent School Fees,A56002
London Borough of Sutton,22/03/2021,20000210,"1,000.00",Clear Channel Uk,PRESS & PUBLICITY,Environment Housing and Neighbourhoods,Community Initiatives,A44288
London Borough of Sutton,22/03/2021,20000211,750,Clear Channel Uk,PRESS & PUBLICITY,Environment Housing and Neighbourhoods,Community Initiatives,A44288
London Borough of Sutton,22/03/2021,50007195,803,Clovecare Ltd,SOCIAL SERVICES RESIDENTIAL,Peoples Services,Home Care Services,A56019
London Borough of Sutton,22/03/2021,50007204,611,Clovecare Ltd,SOCIAL SERVICES RESIDENTIAL,Peoples Services,Home Care Services,A56019
London Borough of Sutton,16/04/2021,50003321,928.57,Cloyda Limited,SOCIAL SERVICES RESIDENTIAL,Peoples Services,Residential Care - Ext Provider,A56114
London Borough of Sutton,16/04/2021,50003321,"1,671.43",Cloyda Limited,SOCIAL SERVICES RESIDENTIAL,Peoples Services,Residential Care - Ext Provider,A56114
London Borough of Sutton,16/04/2021,50003135,"2,512.86",Cmg Homes Ltd,SOCIAL SERVICES RESIDENTIAL,Peoples Services,Residential Care - Ext Provider,A56114
London Borough of Sutton,16/04/2021,50003135,"4,523.14",Cmg Homes Ltd,SOCIAL SERVICES RESIDENTIAL,Peoples Services,Residential Care - Ext Provider,A56114
London Borough of Sutton,16/04/2021,50003135,-383.79,Cmg Homes Ltd,SOCIAL SERVICES RESIDENTIAL,Peoples Services,Residential Care - Client Cont ( Net Paymt ),A56113
London Borough of Sutton,16/04/2021,50003135,-213.21,Cmg Homes Ltd,SOCIAL SERVICES RESIDENTIAL,Peoples Services,Residential Care - Client Cont ( Net Paymt ),A56113
London Borough of Sutton,16/04/2021,50003259,"3,482.31",Cmg Homes Ltd,SOCIAL SERVICES RESIDENTIAL,Peoples Services,Residential Care - Ext Provider,A56114
London Borough of Sutton,16/04/2021,50003259,"1,934.61",Cmg Homes Ltd,SOCIAL SERVICES RESIDENTIAL,Peoples Services,Residential Care - Ext Provider,A56114
London Borough of Sutton,16/04/2021,50003259,-151.07,Cmg Homes Ltd,SOCIAL SERVICES RESIDENTIAL,Peoples Services,Residential Care - Client Cont ( Net Paymt ),A56113
London Borough of Sutton,16/04/2021,50003259,-271.93,Cmg Homes Ltd,SOCIAL SERVICES RESIDENTIAL,Peoples Services,Residential Care - Client Cont ( Net Paymt ),A56113
London Borough of Sutton,22/04/2021,50006797,"4,444.28",Cmg Homes Ltd,SOCIAL SERVICES RESIDENTIAL,Peoples Services,Supported Living,A56088
London Borough of Sutton,22/04/2021,50006817,"3,353.78",Cmg Homes Ltd,SOCIAL SERVICES RESIDENTIAL,Peoples Services,Supported Living,A56088
London Borough of Sutton,22/04/2021,50006830,"3,060.00",Cmg Homes Ltd,SOCIAL SERVICES RESIDENTIAL,Peoples Services,Supported Living,A56088
London Borough of Sutton,22/04/2021,50006834,"3,544.28",Cmg Homes Ltd,SOCIAL SERVICES RESIDENTIAL,Peoples Services,Supported Living,A56088
London Borough of Sutton,22/04/2021,50006835,"3,557.15",Cmg Homes Ltd,SOCIAL SERVICES RESIDENTIAL,Peoples Services,Supported Living,A56088
London Borough of Sutton,16/04/2021,50003377,"3,243.73",Cognithan Ltd,SOCIAL SERVICES RESIDENTIAL,Peoples Services,Residential Care - Ext Provider,A56114
London Borough of Sutton,16/04/2021,50003377,"1,802.07",Cognithan Ltd,SOCIAL SERVICES RESIDENTIAL,Peoples Services,Residential Care - Ext Provider,A56114
London Borough of Sutton,30/03/2021,50001077,"15,473.99",Coleg Elidyr Camphill Communities,CHILDREN'S SERVICES - RESIDENTIAL,Peoples Services,Independent School Fees,A56002
London Borough of Sutton,16/04/2021,50003042,"1,295.08",Coleg Elidyr Camphill Communities,CHILDREN'S SERVICES - RESIDENTIAL,Peoples Services,Interim Placements - Ext Provider,A56102
London Borough of Sutton,16/04/2021,50003273,"1,942.62",Coleg Elidyr Camphill Communities,CHILDREN'S SERVICES - RESIDENTIAL,Peoples Services,Interim Placements - Ext Provider,A56102
London Borough of Sutton,30/09/2020,50007261,"3,428.70",Compass Children's Homes Ltd,CHILDREN'S SERVICES - RESIDENTIAL,Peoples Services,Independent School Fees,A56002
London Borough of Sutton,31/10/2020,50007262,"3,542.99",Compass Children's Homes Ltd,CHILDREN'S SERVICES - RESIDENTIAL,Peoples Services,Independent School Fees,A56002
London Borough of Sutton,31/03/2021,50007263,"-2,742.96",Compass Children's Homes Ltd,CHILDREN'S SERVICES - RESIDENTIAL,Peoples Services,Independent School Fees,A56002
London Borough of Sutton,06/04/2021,20000295,"43,545.00",Cornerstone Property Assets Limited,TEMP STAFF & CONSULTANCY,Resources,Professional Fees,A44066
London Borough of Sutton,20/02/2021,50000395,"16,635.20",Cressey Oasis Education Ltd,CHILDREN'S SERVICES - RESIDENTIAL,Peoples Services,Independent School Fees,A56002
London Borough of Sutton,20/02/2021,50000396,"15,751.67",Cressey Oasis Education Ltd,CHILDREN'S SERVICES - RESIDENTIAL,Peoples Services,Independent School Fees,A56002
London Borough of Sutton,20/02/2021,50000397,"28,023.33",Cressey Oasis Education Ltd,CHILDREN'S SERVICES - RESIDENTIAL,Peoples Services,Independent School Fees,A56002
London Borough of Sutton,20/02/2021,50000398,"16,992.00",Cressey Oasis Education Ltd,CHILDREN'S SERVICES - RESIDENTIAL,Peoples Services,Independent School Fees,A56002
London Borough of Sutton,20/02/2021,50000399,"18,297.00",Cressey Oasis Education Ltd,CHILDREN'S SERVICES - RESIDENTIAL,Peoples Services,Independent School Fees,A56002
London Borough of Sutton,20/02/2021,50000400,"19,144.00",Cressey Oasis Education Ltd,CHILDREN'S SERVICES - RESIDENTIAL,Peoples Services,Independent School Fees,A56002
London Borough of Sutton,20/02/2021,50000401,"17,201.33",Cressey Oasis Education Ltd,CHILDREN'S SERVICES - RESIDENTIAL,Peoples Services,Independent School Fees,A56002
London Borough of Sutton,20/02/2021,50000402,"22,041.00",Cressey Oasis Education Ltd,CHILDREN'S SERVICES - RESIDENTIAL,Peoples Services,Independent School Fees,A56002
London Borough of Sutton,20/02/2021,50000403,"21,715.33",Cressey Oasis Education Ltd,CHILDREN'S SERVICES - RESIDENTIAL,Peoples Services,Independent School Fees,A56002
London Borough of Sutton,20/02/2021,50000404,"20,373.00",Cressey Oasis Education Ltd,CHILDREN'S SERVICES - RESIDENTIAL,Peoples Services,Independent School Fees,A56002
London Borough of Sutton,20/02/2021,50000405,"26,291.00",Cressey Oasis Education Ltd,CHILDREN'S SERVICES - RESIDENTIAL,Peoples Services,Independent School Fees,A56002
London Borough of Sutton,20/02/2021,50000406,"19,125.33",Cressey Oasis Education Ltd,CHILDREN'S SERVICES - RESIDENTIAL,Peoples Services,Independent School Fees,A56002
London Borough of Sutton,20/02/2021,50000407,"18,455.00",Cressey Oasis Education Ltd,CHILDREN'S SERVICES - RESIDENTIAL,Peoples Services,Independent School Fees,A56002
London Borough of Sutton,20/02/2021,50000408,"17,991.00",Cressey Oasis Education Ltd,CHILDREN'S SERVICES - RESIDENTIAL,Peoples Services,Independent School Fees,A56002
London Borough of Sutton,20/02/2021,50000409,"18,918.67",Cressey Oasis Education Ltd,CHILDREN'S SERVICES - RESIDENTIAL,Peoples Services,Independent School Fees,A56002
London Borough of Sutton,20/02/2021,50000410,"26,668.00",Cressey Oasis Education Ltd,CHILDREN'S SERVICES - RESIDENTIAL,Peoples Services,Independent School Fees,A56002
London Borough of Sutton,20/02/2021,50000411,"18,297.00",Cressey Oasis Education Ltd,CHILDREN'S SERVICES - RESIDENTIAL,Peoples Services,Independent School Fees,A56002
London Borough of Sutton,16/04/2021,50003028,"2,616.69",CRNH Ltd,SOCIAL SERVICES RESIDENTIAL,Peoples Services,Nursing Care - Ext Provider,A56025
London Borough of Sutton,16/04/2021,50003028,"1,453.71",CRNH Ltd,SOCIAL SERVICES RESIDENTIAL,Peoples Services,Nursing Care - Ext Provider,A56025
London Borough of Sutton,16/04/2021,50003028,-425.73,CRNH Ltd,SOCIAL SERVICES RESIDENTIAL,Peoples Services,Nursing Care - 3rd party top up payment,A56023
London Borough of Sutton,16/04/2021,50003028,-236.51,CRNH Ltd,SOCIAL SERVICES RESIDENTIAL,Peoples Services,Nursing Care - 3rd party top up payment,A56023
London Borough of Sutton,16/04/2021,50003058,"2,286.00",CRNH Ltd,SOCIAL SERVICES RESIDENTIAL,Peoples Services,Nursing Care - Ext Provider,A56025
London Borough of Sutton,16/04/2021,50003058,"1,270.00",CRNH Ltd,SOCIAL SERVICES RESIDENTIAL,Peoples Services,Nursing Care - Ext Provider,A56025
London Borough of Sutton,16/04/2021,50003059,-225.94,CRNH Ltd,SOCIAL SERVICES RESIDENTIAL,Peoples Services,Nursing Care - 3rd party top up payment,A56023
London Borough of Sutton,16/04/2021,50003059,-406.7,CRNH Ltd,SOCIAL SERVICES RESIDENTIAL,Peoples Services,Nursing Care - 3rd party top up payment,A56023
London Borough of Sutton,16/04/2021,50003101,"2,251.34",CRNH Ltd,SOCIAL SERVICES RESIDENTIAL,Peoples Services,Nursing Care - Ext Provider,A56025
London Borough of Sutton,16/04/2021,50003101,"1,250.74",CRNH Ltd,SOCIAL SERVICES RESIDENTIAL,Peoples Services,Nursing Care - Ext Provider,A56025
London Borough of Sutton,16/04/2021,50003101,-406.7,CRNH Ltd,SOCIAL SERVICES RESIDENTIAL,Peoples Services,Nursing Care - 3rd party top up payment,A56023
London Borough of Sutton,16/04/2021,50003101,-225.94,CRNH Ltd,SOCIAL SERVICES RESIDENTIAL,Peoples Services,Nursing Care - 3rd party top up payment,A56023
London Borough of Sutton,16/04/2021,50003132,-425.73,CRNH Ltd,SOCIAL SERVICES RESIDENTIAL,Peoples Services,Nursing Care - 3rd party top up payment,A56023
London Borough of Sutton,16/04/2021,50003132,-236.51,CRNH Ltd,SOCIAL SERVICES RESIDENTIAL,Peoples Services,Nursing Care - 3rd party top up payment,A56023
London Borough of Sutton,16/04/2021,50003132,"2,285.56",CRNH Ltd,SOCIAL SERVICES RESIDENTIAL,Peoples Services,Nursing Care - Ext Provider,A56025
London Borough of Sutton,16/04/2021,50003132,"1,269.76",CRNH Ltd,SOCIAL SERVICES RESIDENTIAL,Peoples Services,Nursing Care - Ext Provider,A56025
London Borough of Sutton,16/04/2021,50003192,"1,869.53",CRNH Ltd,SOCIAL SERVICES RESIDENTIAL,Peoples Services,Nursing Care - Ext Provider,A56025
London Borough of Sutton,16/04/2021,50003192,"1,038.63",CRNH Ltd,SOCIAL SERVICES RESIDENTIAL,Peoples Services,Nursing Care - Ext Provider,A56025
London Borough of Sutton,16/04/2021,50003192,-425.73,CRNH Ltd,SOCIAL SERVICES RESIDENTIAL,Peoples Services,Nursing Care - 3rd party top up payment,A56023
London Borough of Sutton,16/04/2021,50003192,-236.51,CRNH Ltd,SOCIAL SERVICES RESIDENTIAL,Peoples Services,Nursing Care - 3rd party top up payment,A56023
London Borough of Sutton,16/04/2021,50003193,"2,322.00",CRNH Ltd,SOCIAL SERVICES RESIDENTIAL,Peoples Services,Nursing Care - Ext Provider,A56025
London Borough of Sutton,16/04/2021,50003193,"1,290.00",CRNH Ltd,SOCIAL SERVICES RESIDENTIAL,Peoples Services,Nursing Care - Ext Provider,A56025
London Borough of Sutton,16/04/2021,50003193,-472.94,CRNH Ltd,SOCIAL SERVICES RESIDENTIAL,Peoples Services,Nursing Care - 3rd party top up payment,A56023
London Borough of Sutton,16/04/2021,50003193,-262.74,CRNH Ltd,SOCIAL SERVICES RESIDENTIAL,Peoples Services,Nursing Care - 3rd party top up payment,A56023
London Borough of Sutton,16/04/2021,50003231,"2,279.21",CRNH Ltd,SOCIAL SERVICES RESIDENTIAL,Peoples Services,Nursing Care - Ext Provider,A56025
London Borough of Sutton,16/04/2021,50003231,"1,266.23",CRNH Ltd,SOCIAL SERVICES RESIDENTIAL,Peoples Services,Nursing Care - Ext Provider,A56025
London Borough of Sutton,16/04/2021,50003231,-472.94,CRNH Ltd,SOCIAL SERVICES RESIDENTIAL,Peoples Services,Nursing Care - 3rd party top up payment,A56023
London Borough of Sutton,16/04/2021,50003231,-262.74,CRNH Ltd,SOCIAL SERVICES RESIDENTIAL,Peoples Services,Nursing Care - 3rd party top up payment,A56023
London Borough of Sutton,16/04/2021,50003245,-472.94,CRNH Ltd,SOCIAL SERVICES RESIDENTIAL,Peoples Services,Nursing Care - 3rd party top up payment,A56023
London Borough of Sutton,16/04/2021,50003245,-262.74,CRNH Ltd,SOCIAL SERVICES RESIDENTIAL,Peoples Services,Nursing Care - 3rd party top up payment,A56023
London Borough of Sutton,16/04/2021,50003245,"1,290.00",CRNH Ltd,SOCIAL SERVICES RESIDENTIAL,Peoples Services,Nursing Care - Ext Provider,A56025
London Borough of Sutton,16/04/2021,50003245,"2,322.00",CRNH Ltd,SOCIAL SERVICES RESIDENTIAL,Peoples Services,Nursing Care - Ext Provider,A56025
London Borough of Sutton,16/04/2021,50003331,"1,290.00",CRNH Ltd,SOCIAL SERVICES RESIDENTIAL,Peoples Services,Nursing Care - Ext Provider,A56025
London Borough of Sutton,16/04/2021,50003331,"2,322.00",CRNH Ltd,SOCIAL SERVICES RESIDENTIAL,Peoples Services,Nursing Care - Ext Provider,A56025
London Borough of Sutton,16/04/2021,50003331,-472.94,CRNH Ltd,SOCIAL SERVICES RESIDENTIAL,Peoples Services,Nursing Care - 3rd party top up payment,A56023
London Borough of Sutton,16/04/2021,50003331,-262.74,CRNH Ltd,SOCIAL SERVICES RESIDENTIAL,Peoples Services,Nursing Care - 3rd party top up payment,A56023
London Borough of Sutton,16/04/2021,50003076,"2,322.00",Cross Care Services Ltd,SOCIAL SERVICES RESIDENTIAL,Peoples Services,Nursing Care - Ext Provider,A56025
London Borough of Sutton,16/04/2021,50003076,"1,290.00",Cross Care Services Ltd,SOCIAL SERVICES RESIDENTIAL,Peoples Services,Nursing Care - Ext Provider,A56025
London Borough of Sutton,16/04/2021,50003076,-472.94,Cross Care Services Ltd,SOCIAL SERVICES RESIDENTIAL,Peoples Services,Nursing Care - 3rd party top up payment,A56023
London Borough of Sutton,16/04/2021,50003076,-262.74,Cross Care Services Ltd,SOCIAL SERVICES RESIDENTIAL,Peoples Services,Nursing Care - 3rd party top up payment,A56023
London Borough of Sutton,16/04/2021,50003174,"2,038.78",Cross Care Services Ltd,SOCIAL SERVICES RESIDENTIAL,Peoples Services,Nursing Care - Ext Provider,A56025
London Borough of Sutton,16/04/2021,50003174,-425.73,Cross Care Services Ltd,SOCIAL SERVICES RESIDENTIAL,Peoples Services,Nursing Care - 3rd party top up payment,A56023
London Borough of Sutton,16/04/2021,50003174,"1,132.66",Cross Care Services Ltd,SOCIAL SERVICES RESIDENTIAL,Peoples Services,Nursing Care - Ext Provider,A56025
London Borough of Sutton,16/04/2021,50003174,-236.51,Cross Care Services Ltd,SOCIAL SERVICES RESIDENTIAL,Peoples Services,Nursing Care - 3rd party top up payment,A56023
London Borough of Sutton,16/04/2021,50003175,771.63,Cross Care Services Ltd,SOCIAL SERVICES RESIDENTIAL,Peoples Services,Nursing Care - Ext Provider,A56025
London Borough of Sutton,16/04/2021,50003175,-52.55,Cross Care Services Ltd,SOCIAL SERVICES RESIDENTIAL,Peoples Services,Nursing Care - 3rd party top up payment,A56023
London Borough of Sutton,16/04/2021,50003226,"2,322.00",Cross Care Services Ltd,SOCIAL SERVICES RESIDENTIAL,Peoples Services,Nursing Care - Ext Provider,A56025
London Borough of Sutton,16/04/2021,50003226,"1,290.00",Cross Care Services Ltd,SOCIAL SERVICES RESIDENTIAL,Peoples Services,Nursing Care - Ext Provider,A56025
London Borough of Sutton,16/04/2021,50003226,-472.94,Cross Care Services Ltd,SOCIAL SERVICES RESIDENTIAL,Peoples Services,Nursing Care - 3rd party top up payment,A56023
London Borough of Sutton,16/04/2021,50003226,-262.74,Cross Care Services Ltd,SOCIAL SERVICES RESIDENTIAL,Peoples Services,Nursing Care - 3rd party top up payment,A56023
London Borough of Sutton,16/04/2021,50003276,"2,251.34",Cross Care Services Ltd,SOCIAL SERVICES RESIDENTIAL,Peoples Services,Nursing Care - Ext Provider,A56025
London Borough of Sutton,16/04/2021,50003276,"1,250.74",Cross Care Services Ltd,SOCIAL SERVICES RESIDENTIAL,Peoples Services,Nursing Care - Ext Provider,A56025
London Borough of Sutton,16/04/2021,50003306,"2,321.79",Cross Care Services Ltd,SOCIAL SERVICES RESIDENTIAL,Peoples Services,Nursing Care - Ext Provider,A56025
London Borough of Sutton,16/04/2021,50003306,"1,289.89",Cross Care Services Ltd,SOCIAL SERVICES RESIDENTIAL,Peoples Services,Nursing Care - Ext Provider,A56025
London Borough of Sutton,16/04/2021,50003306,-472.94,Cross Care Services Ltd,SOCIAL SERVICES RESIDENTIAL,Peoples Services,Nursing Care - 3rd party top up payment,A56023
London Borough of Sutton,16/04/2021,50003306,-262.74,Cross Care Services Ltd,SOCIAL SERVICES RESIDENTIAL,Peoples Services,Nursing Care - 3rd party top up payment,A56023
London Borough of Sutton,16/04/2021,50003345,"1,290.00",Cross Care Services Ltd,SOCIAL SERVICES RESIDENTIAL,Peoples Services,Nursing Care - Ext Provider,A56025
London Borough of Sutton,16/04/2021,50003345,"2,322.00",Cross Care Services Ltd,SOCIAL SERVICES RESIDENTIAL,Peoples Services,Nursing Care - Ext Provider,A56025
London Borough of Sutton,16/04/2021,50003345,-472.94,Cross Care Services Ltd,SOCIAL SERVICES RESIDENTIAL,Peoples Services,Nursing Care - 3rd party top up payment,A56023
London Borough of Sutton,16/04/2021,50003345,-262.74,Cross Care Services Ltd,SOCIAL SERVICES RESIDENTIAL,Peoples Services,Nursing Care - 3rd party top up payment,A56023
London Borough of Sutton,16/04/2021,50003346,"1,250.80",Cross Care Services Ltd,SOCIAL SERVICES RESIDENTIAL,Peoples Services,Nursing Care Short Term,A56026
London Borough of Sutton,16/04/2021,50003346,-425.73,Cross Care Services Ltd,SOCIAL SERVICES RESIDENTIAL,Peoples Services,Nursing Care - 3rd party top up payment,A56023
London Borough of Sutton,16/04/2021,50003346,"2,251.44",Cross Care Services Ltd,SOCIAL SERVICES RESIDENTIAL,Peoples Services,Nursing Care Short Term,A56026
London Borough of Sutton,16/04/2021,50003346,-236.51,Cross Care Services Ltd,SOCIAL SERVICES RESIDENTIAL,Peoples Services,Nursing Care - 3rd party top up payment,A56023
London Borough of Sutton,16/04/2021,50003363,"2,322.00",Cross Care Services Ltd,SOCIAL SERVICES RESIDENTIAL,Peoples Services,Nursing Care - Ext Provider,A56025
London Borough of Sutton,16/04/2021,50003363,"1,290.00",Cross Care Services Ltd,SOCIAL SERVICES RESIDENTIAL,Peoples Services,Nursing Care - Ext Provider,A56025
London Borough of Sutton,16/04/2021,50003363,-472.94,Cross Care Services Ltd,SOCIAL SERVICES RESIDENTIAL,Peoples Services,Nursing Care - 3rd party top up payment,A56023
London Borough of Sutton,16/04/2021,50003363,-262.74,Cross Care Services Ltd,SOCIAL SERVICES RESIDENTIAL,Peoples Services,Nursing Care - 3rd party top up payment,A56023
London Borough of Sutton,16/04/2021,50003249,940.96,Crossways Community,SOCIAL SERVICES RESIDENTIAL,Peoples Services,Residential Care - Ext Provider,A56114
London Borough of Sutton,16/04/2021,50003249,"1,693.72",Crossways Community,SOCIAL SERVICES RESIDENTIAL,Peoples Services,Residential Care - Ext Provider,A56114
London Borough of Sutton,16/04/2021,50003290,"-1,313.00",Crossways Community,SOCIAL SERVICES RESIDENTIAL,Peoples Services,Nursing Care - 3rd party top up payment,A56023
London Borough of Sutton,16/04/2021,50003290,-729.44,Crossways Community,SOCIAL SERVICES RESIDENTIAL,Peoples Services,Nursing Care - 3rd party top up payment,A56023
London Borough of Sutton,16/04/2021,50003290,"1,488.66",Crossways Community,SOCIAL SERVICES RESIDENTIAL,Peoples Services,Residential Care - Ext Provider,A56114
London Borough of Sutton,16/04/2021,50003290,"2,679.58",Crossways Community,SOCIAL SERVICES RESIDENTIAL,Peoples Services,Residential Care - Ext Provider,A56114
London Borough of Sutton,07/03/2021,20000223,"69,915.06",LONDON BOROUGH OF CROYDON,CENTRAL & LOCAL GOVERNMENT,Environment Housing and Neighbourhoods,Idverde - Contract Payment,A56100
London Borough of Sutton,01/12/2020,20001074,"17,905.95",LONDON BOROUGH OF CROYDON,CENTRAL & LOCAL GOVERNMENT,Resources,Building Rents,A22005
London Borough of Sutton,01/12/2020,20001082,"6,336.50",LONDON BOROUGH OF CROYDON,CENTRAL & LOCAL GOVERNMENT,Resources,Building Rents,A22005
London Borough of Sutton,15/04/2021,20001083,"6,336.50",LONDON BOROUGH OF CROYDON,CENTRAL & LOCAL GOVERNMENT,Resources,Building Rents,A22005
London Borough of Sutton,01/04/2021,20000642,646.66,CSL Dualcom Ltd,BUSINESS & COMPUTER SYSTEMS,Resources,FM - Planned Maintenance Contract - Mitie,A56097
London Borough of Sutton,16/04/2021,50003055,"4,628.57",CSS Ltd ,SOCIAL SERVICES RESIDENTIAL,Peoples Services,Residential Care - Ext Provider,A56114
London Borough of Sutton,16/04/2021,50003055,"2,571.43",CSS Ltd ,SOCIAL SERVICES RESIDENTIAL,Peoples Services,Residential Care - Ext Provider,A56114
London Borough of Sutton,09/04/2021,20001084,"1,942.50",Cygnet IT Services CIC,BUSINESS & COMPUTER SYSTEMS,Peoples Services,Registration & Licence Fees Payable,A44267
London Borough of Sutton,11/04/2021,20000150,805,REDACTED - PERSONAL DATA,GRANTS & EX GRATIA PAYMENTS,Environment Housing and Neighbourhoods,Temporary Protection - Homeless Persons,A62028
London Borough of Sutton,16/04/2021,20000697,"1,692.00",Daisy Bogg Consultancy Ltd,CONFERENCES,Peoples Services,Staff Development And Training,A15022
London Borough of Sutton,06/04/2021,20000282,"1,209.00",REDACTED - PERSONAL DATA,GRANTS & EX GRATIA PAYMENTS,Environment Housing and Neighbourhoods,Temporary Protection - Homeless Persons,A62028
London Borough of Sutton,21/04/2021,50005672,943,REDACTED - PERSONAL DATA,FOSTER PARENTS,Peoples Services,Approved Lodgings,A61000
London Borough of Sutton,21/03/2021,50006655,96,Day and Nite Services,SOCIAL SERVICES DAY CARE,Peoples Services,Home Care Services,A56019
London Borough of Sutton,21/03/2021,50006655,672,Day and Nite Services,SOCIAL SERVICES DAY CARE,Peoples Services,Home Care Services,A56019
London Borough of Sutton,21/03/2021,50006673,560,Day and Nite Services,SOCIAL SERVICES DAY CARE,Peoples Services,Home Care Services,A56019
London Borough of Sutton,28/03/2021,50008165,96,Day and Nite Services,SOCIAL SERVICES DAY CARE,Peoples Services,Home Care Services,A56019
London Borough of Sutton,28/03/2021,50008165,672,Day and Nite Services,SOCIAL SERVICES DAY CARE,Peoples Services,Home Care Services,A56019
London Borough of Sutton,28/03/2021,50008181,560,Day and Nite Services,SOCIAL SERVICES DAY CARE,Peoples Services,Home Care Services,A56019
London Borough of Sutton,16/04/2021,50003098,"1,042.14",Denville Hall 2012,SOCIAL SERVICES RESIDENTIAL,Peoples Services,Residential Care - Ext Provider,A56114
London Borough of Sutton,16/04/2021,50003098,"1,875.86",Denville Hall 2012,SOCIAL SERVICES RESIDENTIAL,Peoples Services,Residential Care - Ext Provider,A56114
London Borough of Sutton,22/04/2021,20000894,"1,300.00",D'Gama Ltd,PLS LANDLORDS,Environment Housing and Neighbourhoods,Temporary Protection - Homeless Persons,A62028
London Borough of Sutton,07/04/2021,20000190,"1,000.00",REDACTED - PERSONAL DATA,GRANTS & EX GRATIA PAYMENTS,Environment Housing and Neighbourhoods,Temporary Protection - Homeless Persons,A62028
London Borough of Sutton,13/04/2021,20000536,"1,460.42",DSI Billing Services Ltd,OFFICE SERVICES,Resources,Postage & Couriers,A45015
London Borough of Sutton,13/04/2021,20000536,"1,460.43",DSI Billing Services Ltd,OFFICE SERVICES,Resources,Postage & Couriers,A45015
London Borough of Sutton,01/04/2021,20001333,"1,714.28",Dunfield & Mead Ltd,CHILDREN'S SERVICES - RESIDENTIAL,Peoples Services,Approved Lodgings,A61000
London Borough of Sutton,01/04/2021,20001336,839.28,Dunfield & Mead Ltd,CHILDREN'S SERVICES - RESIDENTIAL,Peoples Services,Approved Lodgings,A61000
London Borough of Sutton,01/04/2021,20001337,"3,085.71",Dunfield & Mead Ltd,CHILDREN'S SERVICES - RESIDENTIAL,Peoples Services,Approved Lodgings,A61000
London Borough of Sutton,01/04/2021,20001338,"3,535.71",Dunfield & Mead Ltd,CHILDREN'S SERVICES - RESIDENTIAL,Peoples Services,Approved Lodgings,A61000
London Borough of Sutton,01/04/2021,20001341,"3,535.71",Dunfield & Mead Ltd,CHILDREN'S SERVICES - RESIDENTIAL,Peoples Services,Approved Lodgings,A61000
London Borough of Sutton,01/04/2021,20001342,"2,660.71",Dunfield & Mead Ltd,CHILDREN'S SERVICES - RESIDENTIAL,Peoples Services,Approved Lodgings,A61000
London Borough of Sutton,29/03/2021,50001636,"4,018.92",Dunfield & Mead Ltd,CHILDREN'S SERVICES - RESIDENTIAL,Peoples Services,Accommodation - Supported Living,A62001
London Borough of Sutton,29/03/2021,50001640,"4,018.92",Dunfield & Mead Ltd,CHILDREN'S SERVICES - RESIDENTIAL,Peoples Services,Accommodation - Supported Living,A62001
London Borough of Sutton,29/03/2021,50001656,"4,683.21",Dunfield & Mead Ltd,CHILDREN'S SERVICES - RESIDENTIAL,Peoples Services,Accommodation - Supported Living,A62001
London Borough of Sutton,29/03/2021,50001657,"4,018.92",Dunfield & Mead Ltd,CHILDREN'S SERVICES - RESIDENTIAL,Peoples Services,Accommodation - Supported Living,A62001
London Borough of Sutton,29/03/2021,50001665,"4,018.92",Dunfield & Mead Ltd,CHILDREN'S SERVICES - RESIDENTIAL,Peoples Services,Accommodation - Supported Living,A62001
London Borough of Sutton,29/03/2021,50001675,"4,351.07",Dunfield & Mead Ltd,CHILDREN'S SERVICES - RESIDENTIAL,Peoples Services,Approved Lodgings,A61000
London Borough of Sutton,29/03/2021,50001682,"2,568.21",Dunfield & Mead Ltd,CHILDREN'S SERVICES - RESIDENTIAL,Peoples Services,Accommodation - Supported Living,A62001
London Borough of Sutton,16/04/2021,50003342,"1,974.81",Dunheved Lodge,SOCIAL SERVICES RESIDENTIAL,Peoples Services,Residential Care - Ext Provider,A56114
London Borough of Sutton,16/04/2021,50003342,"1,077.14",Dunheved Lodge,SOCIAL SERVICES RESIDENTIAL,Peoples Services,One to One Care,A56108
London Borough of Sutton,16/04/2021,50003342,"1,097.11",Dunheved Lodge,SOCIAL SERVICES RESIDENTIAL,Peoples Services,Residential Care - Ext Provider,A56114
London Borough of Sutton,16/04/2021,50003342,"1,938.86",Dunheved Lodge,SOCIAL SERVICES RESIDENTIAL,Peoples Services,One to One Care,A56108
London Borough of Sutton,20/04/2021,20000982,"5,389.28",Dynamic Care Ltd,SOCIAL SERVICES RESIDENTIAL,Peoples Services,Approved Lodgings,A61000
London Borough of Sutton,20/04/2021,20000984,"4,096.42",Dynamic Care Ltd,SOCIAL SERVICES RESIDENTIAL,Peoples Services,Approved Lodgings,A61000
London Borough of Sutton,20/04/2021,20000986,"2,657.14",Dynamic Care Ltd,SOCIAL SERVICES RESIDENTIAL,Peoples Services,Approved Lodgings,A61000
London Borough of Sutton,01/04/2021,50001654,"4,461.77",Dynamic Care Ltd,SOCIAL SERVICES RESIDENTIAL,Peoples Services,Approved Lodgings,A61000
London Borough of Sutton,01/04/2021,50001663,"6,122.48",Dynamic Care Ltd,SOCIAL SERVICES RESIDENTIAL,Peoples Services,Approved Lodgings,A61000
London Borough of Sutton,01/04/2021,50001676,"3,952.13",Dynamic Care Ltd,SOCIAL SERVICES RESIDENTIAL,Peoples Services,Approved Lodgings,A61000
London Borough of Sutton,08/02/2021,50000383,"18,788.00",Eagle House 6th Form (Strawberry Lodge),GRANTS & EX GRATIA PAYMENTS,Peoples Services,Independent School Fees,A56002
London Borough of Sutton,08/02/2021,50000384,"18,732.67",Eagle House 6th Form (Strawberry Lodge),GRANTS & EX GRATIA PAYMENTS,Peoples Services,Independent School Fees,A56002
London Borough of Sutton,08/02/2021,50000385,"25,495.67",Eagle House 6th Form (Strawberry Lodge),GRANTS & EX GRATIA PAYMENTS,Peoples Services,Independent School Fees,A56002
London Borough of Sutton,08/02/2021,50000387,"20,849.67",Eagle House 6th Form (Strawberry Lodge),GRANTS & EX GRATIA PAYMENTS,Peoples Services,Independent School Fees,A56002
London Borough of Sutton,08/02/2021,50000430,"19,285.33",Eagle House 6th Form (Strawberry Lodge),GRANTS & EX GRATIA PAYMENTS,Peoples Services,Independent School Fees,A56002
London Borough of Sutton,08/02/2021,50000391,"27,488.33",Eagle House Junior School,GRANTS & EX GRATIA PAYMENTS,Peoples Services,Independent School Fees,A56002
London Borough of Sutton,08/02/2021,50000392,"21,019.33",Eagle House Junior School,GRANTS & EX GRATIA PAYMENTS,Peoples Services,Independent School Fees,A56002
London Borough of Sutton,08/02/2021,50000386,"16,835.67",Eagle House Senior School,GRANTS & EX GRATIA PAYMENTS,Peoples Services,Independent School Fees,A56002
London Borough of Sutton,08/02/2021,50000388,"20,640.33",Eagle House Senior School,GRANTS & EX GRATIA PAYMENTS,Peoples Services,Independent School Fees,A56002
London Borough of Sutton,08/02/2021,50000389,"22,872.00",Eagle House Senior School,GRANTS & EX GRATIA PAYMENTS,Peoples Services,Independent School Fees,A56002
London Borough of Sutton,08/02/2021,50000390,"17,207.67",Eagle House Senior School,GRANTS & EX GRATIA PAYMENTS,Peoples Services,Independent School Fees,A56002
London Borough of Sutton,08/02/2021,50000393,"27,592.67",Eagle House Senior School,GRANTS & EX GRATIA PAYMENTS,Peoples Services,Independent School Fees,A56002
London Borough of Sutton,29/01/2021,20000358,624,Earth Anchors Ltd,REFUSE COLLECTION / DISPOSAL,Environment Housing and Neighbourhoods,Payments to Contractors,C14000
London Borough of Sutton,09/03/2021,20000420,624,Earth Anchors Ltd,REFUSE COLLECTION / DISPOSAL,Environment Housing and Neighbourhoods,Furniture - Purchase,A40015
London Borough of Sutton,16/04/2021,50003286,"1,206.86",Eastcroft Nursing Home,SOCIAL SERVICES RESIDENTIAL,Peoples Services,Nursing Care - Ext Provider,A56025
London Borough of Sutton,16/04/2021,50003286,"2,172.34",Eastcroft Nursing Home,SOCIAL SERVICES RESIDENTIAL,Peoples Services,Nursing Care - Ext Provider,A56025
London Borough of Sutton,16/04/2021,50003286,-288,Eastcroft Nursing Home,SOCIAL SERVICES RESIDENTIAL,Peoples Services,Nursing Care - 3rd party top up payment,A56023
London Borough of Sutton,16/04/2021,50003286,-160,Eastcroft Nursing Home,SOCIAL SERVICES RESIDENTIAL,Peoples Services,Nursing Care - 3rd party top up payment,A56023
London Borough of Sutton,16/04/2021,50003388,"1,290.00",Eastcroft Nursing Home,SOCIAL SERVICES RESIDENTIAL,Peoples Services,Nursing Care - Ext Provider,A56025
London Borough of Sutton,16/04/2021,50003388,"2,322.00",Eastcroft Nursing Home,SOCIAL SERVICES RESIDENTIAL,Peoples Services,Nursing Care - Ext Provider,A56025
London Borough of Sutton,16/04/2021,50003388,-472.94,Eastcroft Nursing Home,SOCIAL SERVICES RESIDENTIAL,Peoples Services,Nursing Care - 3rd party top up payment,A56023
London Borough of Sutton,16/04/2021,50003388,-262.74,Eastcroft Nursing Home,SOCIAL SERVICES RESIDENTIAL,Peoples Services,Nursing Care - 3rd party top up payment,A56023
London Borough of Sutton,16/04/2021,50003305,"2,883.09",Eleanor Nursing & Social Care Ltd,SOCIAL SERVICES RESIDENTIAL,Peoples Services,Residential Care - Ext Provider,A56114
London Borough of Sutton,16/04/2021,50003305,"1,601.71",Eleanor Nursing & Social Care Ltd,SOCIAL SERVICES RESIDENTIAL,Peoples Services,Residential Care - Ext Provider,A56114
London Borough of Sutton,16/04/2021,50003305,-214.71,Eleanor Nursing & Social Care Ltd,SOCIAL SERVICES RESIDENTIAL,Peoples Services,Residential Care - Client Cont ( Net Paymt ),A56113
London Borough of Sutton,16/04/2021,50003305,-386.49,Eleanor Nursing & Social Care Ltd,SOCIAL SERVICES RESIDENTIAL,Peoples Services,Residential Care - Client Cont ( Net Paymt ),A56113
London Borough of Sutton,20/04/2021,20000871,"9,810.00",ELLEMM Consulting Ltd ,TEMP STAFF & CONSULTANCY,Resources,Miscellaneous Expenses,A49000
London Borough of Sutton,16/04/2021,50003168,"3,132.86",Elysium Healthcare Ltd,CHILDREN'S SERVICES - FOSTERING & ADOPTION SERVICES,Peoples Services,Residential Care - Ext Provider,A56114
London Borough of Sutton,16/04/2021,50003168,"5,639.14",Elysium Healthcare Ltd,CHILDREN'S SERVICES - FOSTERING & ADOPTION SERVICES,Peoples Services,Residential Care - Ext Provider,A56114
London Borough of Sutton,16/04/2021,50003006,"4,751.05",Elysium Supported Living Limited,SOCIAL SERVICES RESIDENTIAL,Peoples Services,Residential Care - Ext Provider,A56114
London Borough of Sutton,16/04/2021,50003006,"2,639.47",Elysium Supported Living Limited,SOCIAL SERVICES RESIDENTIAL,Peoples Services,Residential Care - Ext Provider,A56114
London Borough of Sutton,27/04/2021,20001193,"167,000.00",Encompass,TEMP STAFF & CONSULTANCY,Health and Wellbeing,Professional Fees,A44066
London Borough of Sutton,22/04/2021,50006823,"3,642.85",Enriched Care Ltd,CHILDREN'S SERVICES - RESIDENTIAL,Peoples Services,Supported Living,A56088
London Borough of Sutton,07/04/2021,20000596,"7,218.02",Enviva Paediatric Care,DISABLED CHILDRENS TEAM,Peoples Services,Homecare Core Services,A56020
London Borough of Sutton,07/04/2021,50003830,"1,349.10",Enviva Paediatric Care,DISABLED CHILDRENS TEAM,Peoples Services,Provider Contract Payments,A44290
London Borough of Sutton,07/04/2021,50003831,"13,126.73",Enviva Paediatric Care,DISABLED CHILDRENS TEAM,Peoples Services,Provider Contract Payments,A44290
London Borough of Sutton,07/04/2021,50003832,"1,056.80",Enviva Paediatric Care,DISABLED CHILDRENS TEAM,Peoples Services,Provider Contract Payments,A44290
London Borough of Sutton,07/04/2021,50003833,"1,889.60",Enviva Paediatric Care,DISABLED CHILDRENS TEAM,Peoples Services,Provider Contract Payments,A44290
London Borough of Sutton,15/04/2021,20000534,"103,430.00",Epsom & Ewell Borough Council,CENTRAL & LOCAL GOVERNMENT,Environment Housing and Neighbourhoods,Nonsuch Management Committee,A50003
London Borough of Sutton,02/02/2021,20000567,"7,841.63",Epsom & St Helier Nhs Trust,OFFICE SERVICES,Health and Wellbeing,Provider Contract Payments,A44290
London Borough of Sutton,18/02/2021,20001276,"3,428.71",Epsom & St Helier Nhs Trust,OFFICE SERVICES,Peoples Services,Fees,A44040
London Borough of Sutton,20/04/2021,20001185,"57,014.39",Erith Contractors Ltd,CONSTRUCTION INDUSTRY,Environment Housing and Neighbourhoods,Payments to Contractors,C14000
London Borough of Sutton,19/04/2021,20000822,"8,775.00",ESRI (UK) Ltd,IT EQUIPMENT MAINTENANCE,Resources,IT Software Purchase,A45040
London Borough of Sutton,31/03/2021,20000373,"1,085.00",Euro Hotels (Croydon Court) Ltd,ACCOMMODATION BED & BREAKFAST,Peoples Services,Client Care/Assistance,A61011
London Borough of Sutton,28/02/2021,20000131,980,Euro Hotels (Gilroy Court) Ltd,ACCOMMODATION BED & BREAKFAST,Environment Housing and Neighbourhoods,Bed & Breakfast,A56000
London Borough of Sutton,28/02/2021,50003546,367.5,Exodus Health Care Services Ltd,SOCIAL SERVICES RESIDENTIAL,Peoples Services,Home Care Services,A56019
London Borough of Sutton,28/02/2021,50003546,227.5,Exodus Health Care Services Ltd,SOCIAL SERVICES RESIDENTIAL,Peoples Services,Home Care Services,A56019
London Borough of Sutton,14/02/2021,50003547,367.5,Exodus Health Care Services Ltd,SOCIAL SERVICES RESIDENTIAL,Peoples Services,Home Care Services,A56019
London Borough of Sutton,14/02/2021,50003547,227.5,Exodus Health Care Services Ltd,SOCIAL SERVICES RESIDENTIAL,Peoples Services,Home Care Services,A56019
London Borough of Sutton,21/02/2021,50003548,367.5,Exodus Health Care Services Ltd,SOCIAL SERVICES RESIDENTIAL,Peoples Services,Home Care Services,A56019
London Borough of Sutton,21/02/2021,50003548,227.5,Exodus Health Care Services Ltd,SOCIAL SERVICES RESIDENTIAL,Peoples Services,Home Care Services,A56019
London Borough of Sutton,07/03/2021,50003549,367.5,Exodus Health Care Services Ltd,SOCIAL SERVICES RESIDENTIAL,Peoples Services,Home Care Services,A56019
London Borough of Sutton,07/03/2021,50003549,227.5,Exodus Health Care Services Ltd,SOCIAL SERVICES RESIDENTIAL,Peoples Services,Home Care Services,A56019
London Borough of Sutton,14/03/2021,50003550,367.5,Exodus Health Care Services Ltd,SOCIAL SERVICES RESIDENTIAL,Peoples Services,Home Care Services,A56019
London Borough of Sutton,14/03/2021,50003550,227.5,Exodus Health Care Services Ltd,SOCIAL SERVICES RESIDENTIAL,Peoples Services,Home Care Services,A56019
London Borough of Sutton,21/03/2021,50003551,367.5,Exodus Health Care Services Ltd,SOCIAL SERVICES RESIDENTIAL,Peoples Services,Home Care Services,A56019
London Borough of Sutton,21/03/2021,50003551,227.5,Exodus Health Care Services Ltd,SOCIAL SERVICES RESIDENTIAL,Peoples Services,Home Care Services,A56019
London Borough of Sutton,07/03/2021,50003558,673.75,Exodus Health Care Services Ltd,SOCIAL SERVICES RESIDENTIAL,Peoples Services,Home Care Services,A56019
London Borough of Sutton,14/02/2021,50003559,673.75,Exodus Health Care Services Ltd,SOCIAL SERVICES RESIDENTIAL,Peoples Services,Home Care Services,A56019
London Borough of Sutton,21/02/2021,50003560,673.75,Exodus Health Care Services Ltd,SOCIAL SERVICES RESIDENTIAL,Peoples Services,Home Care Services,A56019
London Borough of Sutton,28/02/2021,50003561,673.75,Exodus Health Care Services Ltd,SOCIAL SERVICES RESIDENTIAL,Peoples Services,Home Care Services,A56019
London Borough of Sutton,14/03/2021,50003562,673.75,Exodus Health Care Services Ltd,SOCIAL SERVICES RESIDENTIAL,Peoples Services,Home Care Services,A56019
London Borough of Sutton,21/03/2021,50003563,673.75,Exodus Health Care Services Ltd,SOCIAL SERVICES RESIDENTIAL,Peoples Services,Home Care Services,A56019
London Borough of Sutton,07/03/2021,50003597,551.25,Exodus Health Care Services Ltd,SOCIAL SERVICES RESIDENTIAL,Peoples Services,Home Care Services,A56019
London Borough of Sutton,14/02/2021,50003598,551.25,Exodus Health Care Services Ltd,SOCIAL SERVICES RESIDENTIAL,Peoples Services,Home Care Services,A56019
London Borough of Sutton,21/02/2021,50003599,551.25,Exodus Health Care Services Ltd,SOCIAL SERVICES RESIDENTIAL,Peoples Services,Home Care Services,A56019
London Borough of Sutton,28/02/2021,50003600,551.25,Exodus Health Care Services Ltd,SOCIAL SERVICES RESIDENTIAL,Peoples Services,Home Care Services,A56019
London Borough of Sutton,14/03/2021,50003601,551.25,Exodus Health Care Services Ltd,SOCIAL SERVICES RESIDENTIAL,Peoples Services,Home Care Services,A56019
London Borough of Sutton,21/03/2021,50003602,551.25,Exodus Health Care Services Ltd,SOCIAL SERVICES RESIDENTIAL,Peoples Services,Home Care Services,A56019
London Borough of Sutton,07/03/2021,50003603,367.5,Exodus Health Care Services Ltd,SOCIAL SERVICES RESIDENTIAL,Peoples Services,Home Care Services,A56019
London Borough of Sutton,07/03/2021,50003603,245,Exodus Health Care Services Ltd,SOCIAL SERVICES RESIDENTIAL,Peoples Services,Home Care Services,A56019
London Borough of Sutton,14/02/2021,50003604,367.5,Exodus Health Care Services Ltd,SOCIAL SERVICES RESIDENTIAL,Peoples Services,Home Care Services,A56019
London Borough of Sutton,14/02/2021,50003604,245,Exodus Health Care Services Ltd,SOCIAL SERVICES RESIDENTIAL,Peoples Services,Home Care Services,A56019
London Borough of Sutton,21/02/2021,50003605,367.5,Exodus Health Care Services Ltd,SOCIAL SERVICES RESIDENTIAL,Peoples Services,Home Care Services,A56019
London Borough of Sutton,21/02/2021,50003605,245,Exodus Health Care Services Ltd,SOCIAL SERVICES RESIDENTIAL,Peoples Services,Home Care Services,A56019
London Borough of Sutton,28/02/2021,50003606,367.5,Exodus Health Care Services Ltd,SOCIAL SERVICES RESIDENTIAL,Peoples Services,Home Care Services,A56019
London Borough of Sutton,28/02/2021,50003606,245,Exodus Health Care Services Ltd,SOCIAL SERVICES RESIDENTIAL,Peoples Services,Home Care Services,A56019
London Borough of Sutton,14/03/2021,50003607,367.5,Exodus Health Care Services Ltd,SOCIAL SERVICES RESIDENTIAL,Peoples Services,Home Care Services,A56019
London Borough of Sutton,14/03/2021,50003607,245,Exodus Health Care Services Ltd,SOCIAL SERVICES RESIDENTIAL,Peoples Services,Home Care Services,A56019
London Borough of Sutton,21/03/2021,50003608,350,Exodus Health Care Services Ltd,SOCIAL SERVICES RESIDENTIAL,Peoples Services,Home Care Services,A56019
London Borough of Sutton,21/03/2021,50003608,262.5,Exodus Health Care Services Ltd,SOCIAL SERVICES RESIDENTIAL,Peoples Services,Home Care Services,A56019
London Borough of Sutton,07/03/2021,50003609,735,Exodus Health Care Services Ltd,SOCIAL SERVICES RESIDENTIAL,Peoples Services,Home Care Services,A56019
London Borough of Sutton,14/02/2021,50003610,735,Exodus Health Care Services Ltd,SOCIAL SERVICES RESIDENTIAL,Peoples Services,Home Care Services,A56019
London Borough of Sutton,21/02/2021,50003611,735,Exodus Health Care Services Ltd,SOCIAL SERVICES RESIDENTIAL,Peoples Services,Home Care Services,A56019
London Borough of Sutton,28/02/2021,50003612,735,Exodus Health Care Services Ltd,SOCIAL SERVICES RESIDENTIAL,Peoples Services,Home Care Services,A56019
London Borough of Sutton,14/03/2021,50003613,735,Exodus Health Care Services Ltd,SOCIAL SERVICES RESIDENTIAL,Peoples Services,Home Care Services,A56019
London Borough of Sutton,21/03/2021,50003614,735,Exodus Health Care Services Ltd,SOCIAL SERVICES RESIDENTIAL,Peoples Services,Home Care Services,A56019
London Borough of Sutton,14/02/2021,50003616,612.5,Exodus Health Care Services Ltd,SOCIAL SERVICES RESIDENTIAL,Peoples Services,Home Care Services,A56019
London Borough of Sutton,21/02/2021,50003617,612.5,Exodus Health Care Services Ltd,SOCIAL SERVICES RESIDENTIAL,Peoples Services,Home Care Services,A56019
London Borough of Sutton,28/02/2021,50003618,393.73,Exodus Health Care Services Ltd,SOCIAL SERVICES RESIDENTIAL,Peoples Services,Home Care Services,A56019
London Borough of Sutton,28/02/2021,50003618,109.4,Exodus Health Care Services Ltd,SOCIAL SERVICES RESIDENTIAL,Peoples Services,Home Care Services,A56019
London Borough of Sutton,07/03/2021,50003713,551.15,Exodus Health Care Services Ltd,SOCIAL SERVICES RESIDENTIAL,Peoples Services,Home Care Services,A56019
London Borough of Sutton,07/03/2021,50003713,91.98,Exodus Health Care Services Ltd,SOCIAL SERVICES RESIDENTIAL,Peoples Services,Home Care Services,A56019
London Borough of Sutton,14/02/2021,50003714,551.15,Exodus Health Care Services Ltd,SOCIAL SERVICES RESIDENTIAL,Peoples Services,Home Care Services,A56019
London Borough of Sutton,14/02/2021,50003714,91.98,Exodus Health Care Services Ltd,SOCIAL SERVICES RESIDENTIAL,Peoples Services,Home Care Services,A56019
London Borough of Sutton,21/02/2021,50003715,551.15,Exodus Health Care Services Ltd,SOCIAL SERVICES RESIDENTIAL,Peoples Services,Home Care Services,A56019
London Borough of Sutton,21/02/2021,50003715,91.98,Exodus Health Care Services Ltd,SOCIAL SERVICES RESIDENTIAL,Peoples Services,Home Care Services,A56019
London Borough of Sutton,28/02/2021,50003716,551.15,Exodus Health Care Services Ltd,SOCIAL SERVICES RESIDENTIAL,Peoples Services,Home Care Services,A56019
London Borough of Sutton,28/02/2021,50003716,91.98,Exodus Health Care Services Ltd,SOCIAL SERVICES RESIDENTIAL,Peoples Services,Home Care Services,A56019
London Borough of Sutton,14/03/2021,50003717,551.15,Exodus Health Care Services Ltd,SOCIAL SERVICES RESIDENTIAL,Peoples Services,Home Care Services,A56019
London Borough of Sutton,14/03/2021,50003717,91.98,Exodus Health Care Services Ltd,SOCIAL SERVICES RESIDENTIAL,Peoples Services,Home Care Services,A56019
London Borough of Sutton,21/03/2021,50003718,551.15,Exodus Health Care Services Ltd,SOCIAL SERVICES RESIDENTIAL,Peoples Services,Home Care Services,A56019
London Borough of Sutton,21/03/2021,50003718,91.98,Exodus Health Care Services Ltd,SOCIAL SERVICES RESIDENTIAL,Peoples Services,Home Care Services,A56019
London Borough of Sutton,07/03/2021,50003725,52.5,Exodus Health Care Services Ltd,SOCIAL SERVICES RESIDENTIAL,Peoples Services,Home Care Services,A56019
London Borough of Sutton,07/03/2021,50003725,612.5,Exodus Health Care Services Ltd,SOCIAL SERVICES RESIDENTIAL,Peoples Services,Home Care Services,A56019
London Borough of Sutton,14/02/2021,50003726,52.5,Exodus Health Care Services Ltd,SOCIAL SERVICES RESIDENTIAL,Peoples Services,Home Care Services,A56019
London Borough of Sutton,14/02/2021,50003726,612.5,Exodus Health Care Services Ltd,SOCIAL SERVICES RESIDENTIAL,Peoples Services,Home Care Services,A56019
London Borough of Sutton,21/02/2021,50003727,52.5,Exodus Health Care Services Ltd,SOCIAL SERVICES RESIDENTIAL,Peoples Services,Home Care Services,A56019
London Borough of Sutton,21/02/2021,50003727,612.5,Exodus Health Care Services Ltd,SOCIAL SERVICES RESIDENTIAL,Peoples Services,Home Care Services,A56019
London Borough of Sutton,28/02/2021,50003728,52.5,Exodus Health Care Services Ltd,SOCIAL SERVICES RESIDENTIAL,Peoples Services,Home Care Services,A56019
London Borough of Sutton,28/02/2021,50003728,612.5,Exodus Health Care Services Ltd,SOCIAL SERVICES RESIDENTIAL,Peoples Services,Home Care Services,A56019
London Borough of Sutton,14/03/2021,50003729,52.5,Exodus Health Care Services Ltd,SOCIAL SERVICES RESIDENTIAL,Peoples Services,Home Care Services,A56019
London Borough of Sutton,14/03/2021,50003729,612.5,Exodus Health Care Services Ltd,SOCIAL SERVICES RESIDENTIAL,Peoples Services,Home Care Services,A56019
London Borough of Sutton,21/03/2021,50003730,612.5,Exodus Health Care Services Ltd,SOCIAL SERVICES RESIDENTIAL,Peoples Services,Home Care Services,A56019
London Borough of Sutton,21/03/2021,50003730,52.5,Exodus Health Care Services Ltd,SOCIAL SERVICES RESIDENTIAL,Peoples Services,Home Care Services,A56019
London Borough of Sutton,07/03/2021,50003749,551.25,Exodus Health Care Services Ltd,SOCIAL SERVICES RESIDENTIAL,Peoples Services,Home Care Services,A56019
London Borough of Sutton,14/02/2021,50003750,551.25,Exodus Health Care Services Ltd,SOCIAL SERVICES RESIDENTIAL,Peoples Services,Home Care Services,A56019
London Borough of Sutton,21/02/2021,50003751,551.25,Exodus Health Care Services Ltd,SOCIAL SERVICES RESIDENTIAL,Peoples Services,Home Care Services,A56019
London Borough of Sutton,28/02/2021,50003752,551.25,Exodus Health Care Services Ltd,SOCIAL SERVICES RESIDENTIAL,Peoples Services,Home Care Services,A56019
London Borough of Sutton,14/03/2021,50003753,551.25,Exodus Health Care Services Ltd,SOCIAL SERVICES RESIDENTIAL,Peoples Services,Home Care Services,A56019
London Borough of Sutton,21/03/2021,50003754,551.25,Exodus Health Care Services Ltd,SOCIAL SERVICES RESIDENTIAL,Peoples Services,Home Care Services,A56019
London Borough of Sutton,07/03/2021,50003755,551.25,Exodus Health Care Services Ltd,SOCIAL SERVICES RESIDENTIAL,Peoples Services,Home Care Services,A56019
London Borough of Sutton,14/02/2021,50003756,551.25,Exodus Health Care Services Ltd,SOCIAL SERVICES RESIDENTIAL,Peoples Services,Home Care Services,A56019
London Borough of Sutton,21/02/2021,50003757,551.25,Exodus Health Care Services Ltd,SOCIAL SERVICES RESIDENTIAL,Peoples Services,Home Care Services,A56019
London Borough of Sutton,28/02/2021,50003758,551.25,Exodus Health Care Services Ltd,SOCIAL SERVICES RESIDENTIAL,Peoples Services,Home Care Services,A56019
London Borough of Sutton,14/03/2021,50003759,551.25,Exodus Health Care Services Ltd,SOCIAL SERVICES RESIDENTIAL,Peoples Services,Home Care Services,A56019
London Borough of Sutton,21/03/2021,50003760,551.25,Exodus Health Care Services Ltd,SOCIAL SERVICES RESIDENTIAL,Peoples Services,Home Care Services,A56019
London Borough of Sutton,07/03/2021,50003761,551.25,Exodus Health Care Services Ltd,SOCIAL SERVICES RESIDENTIAL,Peoples Services,Home Care Services,A56019
London Borough of Sutton,14/02/2021,50003762,551.25,Exodus Health Care Services Ltd,SOCIAL SERVICES RESIDENTIAL,Peoples Services,Home Care Services,A56019
London Borough of Sutton,21/02/2021,50003763,551.25,Exodus Health Care Services Ltd,SOCIAL SERVICES RESIDENTIAL,Peoples Services,Home Care Services,A56019
London Borough of Sutton,28/02/2021,50003764,551.25,Exodus Health Care Services Ltd,SOCIAL SERVICES RESIDENTIAL,Peoples Services,Home Care Services,A56019
London Borough of Sutton,14/03/2021,50003765,551.25,Exodus Health Care Services Ltd,SOCIAL SERVICES RESIDENTIAL,Peoples Services,Home Care Services,A56019
London Borough of Sutton,21/03/2021,50003766,551.25,Exodus Health Care Services Ltd,SOCIAL SERVICES RESIDENTIAL,Peoples Services,Home Care Services,A56019
London Borough of Sutton,07/03/2021,50003808,796.25,Exodus Health Care Services Ltd,SOCIAL SERVICES RESIDENTIAL,Peoples Services,Home Care Services,A56019
London Borough of Sutton,14/02/2021,50003809,796.25,Exodus Health Care Services Ltd,SOCIAL SERVICES RESIDENTIAL,Peoples Services,Home Care Services,A56019
London Borough of Sutton,21/02/2021,50003810,796.25,Exodus Health Care Services Ltd,SOCIAL SERVICES RESIDENTIAL,Peoples Services,Home Care Services,A56019
London Borough of Sutton,28/02/2021,50003811,796.25,Exodus Health Care Services Ltd,SOCIAL SERVICES RESIDENTIAL,Peoples Services,Home Care Services,A56019
London Borough of Sutton,14/03/2021,50003812,796.25,Exodus Health Care Services Ltd,SOCIAL SERVICES RESIDENTIAL,Peoples Services,Home Care Services,A56019
London Borough of Sutton,21/03/2021,50003813,796.25,Exodus Health Care Services Ltd,SOCIAL SERVICES RESIDENTIAL,Peoples Services,Home Care Services,A56019
London Borough of Sutton,07/03/2021,50003814,551.25,Exodus Health Care Services Ltd,SOCIAL SERVICES RESIDENTIAL,Peoples Services,Home Care Services,A56019
London Borough of Sutton,07/03/2021,50003814,52.5,Exodus Health Care Services Ltd,SOCIAL SERVICES RESIDENTIAL,Peoples Services,Home Care Services,A56019
London Borough of Sutton,14/02/2021,50003815,551.25,Exodus Health Care Services Ltd,SOCIAL SERVICES RESIDENTIAL,Peoples Services,Home Care Services,A56019
London Borough of Sutton,14/02/2021,50003815,52.5,Exodus Health Care Services Ltd,SOCIAL SERVICES RESIDENTIAL,Peoples Services,Home Care Services,A56019
London Borough of Sutton,21/02/2021,50003816,551.25,Exodus Health Care Services Ltd,SOCIAL SERVICES RESIDENTIAL,Peoples Services,Home Care Services,A56019
London Borough of Sutton,21/02/2021,50003816,52.5,Exodus Health Care Services Ltd,SOCIAL SERVICES RESIDENTIAL,Peoples Services,Home Care Services,A56019
London Borough of Sutton,28/02/2021,50003817,551.25,Exodus Health Care Services Ltd,SOCIAL SERVICES RESIDENTIAL,Peoples Services,Home Care Services,A56019
London Borough of Sutton,28/02/2021,50003817,52.5,Exodus Health Care Services Ltd,SOCIAL SERVICES RESIDENTIAL,Peoples Services,Home Care Services,A56019
London Borough of Sutton,14/03/2021,50003818,551.25,Exodus Health Care Services Ltd,SOCIAL SERVICES RESIDENTIAL,Peoples Services,Home Care Services,A56019
London Borough of Sutton,14/03/2021,50003818,52.5,Exodus Health Care Services Ltd,SOCIAL SERVICES RESIDENTIAL,Peoples Services,Home Care Services,A56019
London Borough of Sutton,21/03/2021,50003819,551.25,Exodus Health Care Services Ltd,SOCIAL SERVICES RESIDENTIAL,Peoples Services,Home Care Services,A56019
London Borough of Sutton,21/03/2021,50003819,52.5,Exodus Health Care Services Ltd,SOCIAL SERVICES RESIDENTIAL,Peoples Services,Home Care Services,A56019
London Borough of Sutton,28/03/2021,50008210,796.25,Exodus Health Care Services Ltd,SOCIAL SERVICES RESIDENTIAL,Peoples Services,Home Care Services,A56019
London Borough of Sutton,04/04/2021,50008211,455,Exodus Health Care Services Ltd,SOCIAL SERVICES RESIDENTIAL,Peoples Services,Home Care Services,A56019
London Borough of Sutton,04/04/2021,50008211,341.25,Exodus Health Care Services Ltd,SOCIAL SERVICES RESIDENTIAL,Peoples Services,Home Care Services,A56019
London Borough of Sutton,28/03/2021,50008228,551.15,Exodus Health Care Services Ltd,SOCIAL SERVICES RESIDENTIAL,Peoples Services,Home Care Services,A56019
London Borough of Sutton,28/03/2021,50008228,91.98,Exodus Health Care Services Ltd,SOCIAL SERVICES RESIDENTIAL,Peoples Services,Home Care Services,A56019
London Borough of Sutton,04/04/2021,50008229,315,Exodus Health Care Services Ltd,SOCIAL SERVICES RESIDENTIAL,Peoples Services,Home Care Services,A56019
London Borough of Sutton,04/04/2021,50008229,236.25,Exodus Health Care Services Ltd,SOCIAL SERVICES RESIDENTIAL,Peoples Services,Home Care Services,A56019
London Borough of Sutton,04/04/2021,50008229,52.46,Exodus Health Care Services Ltd,SOCIAL SERVICES RESIDENTIAL,Peoples Services,Home Care Services,A56019
London Borough of Sutton,04/04/2021,50008229,39.42,Exodus Health Care Services Ltd,SOCIAL SERVICES RESIDENTIAL,Peoples Services,Home Care Services,A56019
London Borough of Sutton,28/03/2021,50008232,52.5,Exodus Health Care Services Ltd,SOCIAL SERVICES RESIDENTIAL,Peoples Services,Home Care Services,A56019
London Borough of Sutton,28/03/2021,50008232,612.5,Exodus Health Care Services Ltd,SOCIAL SERVICES RESIDENTIAL,Peoples Services,Home Care Services,A56019
London Borough of Sutton,04/04/2021,50008233,26.25,Exodus Health Care Services Ltd,SOCIAL SERVICES RESIDENTIAL,Peoples Services,Home Care Services,A56019
London Borough of Sutton,04/04/2021,50008233,350,Exodus Health Care Services Ltd,SOCIAL SERVICES RESIDENTIAL,Peoples Services,Home Care Services,A56019
London Borough of Sutton,04/04/2021,50008233,26.25,Exodus Health Care Services Ltd,SOCIAL SERVICES RESIDENTIAL,Peoples Services,Home Care Services,A56019
London Borough of Sutton,04/04/2021,50008233,262.5,Exodus Health Care Services Ltd,SOCIAL SERVICES RESIDENTIAL,Peoples Services,Home Care Services,A56019
London Borough of Sutton,28/03/2021,50008234,551.25,Exodus Health Care Services Ltd,SOCIAL SERVICES RESIDENTIAL,Peoples Services,Home Care Services,A56019
London Borough of Sutton,28/03/2021,50008234,52.5,Exodus Health Care Services Ltd,SOCIAL SERVICES RESIDENTIAL,Peoples Services,Home Care Services,A56019
London Borough of Sutton,04/04/2021,50008235,315,Exodus Health Care Services Ltd,SOCIAL SERVICES RESIDENTIAL,Peoples Services,Home Care Services,A56019
London Borough of Sutton,04/04/2021,50008235,236.25,Exodus Health Care Services Ltd,SOCIAL SERVICES RESIDENTIAL,Peoples Services,Home Care Services,A56019
London Borough of Sutton,04/04/2021,50008235,52.5,Exodus Health Care Services Ltd,SOCIAL SERVICES RESIDENTIAL,Peoples Services,Home Care Services,A56019
London Borough of Sutton,28/03/2021,50008243,551.25,Exodus Health Care Services Ltd,SOCIAL SERVICES RESIDENTIAL,Peoples Services,Home Care Services,A56019
London Borough of Sutton,04/04/2021,50008244,315,Exodus Health Care Services Ltd,SOCIAL SERVICES RESIDENTIAL,Peoples Services,Home Care Services,A56019
London Borough of Sutton,04/04/2021,50008244,236.25,Exodus Health Care Services Ltd,SOCIAL SERVICES RESIDENTIAL,Peoples Services,Home Care Services,A56019
London Borough of Sutton,28/03/2021,50008245,551.25,Exodus Health Care Services Ltd,SOCIAL SERVICES RESIDENTIAL,Peoples Services,Home Care Services,A56019
London Borough of Sutton,04/04/2021,50008246,315,Exodus Health Care Services Ltd,SOCIAL SERVICES RESIDENTIAL,Peoples Services,Home Care Services,A56019
London Borough of Sutton,04/04/2021,50008246,236.25,Exodus Health Care Services Ltd,SOCIAL SERVICES RESIDENTIAL,Peoples Services,Home Care Services,A56019
London Borough of Sutton,28/03/2021,50008247,551.25,Exodus Health Care Services Ltd,SOCIAL SERVICES RESIDENTIAL,Peoples Services,Home Care Services,A56019
London Borough of Sutton,04/04/2021,50008248,315,Exodus Health Care Services Ltd,SOCIAL SERVICES RESIDENTIAL,Peoples Services,Home Care Services,A56019
London Borough of Sutton,04/04/2021,50008248,236.25,Exodus Health Care Services Ltd,SOCIAL SERVICES RESIDENTIAL,Peoples Services,Home Care Services,A56019
London Borough of Sutton,28/03/2021,50008264,367.5,Exodus Health Care Services Ltd,SOCIAL SERVICES RESIDENTIAL,Peoples Services,Home Care Services,A56019
London Borough of Sutton,28/03/2021,50008264,227.5,Exodus Health Care Services Ltd,SOCIAL SERVICES RESIDENTIAL,Peoples Services,Home Care Services,A56019
London Borough of Sutton,04/04/2021,50008265,210,Exodus Health Care Services Ltd,SOCIAL SERVICES RESIDENTIAL,Peoples Services,Home Care Services,A56019
London Borough of Sutton,04/04/2021,50008265,157.5,Exodus Health Care Services Ltd,SOCIAL SERVICES RESIDENTIAL,Peoples Services,Home Care Services,A56019
London Borough of Sutton,04/04/2021,50008265,105,Exodus Health Care Services Ltd,SOCIAL SERVICES RESIDENTIAL,Peoples Services,Home Care Services,A56019
London Borough of Sutton,04/04/2021,50008265,122.5,Exodus Health Care Services Ltd,SOCIAL SERVICES RESIDENTIAL,Peoples Services,Home Care Services,A56019
London Borough of Sutton,28/03/2021,50008272,673.75,Exodus Health Care Services Ltd,SOCIAL SERVICES RESIDENTIAL,Peoples Services,Home Care Services,A56019
London Borough of Sutton,28/03/2021,50008286,551.25,Exodus Health Care Services Ltd,SOCIAL SERVICES RESIDENTIAL,Peoples Services,Home Care Services,A56019
London Borough of Sutton,04/04/2021,50008287,315,Exodus Health Care Services Ltd,SOCIAL SERVICES RESIDENTIAL,Peoples Services,Home Care Services,A56019
London Borough of Sutton,04/04/2021,50008287,236.25,Exodus Health Care Services Ltd,SOCIAL SERVICES RESIDENTIAL,Peoples Services,Home Care Services,A56019
London Borough of Sutton,04/04/2021,50008290,209.97,Exodus Health Care Services Ltd,SOCIAL SERVICES RESIDENTIAL,Peoples Services,Home Care Services,A56019
London Borough of Sutton,04/04/2021,50008290,157.5,Exodus Health Care Services Ltd,SOCIAL SERVICES RESIDENTIAL,Peoples Services,Home Care Services,A56019
London Borough of Sutton,04/04/2021,50008290,192.52,Exodus Health Care Services Ltd,SOCIAL SERVICES RESIDENTIAL,Peoples Services,Home Care Services,A56019
London Borough of Sutton,04/04/2021,50008290,144.39,Exodus Health Care Services Ltd,SOCIAL SERVICES RESIDENTIAL,Peoples Services,Home Care Services,A56019
London Borough of Sutton,28/03/2021,50008291,735,Exodus Health Care Services Ltd,SOCIAL SERVICES RESIDENTIAL,Peoples Services,Home Care Services,A56019
London Borough of Sutton,04/04/2021,50008292,420,Exodus Health Care Services Ltd,SOCIAL SERVICES RESIDENTIAL,Peoples Services,Home Care Services,A56019
London Borough of Sutton,04/04/2021,50008292,315,Exodus Health Care Services Ltd,SOCIAL SERVICES RESIDENTIAL,Peoples Services,Home Care Services,A56019
London Borough of Sutton,31/03/2021,20000334,"6,174.00",Expert In Mind,"SOCIAL SERVICES - DOLS, GUM & BIA ASSESSMENTS",Peoples Services,Client Related Assessments,A56017
London Borough of Sutton,25/02/2021,20000335,"1,296.00",Expert In Mind,"SOCIAL SERVICES - DOLS, GUM & BIA ASSESSMENTS",Peoples Services,Client Related Assessments,A56017
London Borough of Sutton,22/04/2021,20001181,"21,739.78",F L Mitchell Fencing Contractor Limited,AGRICULTURAL & ESTATE SERVICES,Development Growth and Regeneration,Payments to Contractors,C14000
London Borough of Sutton,29/03/2021,20000153,"1,498.64",F M Conway Limited,CONSTRUCTION INDUSTRY,Environment Housing and Neighbourhoods,External Fees and Consultants,C20000
London Borough of Sutton,31/03/2021,20000227,"2,385.05",F M Conway Limited,CONSTRUCTION INDUSTRY,Environment Housing and Neighbourhoods,Payments to Contractors,C14000
London Borough of Sutton,27/04/2021,20001207,"14,540.53",F M Conway Limited,CONSTRUCTION INDUSTRY,Environment Housing and Neighbourhoods,Payments to Contractors,C14000
London Borough of Sutton,16/04/2021,50003366,"1,263.77",Family Star Ltd,SOCIAL SERVICES RESIDENTIAL,Peoples Services,Nursing Care - Ext Provider,A56025
London Borough of Sutton,16/04/2021,50003366,"2,274.79",Family Star Ltd,SOCIAL SERVICES RESIDENTIAL,Peoples Services,Nursing Care - Ext Provider,A56025
London Borough of Sutton,16/04/2021,50003366,-425.73,Family Star Ltd,SOCIAL SERVICES RESIDENTIAL,Peoples Services,Nursing Care - 3rd party top up payment,A56023
London Borough of Sutton,16/04/2021,50003366,-236.51,Family Star Ltd,SOCIAL SERVICES RESIDENTIAL,Peoples Services,Nursing Care - 3rd party top up payment,A56023
London Borough of Sutton,08/04/2021,20001226,"1,500.00",Fiona Chan (Trading as Fiona Bateman),GRANTS & EX GRATIA PAYMENTS,Peoples Services,Fees,A44040
London Borough of Sutton,16/04/2021,50003072,"1,257.33",Fircroft Homes,SOCIAL SERVICES RESIDENTIAL,Peoples Services,Residential Care - Ext Provider,A56114
London Borough of Sutton,16/04/2021,50003072,"2,263.19",Fircroft Homes,SOCIAL SERVICES RESIDENTIAL,Peoples Services,Residential Care - Ext Provider,A56114
London Borough of Sutton,16/04/2021,50003072,-457.97,Fircroft Homes,SOCIAL SERVICES RESIDENTIAL,Peoples Services,Residential Care - Client Cont ( Net Paymt ),A56113
London Borough of Sutton,16/04/2021,50003072,-254.43,Fircroft Homes,SOCIAL SERVICES RESIDENTIAL,Peoples Services,Residential Care - Client Cont ( Net Paymt ),A56113
London Borough of Sutton,01/03/2021,50001015,"1,224.28",Fitzroy House,SOCIAL SERVICES RESIDENTIAL,Peoples Services,Day Care Services,A56021
London Borough of Sutton,16/04/2021,50003178,"2,473.89",Fitzroy House,SOCIAL SERVICES RESIDENTIAL,Peoples Services,Residential Care - Ext Provider,A56114
London Borough of Sutton,16/04/2021,50003178,"1,374.39",Fitzroy House,SOCIAL SERVICES RESIDENTIAL,Peoples Services,Residential Care - Ext Provider,A56114
London Borough of Sutton,16/04/2021,50003178,-151.07,Fitzroy House,SOCIAL SERVICES RESIDENTIAL,Peoples Services,Residential Care - Client Cont ( Net Paymt ),A56113
London Borough of Sutton,16/04/2021,50003178,-271.93,Fitzroy House,SOCIAL SERVICES RESIDENTIAL,Peoples Services,Residential Care - Client Cont ( Net Paymt ),A56113
London Borough of Sutton,08/04/2021,50002500,"2,892.00",Fleet Tutors,TEMP STAFF & CONSULTANCY,Peoples Services,Independent School Fees,A56002
London Borough of Sutton,08/04/2021,50002501,440,Fleet Tutors,TEMP STAFF & CONSULTANCY,Peoples Services,Independent School Fees,A56002
London Borough of Sutton,08/04/2021,50002502,"2,892.00",Fleet Tutors,TEMP STAFF & CONSULTANCY,Peoples Services,Independent School Fees,A56002
London Borough of Sutton,08/04/2021,50002503,"1,724.00",Fleet Tutors,TEMP STAFF & CONSULTANCY,Peoples Services,Independent School Fees,A56002
London Borough of Sutton,16/04/2021,50003390,"4,628.57",Florence Avenue Care Home Ltd,SOCIAL SERVICES RESIDENTIAL,Peoples Services,Residential Care - Ext Provider,A56114
London Borough of Sutton,16/04/2021,50003390,"2,571.43",Florence Avenue Care Home Ltd,SOCIAL SERVICES RESIDENTIAL,Peoples Services,Residential Care - Ext Provider,A56114
London Borough of Sutton,01/04/2021,20001300,994.36,Fostering Network,CHILDREN'S SERVICES - FOSTERING & ADOPTION SERVICES,Peoples Services,Subscriptions,A47010
London Borough of Sutton,01/04/2021,20001300,372,Fostering Network,CHILDREN'S SERVICES - FOSTERING & ADOPTION SERVICES,Peoples Services,Subscriptions,A47010
London Borough of Sutton,01/04/2021,20001300,460,Fostering Network,CHILDREN'S SERVICES - FOSTERING & ADOPTION SERVICES,Peoples Services,Subscriptions,A47010
London Borough of Sutton,16/04/2021,50003359,928.57,Foxley Lodge,SOCIAL SERVICES RESIDENTIAL,Peoples Services,Residential Care - Ext Provider,A56114
London Borough of Sutton,16/04/2021,50003359,"1,671.43",Foxley Lodge,SOCIAL SERVICES RESIDENTIAL,Peoples Services,Residential Care - Ext Provider,A56114
London Borough of Sutton,15/04/2021,20000662,815,REDACTED - PERSONAL DATA,GRANTS & EX GRATIA PAYMENTS,Environment Housing and Neighbourhoods,Temporary Protection - Homeless Persons,A62028
London Borough of Sutton,31/03/2021,50001106,"6,150.00",Fresh Start In Education Ltd,ACADEMIC INSTNS - OTHER,Peoples Services,Independent School Fees,A56002
London Borough of Sutton,31/03/2021,50001107,"16,560.00",Fresh Start In Education Ltd,ACADEMIC INSTNS - OTHER,Peoples Services,Independent School Fees,A56002
London Borough of Sutton,31/03/2021,50001108,"1,440.00",Fresh Start In Education Ltd,ACADEMIC INSTNS - OTHER,Peoples Services,Independent School Fees,A56002
London Borough of Sutton,31/03/2021,50001109,"4,920.00",Fresh Start In Education Ltd,ACADEMIC INSTNS - OTHER,Peoples Services,Independent School Fees,A56002
London Borough of Sutton,31/03/2021,50001110,"3,690.00",Fresh Start In Education Ltd,ACADEMIC INSTNS - OTHER,Peoples Services,Independent School Fees,A56002
London Borough of Sutton,31/03/2021,50001835,"1,060.65",Friends Of The Elderly,SOCIAL SERVICES RESIDENTIAL,Peoples Services,Home Care Services,A56019
London Borough of Sutton,31/03/2021,50001837,"1,121.00",Friends Of The Elderly,SOCIAL SERVICES RESIDENTIAL,Peoples Services,Home Care Services,A56019
London Borough of Sutton,09/04/2021,50001840,"1,082.55",Friends Of The Elderly,SOCIAL SERVICES RESIDENTIAL,Peoples Services,Home Care Services,A56019
London Borough of Sutton,31/03/2021,50001841,559.05,Friends Of The Elderly,SOCIAL SERVICES RESIDENTIAL,Peoples Services,Home Care Services,A56019
London Borough of Sutton,31/03/2021,50001842,"1,110.65",Friends Of The Elderly,SOCIAL SERVICES RESIDENTIAL,Peoples Services,Home Care Services,A56019
London Borough of Sutton,31/03/2021,50001843,985.8,Friends Of The Elderly,SOCIAL SERVICES RESIDENTIAL,Peoples Services,Home Care Services,A56019
London Borough of Sutton,31/03/2021,50001848,"1,092.90",Friends Of The Elderly,SOCIAL SERVICES RESIDENTIAL,Peoples Services,Home Care Services,A56019
London Borough of Sutton,31/03/2021,50001941,"1,523.45",Friends Of The Elderly,SOCIAL SERVICES RESIDENTIAL,Peoples Services,Home Care Services,A56019
London Borough of Sutton,31/03/2021,50001942,"1,472.30",Friends Of The Elderly,SOCIAL SERVICES RESIDENTIAL,Peoples Services,Home Care Services,A56019
London Borough of Sutton,16/04/2021,50003110,"1,147.14",Friends Of The Elderly,SOCIAL SERVICES RESIDENTIAL,Peoples Services,Residential Care - Ext Provider,A56114
London Borough of Sutton,16/04/2021,50003110,"2,064.86",Friends Of The Elderly,SOCIAL SERVICES RESIDENTIAL,Peoples Services,Residential Care - Ext Provider,A56114
London Borough of Sutton,16/04/2021,50003204,"2,064.86",Friends Of The Elderly,SOCIAL SERVICES RESIDENTIAL,Peoples Services,Residential Care - Ext Provider,A56114
London Borough of Sutton,16/04/2021,50003204,"1,147.14",Friends Of The Elderly,SOCIAL SERVICES RESIDENTIAL,Peoples Services,Residential Care - Ext Provider,A56114
London Borough of Sutton,16/04/2021,50003251,"1,671.43",Friends Of The Elderly,SOCIAL SERVICES RESIDENTIAL,Peoples Services,Residential Care - Ext Provider,A56114
London Borough of Sutton,16/04/2021,50003251,928.57,Friends Of The Elderly,SOCIAL SERVICES RESIDENTIAL,Peoples Services,Residential Care - Ext Provider,A56114
London Borough of Sutton,01/04/2021,50001683,"5,679.65",Full Circle Support UK Limited,CHILDREN'S SERVICES - FOSTERING & ADOPTION SERVICES,Peoples Services,Approved Lodgings,A61000
London Borough of Sutton,08/04/2021,50001740,"2,380.00",Fusions Hatfield Hotels Ltd,CARE LEAVERS,Peoples Services,Approved Lodgings,A61000
London Borough of Sutton,16/04/2021,50003077,278.57,Gable Lodge,SOCIAL SERVICES RESIDENTIAL,Peoples Services,Residential Care - Ext Provider,A56114
London Borough of Sutton,16/04/2021,50003077,"3,900.00",Gable Lodge,SOCIAL SERVICES RESIDENTIAL,Peoples Services,Residential Care Respite,A56018
London Borough of Sutton,16/04/2021,50003077,"1,671.43",Gable Lodge,SOCIAL SERVICES RESIDENTIAL,Peoples Services,Residential Care - Ext Provider,A56114
London Borough of Sutton,16/04/2021,50003078,"1,671.43",Gable Lodge,SOCIAL SERVICES RESIDENTIAL,Peoples Services,Residential Care - Ext Provider,A56114
London Borough of Sutton,16/04/2021,50003078,928.57,Gable Lodge,SOCIAL SERVICES RESIDENTIAL,Peoples Services,Residential Care - Ext Provider,A56114
London Borough of Sutton,16/04/2021,50003180,"1,671.43",Gable Lodge,SOCIAL SERVICES RESIDENTIAL,Peoples Services,Interim Placements - Ext Provider,A56102
London Borough of Sutton,16/04/2021,50003180,928.57,Gable Lodge,SOCIAL SERVICES RESIDENTIAL,Peoples Services,Interim Placements - Ext Provider,A56102
London Borough of Sutton,16/04/2021,50003181,928.57,Gable Lodge,SOCIAL SERVICES RESIDENTIAL,Peoples Services,Residential Care - Ext Provider,A56114
London Borough of Sutton,16/04/2021,50003181,"1,671.43",Gable Lodge,SOCIAL SERVICES RESIDENTIAL,Peoples Services,Residential Care - Ext Provider,A56114
London Borough of Sutton,16/04/2021,50003325,"1,671.43",Gable Lodge,SOCIAL SERVICES RESIDENTIAL,Peoples Services,Interim Placements - Ext Provider,A56102
London Borough of Sutton,16/04/2021,50003325,928.57,Gable Lodge,SOCIAL SERVICES RESIDENTIAL,Peoples Services,Interim Placements - Ext Provider,A56102
London Borough of Sutton,16/04/2021,50003376,"-3,157.14",Gable Lodge,SOCIAL SERVICES RESIDENTIAL,Peoples Services,Residential Care Respite,A56018
London Borough of Sutton,16/04/2021,50003302,"2,447.79",Galleon Care Homes Ltd,SOCIAL SERVICES RESIDENTIAL,Peoples Services,Nursing Care - Ext Provider,A56025
London Borough of Sutton,16/04/2021,50003302,"1,359.89",Galleon Care Homes Ltd,SOCIAL SERVICES RESIDENTIAL,Peoples Services,Nursing Care - Ext Provider,A56025
London Borough of Sutton,16/04/2021,50003302,-472.94,Galleon Care Homes Ltd,SOCIAL SERVICES RESIDENTIAL,Peoples Services,Nursing Care - 3rd party top up payment,A56023
London Borough of Sutton,16/04/2021,50003302,-262.74,Galleon Care Homes Ltd,SOCIAL SERVICES RESIDENTIAL,Peoples Services,Nursing Care - 3rd party top up payment,A56023
London Borough of Sutton,31/03/2021,20000305,598.27,Garden Care Contracting Ltd,AGRICULTURAL & ESTATE SERVICES,Health and Wellbeing,Other Supplies & Services,A44291
London Borough of Sutton,16/04/2021,50003070,"1,671.43",Gate Lodge Care Home,SOCIAL SERVICES RESIDENTIAL,Peoples Services,Residential Care - Ext Provider,A56114
London Borough of Sutton,16/04/2021,50003070,928.57,Gate Lodge Care Home,SOCIAL SERVICES RESIDENTIAL,Peoples Services,Residential Care - Ext Provider,A56114
London Borough of Sutton,16/04/2021,50003071,"1,000.00",Gate Lodge Care Home,SOCIAL SERVICES RESIDENTIAL,Peoples Services,Residential Care - Ext Provider,A56114
London Borough of Sutton,16/04/2021,50003071,"1,800.00",Gate Lodge Care Home,SOCIAL SERVICES RESIDENTIAL,Peoples Services,Residential Care - Ext Provider,A56114
London Borough of Sutton,16/04/2021,50003219,928.57,Gate Lodge Care Home,SOCIAL SERVICES RESIDENTIAL,Peoples Services,Residential Care - Ext Provider,A56114
London Borough of Sutton,16/04/2021,50003219,"1,671.43",Gate Lodge Care Home,SOCIAL SERVICES RESIDENTIAL,Peoples Services,Residential Care - Ext Provider,A56114
London Borough of Sutton,16/04/2021,50003220,"1,671.43",Gate Lodge Care Home,SOCIAL SERVICES RESIDENTIAL,Peoples Services,Residential Care - Ext Provider,A56114
London Borough of Sutton,16/04/2021,50003220,928.57,Gate Lodge Care Home,SOCIAL SERVICES RESIDENTIAL,Peoples Services,Residential Care - Ext Provider,A56114
London Borough of Sutton,16/04/2021,50003278,928.57,Gate Lodge Care Home,SOCIAL SERVICES RESIDENTIAL,Peoples Services,Residential Care - Ext Provider,A56114
London Borough of Sutton,16/04/2021,50003278,"1,671.43",Gate Lodge Care Home,SOCIAL SERVICES RESIDENTIAL,Peoples Services,Residential Care - Ext Provider,A56114
London Borough of Sutton,29/04/2021,50007921,720,Gatten & Lake Primary School,SCHOOL FUNDS,Peoples Services,Payments to Schools,A51013
London Borough of Sutton,01/04/2021,20001103,"3,817.97",Gemini Consultants Ltd,FINANCIAL / INSURANCE INSTNS,Non-Service Cost Centres,Professional Fees,A44066
London Borough of Sutton,02/04/2021,20000307,"1,350.00",REDACTED - PERSONAL DATA,PLS LANDLORDS,Environment Housing and Neighbourhoods,Temporary Protection - Homeless Persons,A62028
London Borough of Sutton,31/03/2021,20001092,"7,500.00",Ghyllside ltd,SUNDRY SUPPLIER - FINANCE,Environment Housing and Neighbourhoods,Grants Given For Capital Purposes,C20004
London Borough of Sutton,16/04/2021,50003344,"1,428.57",Gibsons Lodge Ltd,SOCIAL SERVICES RESIDENTIAL,Peoples Services,Nursing Care - Ext Provider,A56025
London Borough of Sutton,16/04/2021,50003344,"2,571.43",Gibsons Lodge Ltd,SOCIAL SERVICES RESIDENTIAL,Peoples Services,Nursing Care - Ext Provider,A56025
London Borough of Sutton,16/04/2021,50003129,"3,511.44",Glebe Care Ltd,SOCIAL SERVICES DAY CARE,Peoples Services,Nursing Care - Ext Provider,A56025
London Borough of Sutton,16/04/2021,50003129,-425.73,Glebe Care Ltd,SOCIAL SERVICES DAY CARE,Peoples Services,Nursing Care - 3rd party top up payment,A56023
London Borough of Sutton,16/04/2021,50003129,"1,950.80",Glebe Care Ltd,SOCIAL SERVICES DAY CARE,Peoples Services,Nursing Care - Ext Provider,A56025
London Borough of Sutton,16/04/2021,50003129,-236.51,Glebe Care Ltd,SOCIAL SERVICES DAY CARE,Peoples Services,Nursing Care - 3rd party top up payment,A56023
London Borough of Sutton,01/04/2021,20000349,"1,215.00",REDACTED - PERSONAL DATA,GRANTS & EX GRATIA PAYMENTS,Environment Housing and Neighbourhoods,Temporary Protection - Homeless Persons,A62028
London Borough of Sutton,12/04/2021,20000729,"504,059.32",Glenthorne High School ,GRANTS & EX GRATIA PAYMENTS,Peoples Services,Payments to Contractors,C14000
London Borough of Sutton,12/04/2021,20000269,"2,760.00",Global Resourcing Limited,TEMP STAFF & CONSULTANCY,Resources,Agency Staff - Other,A10505
London Borough of Sutton,30/03/2021,20000270,"3,450.00",Global Resourcing Limited,TEMP STAFF & CONSULTANCY,Resources,Agency Staff - Other,A10505
London Borough of Sutton,01/04/2021,20000271,"2,760.00",Global Resourcing Limited,TEMP STAFF & CONSULTANCY,Resources,Agency Staff - Other,A10505
London Borough of Sutton,20/04/2021,20000812,"3,450.00",Global Resourcing Limited,TEMP STAFF & CONSULTANCY,Resources,Agency Staff - Other,A10505
London Borough of Sutton,27/04/2021,20001145,"3,450.00",Global Resourcing Limited,TEMP STAFF & CONSULTANCY,Resources,Agency Staff - Other,A10505
London Borough of Sutton,04/02/2021,20000135,"4,000.00",Gloves Not Gunz C.I.C,SOCIAL SERVICES - OTHER,Peoples Services,Agency Staff - Other,A10505
London Borough of Sutton,25/03/2021,20000477,"5,928.57",Go Ahead Homes,CHILDREN'S SERVICES - FOSTERING & ADOPTION SERVICES,Peoples Services,Residential Care-Children,A56115
London Borough of Sutton,16/04/2021,50003002,"1,428.57",Gracewell Healthcare 3 Ltd,SOCIAL SERVICES RESIDENTIAL,Peoples Services,Residential Care - Ext Provider,A56114
London Borough of Sutton,16/04/2021,50003002,"2,571.43",Gracewell Healthcare 3 Ltd,SOCIAL SERVICES RESIDENTIAL,Peoples Services,Residential Care - Ext Provider,A56114
London Borough of Sutton,16/04/2021,50003281,928.57,Gracewell Healthcare 3 Ltd,SOCIAL SERVICES RESIDENTIAL,Peoples Services,Residential Care - Ext Provider,A56114
London Borough of Sutton,16/04/2021,50003281,"1,671.43",Gracewell Healthcare 3 Ltd,SOCIAL SERVICES RESIDENTIAL,Peoples Services,Residential Care - Ext Provider,A56114
London Borough of Sutton,16/04/2021,50003291,-472.94,Gracewell Healthcare 3 Ltd,SOCIAL SERVICES RESIDENTIAL,Peoples Services,Nursing Care - 3rd party top up payment,A56023
London Borough of Sutton,16/04/2021,50003291,-262.74,Gracewell Healthcare 3 Ltd,SOCIAL SERVICES RESIDENTIAL,Peoples Services,Nursing Care - 3rd party top up payment,A56023
London Borough of Sutton,16/04/2021,50003291,"1,825.50",Gracewell Healthcare 3 Ltd,SOCIAL SERVICES RESIDENTIAL,Peoples Services,Nursing Care - Ext Provider,A56025
London Borough of Sutton,16/04/2021,50003291,"3,285.90",Gracewell Healthcare 3 Ltd,SOCIAL SERVICES RESIDENTIAL,Peoples Services,Nursing Care - Ext Provider,A56025
London Borough of Sutton,16/04/2021,50003391,-472.94,Gracewell Healthcare 3 Ltd,SOCIAL SERVICES RESIDENTIAL,Peoples Services,Nursing Care - 3rd party top up payment,A56023
London Borough of Sutton,16/04/2021,50003391,-262.74,Gracewell Healthcare 3 Ltd,SOCIAL SERVICES RESIDENTIAL,Peoples Services,Nursing Care - 3rd party top up payment,A56023
London Borough of Sutton,16/04/2021,50003391,"1,548.46",Gracewell Healthcare 3 Ltd,SOCIAL SERVICES RESIDENTIAL,Peoples Services,Nursing Care - Ext Provider,A56025
London Borough of Sutton,16/04/2021,50003391,"2,787.22",Gracewell Healthcare 3 Ltd,SOCIAL SERVICES RESIDENTIAL,Peoples Services,Nursing Care - Ext Provider,A56025
London Borough of Sutton,16/04/2021,50003051,"1,928.57",Grange Cottage Ltd,MANAGEMENT & TRAINING SERVICES,Peoples Services,Residential Care - Ext Provider,A56114
London Borough of Sutton,16/04/2021,50003051,"1,071.43",Grange Cottage Ltd,MANAGEMENT & TRAINING SERVICES,Peoples Services,Residential Care - Ext Provider,A56114
London Borough of Sutton,16/04/2021,50003052,928.57,Grange Cottage Ltd,MANAGEMENT & TRAINING SERVICES,Peoples Services,Residential Care - Ext Provider,A56114
London Borough of Sutton,16/04/2021,50003052,"1,671.43",Grange Cottage Ltd,MANAGEMENT & TRAINING SERVICES,Peoples Services,Residential Care - Ext Provider,A56114
London Borough of Sutton,16/04/2021,50003105,"1,671.43",Grange Cottage Ltd,MANAGEMENT & TRAINING SERVICES,Peoples Services,Residential Care - Ext Provider,A56114
London Borough of Sutton,16/04/2021,50003105,928.57,Grange Cottage Ltd,MANAGEMENT & TRAINING SERVICES,Peoples Services,Residential Care - Ext Provider,A56114
London Borough of Sutton,16/04/2021,50003106,928.57,Grange Cottage Ltd,MANAGEMENT & TRAINING SERVICES,Peoples Services,Residential Care - Ext Provider,A56114
London Borough of Sutton,16/04/2021,50003106,"1,671.43",Grange Cottage Ltd,MANAGEMENT & TRAINING SERVICES,Peoples Services,Residential Care - Ext Provider,A56114
London Borough of Sutton,16/04/2021,50003161,"1,142.86",Grange Cottage Ltd,MANAGEMENT & TRAINING SERVICES,Peoples Services,Residential Care - Ext Provider,A56114
London Borough of Sutton,16/04/2021,50003161,"2,057.14",Grange Cottage Ltd,MANAGEMENT & TRAINING SERVICES,Peoples Services,Residential Care - Ext Provider,A56114
London Borough of Sutton,16/04/2021,50003190,"1,735.71",Grange Cottage Ltd,MANAGEMENT & TRAINING SERVICES,Peoples Services,Interim Placements - Ext Provider,A56102
London Borough of Sutton,16/04/2021,50003190,964.29,Grange Cottage Ltd,MANAGEMENT & TRAINING SERVICES,Peoples Services,Interim Placements - Ext Provider,A56102
London Borough of Sutton,16/04/2021,50003199,"1,800.00",Grange Cottage Ltd,MANAGEMENT & TRAINING SERVICES,Peoples Services,Residential Care Respite,A56018
London Borough of Sutton,16/04/2021,50003199,"1,000.00",Grange Cottage Ltd,MANAGEMENT & TRAINING SERVICES,Peoples Services,Residential Care Respite,A56018
London Borough of Sutton,16/04/2021,50003247,"1,671.43",Grange Cottage Ltd,MANAGEMENT & TRAINING SERVICES,Peoples Services,Residential Care - Ext Provider,A56114
London Borough of Sutton,16/04/2021,50003247,928.57,Grange Cottage Ltd,MANAGEMENT & TRAINING SERVICES,Peoples Services,Residential Care - Ext Provider,A56114
London Borough of Sutton,16/04/2021,50003338,"1,156.57",Grange Cottage Ltd,MANAGEMENT & TRAINING SERVICES,Peoples Services,Residential Care - Ext Provider,A56114
London Borough of Sutton,16/04/2021,50003338,"2,081.83",Grange Cottage Ltd,MANAGEMENT & TRAINING SERVICES,Peoples Services,Residential Care - Ext Provider,A56114
London Borough of Sutton,16/04/2021,50003352,"1,142.86",Grange Cottage Ltd,MANAGEMENT & TRAINING SERVICES,Peoples Services,Residential Care - Ext Provider,A56114
London Borough of Sutton,16/04/2021,50003352,"2,057.14",Grange Cottage Ltd,MANAGEMENT & TRAINING SERVICES,Peoples Services,Residential Care - Ext Provider,A56114
London Borough of Sutton,16/04/2021,50003395,"1,864.29",Grange Cottage Ltd,MANAGEMENT & TRAINING SERVICES,Peoples Services,Residential Care - Ext Provider,A56114
London Borough of Sutton,16/04/2021,50003395,"1,035.71",Grange Cottage Ltd,MANAGEMENT & TRAINING SERVICES,Peoples Services,Residential Care - Ext Provider,A56114
London Borough of Sutton,16/04/2021,50003107,"1,671.43",Grasmere Rest Home,SOCIAL SERVICES RESIDENTIAL,Peoples Services,Residential Care - Ext Provider,A56114
London Borough of Sutton,16/04/2021,50003107,928.57,Grasmere Rest Home,SOCIAL SERVICES RESIDENTIAL,Peoples Services,Residential Care - Ext Provider,A56114
London Borough of Sutton,16/04/2021,50003108,"1,000.00",Grasmere Rest Home,SOCIAL SERVICES RESIDENTIAL,Peoples Services,Residential Care - Ext Provider,A56114
London Borough of Sutton,16/04/2021,50003108,"1,800.00",Grasmere Rest Home,SOCIAL SERVICES RESIDENTIAL,Peoples Services,Residential Care - Ext Provider,A56114
London Borough of Sutton,16/04/2021,50003296,928.57,Grasmere Rest Home,SOCIAL SERVICES RESIDENTIAL,Peoples Services,Residential Care - Ext Provider,A56114
London Borough of Sutton,16/04/2021,50003296,"1,671.43",Grasmere Rest Home,SOCIAL SERVICES RESIDENTIAL,Peoples Services,Residential Care - Ext Provider,A56114
London Borough of Sutton,16/04/2021,50003353,928.57,Grasmere Rest Home,SOCIAL SERVICES RESIDENTIAL,Peoples Services,Residential Care - Ext Provider,A56114
London Borough of Sutton,16/04/2021,50003353,"1,671.43",Grasmere Rest Home,SOCIAL SERVICES RESIDENTIAL,Peoples Services,Residential Care - Ext Provider,A56114
London Borough of Sutton,16/04/2021,50003380,928.57,Grasmere Rest Home,SOCIAL SERVICES RESIDENTIAL,Peoples Services,Residential Care - Ext Provider,A56114
London Borough of Sutton,16/04/2021,50003380,"1,671.43",Grasmere Rest Home,SOCIAL SERVICES RESIDENTIAL,Peoples Services,Residential Care - Ext Provider,A56114
London Borough of Sutton,16/04/2021,50003396,928.57,Grasmere Rest Home,SOCIAL SERVICES RESIDENTIAL,Peoples Services,Residential Care - Ext Provider,A56114
London Borough of Sutton,16/04/2021,50003396,"1,671.43",Grasmere Rest Home,SOCIAL SERVICES RESIDENTIAL,Peoples Services,Residential Care - Ext Provider,A56114
London Borough of Sutton,08/04/2021,20000106,"24,729.50",Greater London Authority,CENTRAL & LOCAL GOVERNMENT,Non-Service Cost Centres,LPFA (London Pension Fund Authority) Levy,A82002
London Borough of Sutton,28/04/2021,20001349,420,Greaves Graphic Design Ltd,CHILDREN'S SERVICE - OTHER,Peoples Services,Fees,A44040
London Borough of Sutton,31/03/2021,50001650,"4,052.15",Green Harvest Ltd,CHILDREN'S SERVICES - FOSTERING & ADOPTION SERVICES,Peoples Services,Approved Lodgings,A61000
London Borough of Sutton,23/04/2021,50007254,"2,000.00",Green Wrythe Primary School,SCHOOL FUNDS,Peoples Services,Top Up Additional Support,A60015
London Borough of Sutton,16/04/2021,50003048,"3,610.34",Greenfield Care Homes Limited,SOCIAL SERVICES RESIDENTIAL,Peoples Services,Residential Care - Ext Provider,A56114
London Borough of Sutton,16/04/2021,50003048,"2,005.74",Greenfield Care Homes Limited,SOCIAL SERVICES RESIDENTIAL,Peoples Services,Residential Care - Ext Provider,A56114
London Borough of Sutton,20/04/2021,20000896,930,Grey Matter Learning,SUNDRY SUPPLIER - EDUCATION,Peoples Services,Subscriptions,A47010
London Borough of Sutton,04/03/2021,20000347,"35,000.00",Guy's and St Thomas NHS Foundation Trust,"SOCIAL SERVICES - DOLS, GUM & BIA ASSESSMENTS",Resources,Miscellaneous Expenses,A49000
London Borough of Sutton,16/04/2021,50003001,"2,000.00",Hallmark Care Homes (Banstead) Ltd,SOCIAL SERVICES RESIDENTIAL,Peoples Services,Residential Care - Ext Provider,A56114
London Borough of Sutton,16/04/2021,50003001,"3,600.00",Hallmark Care Homes (Banstead) Ltd,SOCIAL SERVICES RESIDENTIAL,Peoples Services,Residential Care - Ext Provider,A56114
London Borough of Sutton,30/03/2021,20000781,"3,175.00",Hammond Clarke Ltd,TEMP STAFF & CONSULTANCY,Peoples Services,Agency Staff - Other,A10505
London Borough of Sutton,06/04/2021,20000782,"2,540.00",Hammond Clarke Ltd,TEMP STAFF & CONSULTANCY,Peoples Services,Agency Staff - Other,A10505
London Borough of Sutton,14/04/2021,20000845,"1,905.00",Hammond Clarke Ltd,TEMP STAFF & CONSULTANCY,Peoples Services,Agency Staff - Other,A10505
London Borough of Sutton,06/04/2021,20001211,"2,361.00",Hammond Clarke Ltd,TEMP STAFF & CONSULTANCY,Development Growth and Regeneration,Agency Staff - Other,A10505
London Borough of Sutton,30/03/2021,20001212,"3,148.00",Hammond Clarke Ltd,TEMP STAFF & CONSULTANCY,Development Growth and Regeneration,Agency Staff - Other,A10505
London Borough of Sutton,16/04/2021,50003301,"1,468.44",Hankham Lodge,CHILDREN'S SERVICES - RESIDENTIAL,Peoples Services,Residential Care - Ext Provider,A56114
London Borough of Sutton,16/04/2021,50003301,815.8,Hankham Lodge,CHILDREN'S SERVICES - RESIDENTIAL,Peoples Services,Residential Care - Ext Provider,A56114
London Borough of Sutton,16/04/2021,50003074,"2,183.45",Haydon Park Lodge,SOCIAL SERVICES RESIDENTIAL,Peoples Services,Residential Care - Ext Provider,A56114
London Borough of Sutton,16/04/2021,50003074,"1,213.03",Haydon Park Lodge,SOCIAL SERVICES RESIDENTIAL,Peoples Services,Residential Care - Ext Provider,A56114
London Borough of Sutton,16/04/2021,50003120,"1,559.04",Haydon Park Lodge,SOCIAL SERVICES RESIDENTIAL,Peoples Services,Residential Care - Ext Provider,A56114
London Borough of Sutton,16/04/2021,50003120,"2,806.28",Haydon Park Lodge,SOCIAL SERVICES RESIDENTIAL,Peoples Services,Residential Care - Ext Provider,A56114
London Borough of Sutton,16/04/2021,50003256,"1,969.20",HCOne Oval Ltd,SOCIAL SERVICES RESIDENTIAL,Peoples Services,Residential Care - Ext Provider,A56114
London Borough of Sutton,16/04/2021,50003256,"1,094.00",HCOne Oval Ltd,SOCIAL SERVICES RESIDENTIAL,Peoples Services,Residential Care - Ext Provider,A56114
London Borough of Sutton,31/08/2020,20000835,559.3,Heartwood Residential Services Limited,CHILDREN'S SERVICES - FOSTERING & ADOPTION SERVICES,Peoples Services,Temporary Residential Accommodation,A44140
London Borough of Sutton,31/08/2020,20000837,559.3,Heartwood Residential Services Limited,CHILDREN'S SERVICES - FOSTERING & ADOPTION SERVICES,Peoples Services,Temporary Residential Accommodation,A44140
London Borough of Sutton,31/08/2020,20000838,559.3,Heartwood Residential Services Limited,CHILDREN'S SERVICES - FOSTERING & ADOPTION SERVICES,Peoples Services,Temporary Residential Accommodation,A44140
London Borough of Sutton,31/08/2020,20000839,"1,470.00",Heartwood Residential Services Limited,CHILDREN'S SERVICES - FOSTERING & ADOPTION SERVICES,Peoples Services,Temporary Residential Accommodation,A44140
London Borough of Sutton,16/04/2021,50003037,"3,000.00",Heathcotes (Southern) Limited,SOCIAL SERVICES RESIDENTIAL,Peoples Services,Residential Care - Ext Provider,A56114
London Borough of Sutton,16/04/2021,50003037,"5,400.00",Heathcotes (Southern) Limited,SOCIAL SERVICES RESIDENTIAL,Peoples Services,Residential Care - Ext Provider,A56114
London Borough of Sutton,16/04/2021,50003169,-271.93,Heathcotes (Southern) Limited,SOCIAL SERVICES RESIDENTIAL,Peoples Services,Residential Care - Client Cont ( Net Paymt ),A56113
London Borough of Sutton,16/04/2021,50003169,"4,492.29",Heathcotes (Southern) Limited,SOCIAL SERVICES RESIDENTIAL,Peoples Services,Residential Care - Ext Provider,A56114
London Borough of Sutton,16/04/2021,50003169,"2,495.71",Heathcotes (Southern) Limited,SOCIAL SERVICES RESIDENTIAL,Peoples Services,Residential Care - Ext Provider,A56114
London Borough of Sutton,16/04/2021,50003169,-151.07,Heathcotes (Southern) Limited,SOCIAL SERVICES RESIDENTIAL,Peoples Services,Residential Care - Client Cont ( Net Paymt ),A56113
London Borough of Sutton,31/03/2021,50007188,508.5,Helpr Ltd,SOCIAL SERVICES RESIDENTIAL,Peoples Services,Home Care Services,A56019
London Borough of Sutton,08/04/2021,50002607,886.6,HF Trust Ltd,SOCIAL SERVICES RESIDENTIAL,Peoples Services,Day Care Services,A56021
London Borough of Sutton,16/04/2021,50003087,"2,256.53",HF Trust Ltd,SOCIAL SERVICES RESIDENTIAL,Peoples Services,Residential Care - Ext Provider,A56114
London Borough of Sutton,16/04/2021,50003087,"1,253.63",HF Trust Ltd,SOCIAL SERVICES RESIDENTIAL,Peoples Services,Residential Care - Ext Provider,A56114
London Borough of Sutton,16/04/2021,50003087,-128.07,HF Trust Ltd,SOCIAL SERVICES RESIDENTIAL,Peoples Services,Residential Care - Client Cont ( Net Paymt ),A56113
London Borough of Sutton,16/04/2021,50003087,-230.53,HF Trust Ltd,SOCIAL SERVICES RESIDENTIAL,Peoples Services,Residential Care - Client Cont ( Net Paymt ),A56113
London Borough of Sutton,16/04/2021,50003318,"1,741.22",HF Trust Ltd,SOCIAL SERVICES RESIDENTIAL,Peoples Services,Residential Care - Ext Provider,A56114
London Borough of Sutton,16/04/2021,50003318,967.34,HF Trust Ltd,SOCIAL SERVICES RESIDENTIAL,Peoples Services,Residential Care - Ext Provider,A56114
London Borough of Sutton,16/04/2021,50003318,-151.07,HF Trust Ltd,SOCIAL SERVICES RESIDENTIAL,Peoples Services,Residential Care - Client Cont ( Net Paymt ),A56113
London Borough of Sutton,16/04/2021,50003318,-271.93,HF Trust Ltd,SOCIAL SERVICES RESIDENTIAL,Peoples Services,Residential Care - Client Cont ( Net Paymt ),A56113
London Borough of Sutton,01/04/2021,50005572,720,HF Trust Ltd,SOCIAL SERVICES RESIDENTIAL,Peoples Services,One to One Care,A56108
London Borough of Sutton,01/04/2021,50005572,"1,296.00",HF Trust Ltd,SOCIAL SERVICES RESIDENTIAL,Peoples Services,One to One Care,A56108
London Borough of Sutton,01/04/2021,50005573,341,HF Trust Ltd,SOCIAL SERVICES RESIDENTIAL,Peoples Services,Day Care Services,A56021
London Borough of Sutton,01/04/2021,50005573,613.8,HF Trust Ltd,SOCIAL SERVICES RESIDENTIAL,Peoples Services,Day Care Services,A56021
London Borough of Sutton,01/04/2021,50005574,"2,784.92",HF Trust Ltd,SOCIAL SERVICES RESIDENTIAL,Peoples Services,Supported Living,A56088
London Borough of Sutton,31/03/2021,20000595,"3,484.25",HFH Healthcare,SOCIAL SERVICES DAY CARE,Peoples Services,One to One Care,A56108
London Borough of Sutton,31/03/2021,20000382,"2,199.33",Higher Level Care ,CHILDREN'S SERVICES - RESIDENTIAL,Peoples Services,Approved Lodgings,A61000
London Borough of Sutton,31/03/2021,20000387,"2,053.67",Higher Level Care ,CHILDREN'S SERVICES - RESIDENTIAL,Peoples Services,Approved Lodgings,A61000
London Borough of Sutton,31/03/2021,20000390,"3,743.56",Higher Level Care ,CHILDREN'S SERVICES - RESIDENTIAL,Peoples Services,Approved Lodgings,A61000
London Borough of Sutton,31/03/2021,20000391,"1,756.65",Higher Level Care ,CHILDREN'S SERVICES - RESIDENTIAL,Peoples Services,Approved Lodgings,A61000
London Borough of Sutton,31/03/2021,20000392,"3,764.02",Higher Level Care ,CHILDREN'S SERVICES - RESIDENTIAL,Peoples Services,Approved Lodgings,A61000
London Borough of Sutton,31/03/2021,20000407,"4,107.50",Higher Level Care ,CHILDREN'S SERVICES - RESIDENTIAL,Peoples Services,Living Allowance,A56016
London Borough of Sutton,31/03/2021,50001629,"4,638.84",Higher Level Care ,CHILDREN'S SERVICES - RESIDENTIAL,Peoples Services,Accommodation - Supported Living,A62001
London Borough of Sutton,31/03/2021,50001645,"4,107.50",Higher Level Care ,CHILDREN'S SERVICES - RESIDENTIAL,Peoples Services,Accommodation - Supported Living,A62001
London Borough of Sutton,31/03/2021,50001646,"4,638.84",Higher Level Care ,CHILDREN'S SERVICES - RESIDENTIAL,Peoples Services,Accommodation - Supported Living,A62001
London Borough of Sutton,31/03/2021,50001648,"4,638.84",Higher Level Care ,CHILDREN'S SERVICES - RESIDENTIAL,Peoples Services,Accommodation - Supported Living,A62001
London Borough of Sutton,31/03/2021,50001668,"5,236.83",Higher Level Care ,CHILDREN'S SERVICES - RESIDENTIAL,Peoples Services,Accommodation - Supported Living,A62001
London Borough of Sutton,01/04/2021,20000369,"3,518.00",REDACTED - PERSONAL DATA,GRANTS & EX GRATIA PAYMENTS,Environment Housing and Neighbourhoods,Temporary Protection - Homeless Persons,A62028
London Borough of Sutton,16/04/2021,50003272,"2,322.00",Hill House Nursing Home Ltd,SOCIAL SERVICES RESIDENTIAL,Peoples Services,Nursing Care - Ext Provider,A56025
London Borough of Sutton,16/04/2021,50003272,-262.74,Hill House Nursing Home Ltd,SOCIAL SERVICES RESIDENTIAL,Peoples Services,Nursing Care - 3rd party top up payment,A56023
London Borough of Sutton,16/04/2021,50003272,-472.94,Hill House Nursing Home Ltd,SOCIAL SERVICES RESIDENTIAL,Peoples Services,Nursing Care - 3rd party top up payment,A56023
London Borough of Sutton,16/04/2021,50003272,"1,290.00",Hill House Nursing Home Ltd,SOCIAL SERVICES RESIDENTIAL,Peoples Services,Nursing Care - Ext Provider,A56025
London Borough of Sutton,16/04/2021,50003365,-160,Hill House Nursing Home Ltd,SOCIAL SERVICES RESIDENTIAL,Peoples Services,Nursing Care - 3rd party top up payment,A56023
London Borough of Sutton,16/04/2021,50003365,-288,Hill House Nursing Home Ltd,SOCIAL SERVICES RESIDENTIAL,Peoples Services,Nursing Care - 3rd party top up payment,A56023
London Borough of Sutton,16/04/2021,50003365,"2,265.43",Hill House Nursing Home Ltd,SOCIAL SERVICES RESIDENTIAL,Peoples Services,Nursing Care - Ext Provider,A56025
London Borough of Sutton,16/04/2021,50003365,"1,258.57",Hill House Nursing Home Ltd,SOCIAL SERVICES RESIDENTIAL,Peoples Services,Nursing Care - Ext Provider,A56025
London Borough of Sutton,30/03/2021,20000901,997,REDACTED - PERSONAL DATA,GRANTS & EX GRATIA PAYMENTS,Environment Housing and Neighbourhoods,Temporary Protection - Homeless Persons,A62028
London Borough of Sutton,10/07/2020,20000478,"1,108.17",Holiday Inn,OFFICE SERVICES,Peoples Services,Client Care/Assistance,A61011
London Borough of Sutton,15/04/2021,20000652,"2,772.28",Holiday Inn,OFFICE SERVICES,Peoples Services,Client Care/Assistance,A61011
London Borough of Sutton,19/04/2021,20000762,"3,156.49",Holiday Inn,OFFICE SERVICES,Peoples Services,Client Care/Assistance,A61011
London Borough of Sutton,12/04/2021,20000496,"19,784.00",Home-Start Sutton,GRANTS & EX GRATIA PAYMENTS,Health and Wellbeing,Provider Contract Payments,A44290
London Borough of Sutton,01/04/2021,50002991,"1,332.20",Huriya Care U.K Ltd,CHILDREN'S SERVICES - RESIDENTIAL,Peoples Services,Approved Lodgings,A61000
London Borough of Sutton,01/04/2021,50000809,"1,440.00",REDACTED - PERSONAL DATA,SOCIAL SERVICES - DIRECT PAYMENTS,Peoples Services,Carers Flexible Fund,A61004
London Borough of Sutton,16/04/2021,50003084,"1,290.00",Hydefall Ltd ,SOCIAL SERVICES RESIDENTIAL,Peoples Services,Nursing Care - Ext Provider,A56025
London Borough of Sutton,16/04/2021,50003084,"2,322.00",Hydefall Ltd ,SOCIAL SERVICES RESIDENTIAL,Peoples Services,Nursing Care - Ext Provider,A56025
London Borough of Sutton,16/04/2021,50003084,-472.94,Hydefall Ltd ,SOCIAL SERVICES RESIDENTIAL,Peoples Services,Nursing Care - 3rd party top up payment,A56023
London Borough of Sutton,16/04/2021,50003084,-262.74,Hydefall Ltd ,SOCIAL SERVICES RESIDENTIAL,Peoples Services,Nursing Care - 3rd party top up payment,A56023
London Borough of Sutton,16/04/2021,50003188,-425.73,Hydefall Ltd ,SOCIAL SERVICES RESIDENTIAL,Peoples Services,Nursing Care - 3rd party top up payment,A56023
London Borough of Sutton,16/04/2021,50003188,-236.51,Hydefall Ltd ,SOCIAL SERVICES RESIDENTIAL,Peoples Services,Nursing Care - 3rd party top up payment,A56023
London Borough of Sutton,16/04/2021,50003188,"1,250.80",Hydefall Ltd ,SOCIAL SERVICES RESIDENTIAL,Peoples Services,Nursing Care - Ext Provider,A56025
London Borough of Sutton,16/04/2021,50003188,"2,251.44",Hydefall Ltd ,SOCIAL SERVICES RESIDENTIAL,Peoples Services,Nursing Care - Ext Provider,A56025
London Borough of Sutton,16/04/2021,50003189,"2,285.56",Hydefall Ltd ,SOCIAL SERVICES RESIDENTIAL,Peoples Services,Nursing Care - Ext Provider,A56025
London Borough of Sutton,16/04/2021,50003189,"1,269.76",Hydefall Ltd ,SOCIAL SERVICES RESIDENTIAL,Peoples Services,Nursing Care - Ext Provider,A56025
London Borough of Sutton,16/04/2021,50003189,-425.73,Hydefall Ltd ,SOCIAL SERVICES RESIDENTIAL,Peoples Services,Nursing Care - 3rd party top up payment,A56023
London Borough of Sutton,16/04/2021,50003189,-236.51,Hydefall Ltd ,SOCIAL SERVICES RESIDENTIAL,Peoples Services,Nursing Care - 3rd party top up payment,A56023
London Borough of Sutton,16/04/2021,50003369,"2,342.47",Hydefall Ltd ,SOCIAL SERVICES RESIDENTIAL,Peoples Services,Nursing Care - Ext Provider,A56025
London Borough of Sutton,16/04/2021,50003369,"1,301.37",Hydefall Ltd ,SOCIAL SERVICES RESIDENTIAL,Peoples Services,Nursing Care - Ext Provider,A56025
London Borough of Sutton,16/04/2021,50003369,-472.94,Hydefall Ltd ,SOCIAL SERVICES RESIDENTIAL,Peoples Services,Nursing Care - 3rd party top up payment,A56023
London Borough of Sutton,16/04/2021,50003369,-262.74,Hydefall Ltd ,SOCIAL SERVICES RESIDENTIAL,Peoples Services,Nursing Care - 3rd party top up payment,A56023
London Borough of Sutton,16/04/2021,50003370,"2,322.00",Hydefall Ltd ,SOCIAL SERVICES RESIDENTIAL,Peoples Services,Nursing Care - Ext Provider,A56025
London Borough of Sutton,16/04/2021,50003370,"1,290.00",Hydefall Ltd ,SOCIAL SERVICES RESIDENTIAL,Peoples Services,Nursing Care - Ext Provider,A56025
London Borough of Sutton,16/04/2021,50003370,-472.94,Hydefall Ltd ,SOCIAL SERVICES RESIDENTIAL,Peoples Services,Nursing Care - 3rd party top up payment,A56023
London Borough of Sutton,16/04/2021,50003370,-262.74,Hydefall Ltd ,SOCIAL SERVICES RESIDENTIAL,Peoples Services,Nursing Care - 3rd party top up payment,A56023
London Borough of Sutton,16/04/2021,50003379,"1,757.14",Hydefall Ltd ,SOCIAL SERVICES RESIDENTIAL,Peoples Services,Nursing Care - Ext Provider,A56025
London Borough of Sutton,16/04/2021,50003379,"3,162.86",Hydefall Ltd ,SOCIAL SERVICES RESIDENTIAL,Peoples Services,Nursing Care - Ext Provider,A56025
London Borough of Sutton,16/04/2021,50003393,"1,428.57",Hydefall Ltd ,SOCIAL SERVICES RESIDENTIAL,Peoples Services,Nursing Care - Ext Provider,A56025
London Borough of Sutton,16/04/2021,50003393,"2,571.43",Hydefall Ltd ,SOCIAL SERVICES RESIDENTIAL,Peoples Services,Nursing Care - Ext Provider,A56025
London Borough of Sutton,19/04/2021,20000783,"12,750.00",I & J Bushell Ltd,AGRICULTURAL & ESTATE SERVICES,Environment Housing and Neighbourhoods,Travellers Clearance Expenses,A27016
London Borough of Sutton,01/04/2021,20000258,"9,588.00",Icongrove Ltd,PLS LANDLORDS,Environment Housing and Neighbourhoods,Temporary Protection - Homeless Persons,A62028
London Borough of Sutton,16/04/2021,50003221,"5,418.90",Independence Homes,SOCIAL SERVICES DAY CARE,Peoples Services,Residential Care - Ext Provider,A56114
London Borough of Sutton,16/04/2021,50003221,"3,010.50",Independence Homes,SOCIAL SERVICES DAY CARE,Peoples Services,Residential Care - Ext Provider,A56114
London Borough of Sutton,31/03/2021,20000429,"5,236.78",Independence Way Ltd,LANDLORDS,Peoples Services,Approved Lodgings,A61000
London Borough of Sutton,31/03/2021,20000435,"2,889.28",Independence Way Ltd,LANDLORDS,Peoples Services,Approved Lodgings,A61000
London Borough of Sutton,31/03/2021,50001624,"4,096.42",Independence Way Ltd,LANDLORDS,Peoples Services,Accommodation - Supported Living,A62001
London Borough of Sutton,31/03/2021,50001625,"5,236.78",Independence Way Ltd,LANDLORDS,Peoples Services,Approved Lodgings,A61000
London Borough of Sutton,31/03/2021,50001653,168.93,Independence Way Ltd,LANDLORDS,Peoples Services,Approved Lodgings,A61000
London Borough of Sutton,31/03/2021,50001653,"4,898.93",Independence Way Ltd,LANDLORDS,Peoples Services,Approved Lodgings,A61000
London Borough of Sutton,31/03/2021,50001674,"4,129.64",Independence Way Ltd,LANDLORDS,Peoples Services,Approved Lodgings,A61000
London Borough of Sutton,16/04/2021,50003364,"1,529.00",Independent Lifestyle Options,SOCIAL SERVICES RESIDENTIAL,Peoples Services,Residential Care - Ext Provider,A56114
London Borough of Sutton,16/04/2021,50003364,"2,752.20",Independent Lifestyle Options,SOCIAL SERVICES RESIDENTIAL,Peoples Services,Residential Care - Ext Provider,A56114
London Borough of Sutton,10/03/2021,20001166,"2,254.38",Independent Living Ltd,SUNDRY SUPPLIER - FINANCE,Environment Housing and Neighbourhoods,Grants Given For Capital Purposes,C20004
London Borough of Sutton,31/03/2021,20000228,"4,800.00",INTOPLACES LTD,TEMP STAFF & CONSULTANCY,Development Growth and Regeneration,Fees,A44040
London Borough of Sutton,08/04/2021,50001742,500,REDACTED - PERSONAL DATA,UASC SUBS PAYMENTS,Peoples Services,Approved Lodgings,A61000
London Borough of Sutton,01/04/2021,20000619,"1,200.00",REDACTED - PERSONAL DATA,GRANTS & EX GRATIA PAYMENTS,Environment Housing and Neighbourhoods,Temporary Protection - Homeless Persons,A62028
London Borough of Sutton,21/03/2021,50006651,112,J.C. Michael Group,SOCIAL SERVICES DAY CARE,Peoples Services,Home Care Services,A56019
London Borough of Sutton,21/03/2021,50006651,539,J.C. Michael Group,SOCIAL SERVICES DAY CARE,Peoples Services,Home Care Services,A56019
London Borough of Sutton,28/03/2021,50006652,112,J.C. Michael Group,SOCIAL SERVICES DAY CARE,Peoples Services,Home Care Services,A56019
London Borough of Sutton,28/03/2021,50006652,539,J.C. Michael Group,SOCIAL SERVICES DAY CARE,Peoples Services,Home Care Services,A56019
London Borough of Sutton,04/04/2021,50006653,308,J.C. Michael Group,SOCIAL SERVICES DAY CARE,Peoples Services,Home Care Services,A56019
London Borough of Sutton,04/04/2021,50006653,56,J.C. Michael Group,SOCIAL SERVICES DAY CARE,Peoples Services,Home Care Services,A56019
London Borough of Sutton,04/04/2021,50006653,56,J.C. Michael Group,SOCIAL SERVICES DAY CARE,Peoples Services,Home Care Services,A56019
London Borough of Sutton,04/04/2021,50006653,231,J.C. Michael Group,SOCIAL SERVICES DAY CARE,Peoples Services,Home Care Services,A56019
London Borough of Sutton,24/03/2021,50006717,727.12,James Askew & Son Ltd,BOOKS PUBLICATIONS STATIONERY,Health and Wellbeing,Books,A43050
London Borough of Sutton,24/03/2021,50006718,524.29,James Askew & Son Ltd,BOOKS PUBLICATIONS STATIONERY,Health and Wellbeing,Books,A43050
London Borough of Sutton,25/03/2021,50006720,702.5,James Askew & Son Ltd,BOOKS PUBLICATIONS STATIONERY,Health and Wellbeing,Books,A43050
London Borough of Sutton,25/03/2021,50006723,709.64,James Askew & Son Ltd,BOOKS PUBLICATIONS STATIONERY,Health and Wellbeing,Books,A43050
London Borough of Sutton,07/04/2021,50006726,742.67,James Askew & Son Ltd,BOOKS PUBLICATIONS STATIONERY,Health and Wellbeing,Books,A43050
London Borough of Sutton,07/04/2021,50006727,644.33,James Askew & Son Ltd,BOOKS PUBLICATIONS STATIONERY,Health and Wellbeing,Books,A43050
London Borough of Sutton,07/04/2021,50006729,754.48,James Askew & Son Ltd,BOOKS PUBLICATIONS STATIONERY,Health and Wellbeing,Books,A43050
London Borough of Sutton,03/04/2021,20000356,"2,418.00",REDACTED - PERSONAL DATA,GRANTS & EX GRATIA PAYMENTS,Environment Housing and Neighbourhoods,Temporary Protection - Homeless Persons,A62028
London Borough of Sutton,16/04/2021,50003017,"2,400.38",Janith Homes Ltd,SOCIAL SERVICES RESIDENTIAL,Peoples Services,Residential Care - Ext Provider,A56114
London Borough of Sutton,16/04/2021,50003017,"1,333.54",Janith Homes Ltd,SOCIAL SERVICES RESIDENTIAL,Peoples Services,Residential Care - Ext Provider,A56114
London Borough of Sutton,16/04/2021,50003017,-151.07,Janith Homes Ltd,SOCIAL SERVICES RESIDENTIAL,Peoples Services,Residential Care - Client Cont ( Net Paymt ),A56113
London Borough of Sutton,16/04/2021,50003017,-271.93,Janith Homes Ltd,SOCIAL SERVICES RESIDENTIAL,Peoples Services,Residential Care - Client Cont ( Net Paymt ),A56113
London Borough of Sutton,01/01/2020,20000351,"1,209.00",REDACTED - PERSONAL DATA,REDACTED - PERSONAL DATA,Environment Housing and Neighbourhoods,Temporary Protection - Homeless Persons,A62028
London Borough of Sutton,01/04/2021,20000719,"14,300.00",JC Applications Development,FINANCIAL / INSURANCE INSTNS,Resources,IT Software Purchase,A45040
London Borough of Sutton,20/04/2021,20000834,"1,000.00",JC Applications Development,FINANCIAL / INSURANCE INSTNS,Resources,IT Software Purchase,A45040
London Borough of Sutton,16/04/2021,50003007,"1,927.88",Jesmund Care Ltd,SOCIAL SERVICES RESIDENTIAL,Peoples Services,Nursing Care - Ext Provider,A56025
London Borough of Sutton,16/04/2021,50003007,-303.71,Jesmund Care Ltd,SOCIAL SERVICES RESIDENTIAL,Peoples Services,Nursing Care - 3rd party top up payment,A56023
London Borough of Sutton,16/04/2021,50003007,-546.69,Jesmund Care Ltd,SOCIAL SERVICES RESIDENTIAL,Peoples Services,Nursing Care - 3rd party top up payment,A56023
London Borough of Sutton,16/04/2021,50003007,"1,071.04",Jesmund Care Ltd,SOCIAL SERVICES RESIDENTIAL,Peoples Services,Nursing Care - Ext Provider,A56025
London Borough of Sutton,16/04/2021,50003085,-472.94,Jesmund Care Ltd,SOCIAL SERVICES RESIDENTIAL,Peoples Services,Nursing Care - 3rd party top up payment,A56023
London Borough of Sutton,16/04/2021,50003085,-262.74,Jesmund Care Ltd,SOCIAL SERVICES RESIDENTIAL,Peoples Services,Nursing Care - 3rd party top up payment,A56023
London Borough of Sutton,16/04/2021,50003085,"1,311.31",Jesmund Care Ltd,SOCIAL SERVICES RESIDENTIAL,Peoples Services,Nursing Care - Ext Provider,A56025
London Borough of Sutton,16/04/2021,50003085,"2,360.37",Jesmund Care Ltd,SOCIAL SERVICES RESIDENTIAL,Peoples Services,Nursing Care - Ext Provider,A56025
London Borough of Sutton,16/04/2021,50003131,-425.73,Jesmund Care Ltd,SOCIAL SERVICES RESIDENTIAL,Peoples Services,Nursing Care - 3rd party top up payment,A56023
London Borough of Sutton,16/04/2021,50003131,-236.51,Jesmund Care Ltd,SOCIAL SERVICES RESIDENTIAL,Peoples Services,Nursing Care - 3rd party top up payment,A56023
London Borough of Sutton,16/04/2021,50003131,"1,290.00",Jesmund Care Ltd,SOCIAL SERVICES RESIDENTIAL,Peoples Services,Nursing Care - Ext Provider,A56025
London Borough of Sutton,16/04/2021,50003131,"2,322.00",Jesmund Care Ltd,SOCIAL SERVICES RESIDENTIAL,Peoples Services,Nursing Care - Ext Provider,A56025
London Borough of Sutton,16/04/2021,50003217,"1,357.14",Jesmund Care Ltd,SOCIAL SERVICES RESIDENTIAL,Peoples Services,Nursing Care - Ext Provider,A56025
London Borough of Sutton,16/04/2021,50003217,"2,442.86",Jesmund Care Ltd,SOCIAL SERVICES RESIDENTIAL,Peoples Services,Nursing Care - Ext Provider,A56025
London Borough of Sutton,16/04/2021,50003230,"2,285.56",Jesmund Care Ltd,SOCIAL SERVICES RESIDENTIAL,Peoples Services,Nursing Care - Ext Provider,A56025
London Borough of Sutton,16/04/2021,50003230,-225.94,Jesmund Care Ltd,SOCIAL SERVICES RESIDENTIAL,Peoples Services,Nursing Care - 3rd party top up payment,A56023
London Borough of Sutton,16/04/2021,50003230,-406.7,Jesmund Care Ltd,SOCIAL SERVICES RESIDENTIAL,Peoples Services,Nursing Care - 3rd party top up payment,A56023
London Borough of Sutton,16/04/2021,50003230,"1,269.76",Jesmund Care Ltd,SOCIAL SERVICES RESIDENTIAL,Peoples Services,Nursing Care - Ext Provider,A56025
London Borough of Sutton,01/04/2021,50001029,"3,030.90",Jigsaw+,SOCIAL SERVICES DAY CARE,Peoples Services,Day Care Services,A56021
London Borough of Sutton,01/04/2021,20000277,"1,014.00",JME Investments Ltd,PLS LANDLORDS,Environment Housing and Neighbourhoods,Temporary Protection - Homeless Persons,A62028
London Borough of Sutton,20/04/2021,20000843,"1,014.04",REDACTED - PERSONAL DATA,GRANTS & EX GRATIA PAYMENTS,Environment Housing and Neighbourhoods,Temporary Protection - Homeless Persons,A62028
London Borough of Sutton,20/04/2021,20000867,"1,200.00",Just Cool It Limited,SOCIAL SERVICES - OTHER,Health and Wellbeing,Equipment And Materials Purchase,A40000
London Borough of Sutton,24/04/2021,20001060,"1,200.00",Just Cool It Limited,SOCIAL SERVICES - OTHER,Health and Wellbeing,Equipment And Materials Purchase,A40000
London Borough of Sutton,17/04/2021,20000744,997.1,REDACTED - PERSONAL DATA,GRANTS & EX GRATIA PAYMENTS,Environment Housing and Neighbourhoods,Temporary Protection - Homeless Persons,A62028
London Borough of Sutton,01/04/2021,20000201,746,REDACTED - PERSONAL DATA,GRANTS & EX GRATIA PAYMENTS,Environment Housing and Neighbourhoods,Temporary Protection - Homeless Persons,A62028
London Borough of Sutton,15/04/2021,20000526,"1,209.00",REDACTED - PERSONAL DATA,GRANTS & EX GRATIA PAYMENTS,Environment Housing and Neighbourhoods,Temporary Protection - Homeless Persons,A62028
London Borough of Sutton,15/03/2021,50000422,"16,830.00",Kedleston (Brookways School) Limited,CHILDREN'S SERVICES - SEN SERVICES,Peoples Services,Independent School Fees,A56002
London Borough of Sutton,15/03/2021,50000423,"18,700.00",Kedleston (Brookways School) Limited,CHILDREN'S SERVICES - SEN SERVICES,Peoples Services,Independent School Fees,A56002
London Borough of Sutton,15/03/2021,50000424,"19,074.00",Kedleston (Brookways School) Limited,CHILDREN'S SERVICES - SEN SERVICES,Peoples Services,Independent School Fees,A56002
London Borough of Sutton,01/03/2021,50001100,"8,733.88",Kedleston (Brookways School) Limited,CHILDREN'S SERVICES - SEN SERVICES,Peoples Services,Independent School Fees,A56002
London Borough of Sutton,29/03/2021,20000166,"8,010.00",Keep Up Consultancy Ltd,TEMP STAFF & CONSULTANCY,Health and Wellbeing,Equipment And Materials Purchase,A40000
London Borough of Sutton,06/04/2021,20000274,"2,864.96",Kent County Council,CENTRAL & LOCAL GOVERNMENT,Peoples Services,Client Care/Assistance,A61011
London Borough of Sutton,08/02/2021,20000624,"2,864.96",Kent County Council,CENTRAL & LOCAL GOVERNMENT,Peoples Services,Client Care/Assistance,A61011
London Borough of Sutton,16/04/2021,50003127,-58.64,Kenward Trust,GRANTS & EX GRATIA PAYMENTS,Peoples Services,Residential Care - Client Cont ( Net Paymt ),A56113
London Borough of Sutton,16/04/2021,50003127,"2,054.57",Kenward Trust,GRANTS & EX GRATIA PAYMENTS,Peoples Services,Interim Placements - Ext Provider,A56102
London Borough of Sutton,16/04/2021,50003127,"1,141.43",Kenward Trust,GRANTS & EX GRATIA PAYMENTS,Peoples Services,Interim Placements - Ext Provider,A56102
London Borough of Sutton,16/04/2021,50003127,-105.56,Kenward Trust,GRANTS & EX GRATIA PAYMENTS,Peoples Services,Residential Care - Client Cont ( Net Paymt ),A56113
London Borough of Sutton,26/03/2021,50001649,"17,448.57",KEYS CARE LTD,CHILDREN'S SERVICES - FOSTERING & ADOPTION SERVICES,Peoples Services,Residential Care-Children,A56115
London Borough of Sutton,26/04/2021,50007264,597,Keys PCE Ltd,CHILDREN'S SERVICES - RESIDENTIAL,Peoples Services,Independent School Fees,A56002
London Borough of Sutton,22/03/2021,50007273,"4,908.00",Kingswood House School Trust Ltd,GRANTS & EX GRATIA PAYMENTS,Peoples Services,Independent School Fees,A56002
London Borough of Sutton,02/03/2021,20000200,"7,407.80",Kippa Bid Ltd,SUBSCRIPTIONS & PUBLICATIONS,Development Growth and Regeneration,Other Supplies & Services,A44291
London Borough of Sutton,12/02/2021,50000394,"24,166.07",Kisimul Group Ltd,CHILDREN'S SERVICES - RESIDENTIAL,Peoples Services,Independent School Fees,A56002
London Borough of Sutton,12/03/2021,50001664,"5,485.84",Kisimul Group Ltd,CHILDREN'S SERVICES - RESIDENTIAL,Peoples Services,Residential Care-Children,A56115
London Borough of Sutton,24/02/2021,20000917,"7,031.91",KNK Building Services Ltd,CONSTRUCTION INDUSTRY,Development Growth and Regeneration,Payments to Contractors,C14000
London Borough of Sutton,21/04/2021,20000909,"2,604.70",Kompan Ltd,CONSTRUCTION INDUSTRY,Environment Housing and Neighbourhoods,Equipment And Materials Repairs & Maintenance,A40051
London Borough of Sutton,21/04/2021,20000910,"4,963.92",Kompan Ltd,CONSTRUCTION INDUSTRY,Environment Housing and Neighbourhoods,Equipment And Materials Repairs & Maintenance,A40051
London Borough of Sutton,10/04/2021,20000144,860,REDACTED - PERSONAL DATA,GRANTS & EX GRATIA PAYMENTS,Environment Housing and Neighbourhoods,Temporary Protection - Homeless Persons,A62028
London Borough of Sutton,08/03/2021,50001001,792,Lakeshore Care Ltd,SOCIAL SERVICES RESIDENTIAL,Peoples Services,Home Care Services,A56019
London Borough of Sutton,08/03/2021,50001001,55,Lakeshore Care Ltd,SOCIAL SERVICES RESIDENTIAL,Peoples Services,Home Care Services,A56019
London Borough of Sutton,16/04/2021,50003097,"2,057.14",Langley Court Rest Home Limited,SOCIAL SERVICES RESIDENTIAL,Peoples Services,Interim Placements - Ext Provider,A56102
